Body name,Body,Service Area Categorisation,Cost Centre Description,Detailed Expenses Type,Expenses Code,Date,Transaction Number,Amount,Supplier Name,Supplier ID
Solihull MBC,http://statistics.data.gov.uk/id/local-authority/00CT,Children & Education Services,Mill Lodge J&I PCP,Contractors,Y21000,14/04/2011,9358778,101421.17,A C Lloyd (Builders) Ltd,279835
Solihull MBC,http://statistics.data.gov.uk/id/local-authority/00CT,Central Services to the Public,HRE Management,Materials,D11000,04/03/2011,PC91396,864.64,A D C Ltd,Purchase Card Supplier
Solihull MBC,http://statistics.data.gov.uk/id/local-authority/00CT,Adult Social Care,Care Trust Facilities,Community Care,E21000,11/04/2011,9341344,468,A S C Birch,9523
Solihull MBC,http://statistics.data.gov.uk/id/local-authority/00CT,Adult Social Care,Care Trust Facilities,Community Care,E21000,11/04/2011,9341345,576,A S C Birch,9523
Solihull MBC,http://statistics.data.gov.uk/id/local-authority/00CT,Children & Education Services,Special Transport,Transport-Contract Hire,C30000,11/04/2011,9342715,1541,A S C Birch,9523
Solihull MBC,http://statistics.data.gov.uk/id/local-authority/00CT,Children & Education Services,Special Transport,Transport-Contract Hire,C30000,11/04/2011,9342716,1564,A S C Birch,9523
Solihull MBC,http://statistics.data.gov.uk/id/local-authority/00CT,Children & Education Services,Special Transport,Transport-Contract Hire,C30000,11/04/2011,9342717,555,A S C Birch,9523
Solihull MBC,http://statistics.data.gov.uk/id/local-authority/00CT,Children & Education Services,Special Transport,Extra District Transport,C30002,11/04/2011,9342718,880,A S C Birch,9523
Solihull MBC,http://statistics.data.gov.uk/id/local-authority/00CT,Children & Education Services,Special Transport,Transport-Contract Hire,C30000,11/04/2011,9342720,1326,A S C Birch,9523
Solihull MBC,http://statistics.data.gov.uk/id/local-authority/00CT,Children & Education Services,Special Transport,Transport-Contract Hire,C30000,11/04/2011,9342723,1188,A S C Birch,9523
Solihull MBC,http://statistics.data.gov.uk/id/local-authority/00CT,Children & Education Services,Special Transport,Transport-Contract Hire,C30000,11/04/2011,9341717,1389.58,A2B Radio Cars,9733
Solihull MBC,http://statistics.data.gov.uk/id/local-authority/00CT,Children & Education Services,Special Transport,Transport-Contract Hire,C30000,11/04/2011,9341718,1514.17,A2B Radio Cars,9733
Solihull MBC,http://statistics.data.gov.uk/id/local-authority/00CT,Children & Education Services,Special Transport,Transport-Contract Hire,C30000,11/04/2011,9341719,1533.33,A2B Radio Cars,9733
Solihull MBC,http://statistics.data.gov.uk/id/local-authority/00CT,Children & Education Services,Special Transport,Transport-Contract Hire,C30000,11/04/2011,9341720,1437.5,A2B Radio Cars,9733
Solihull MBC,http://statistics.data.gov.uk/id/local-authority/00CT,Children & Education Services,Special Transport,Transport-Contract Hire,C30000,11/04/2011,9341721,1437.5,A2B Radio Cars,9733
Solihull MBC,http://statistics.data.gov.uk/id/local-authority/00CT,Children & Education Services,Special Transport,Transport-Contract Hire,C30000,11/04/2011,9341723,1629.17,A2B Radio Cars,9733
Solihull MBC,http://statistics.data.gov.uk/id/local-authority/00CT,Children & Education Services,Special Transport,Transport-Contract Hire,C30000,11/04/2011,9341725,1725,A2B Radio Cars,9733
Solihull MBC,http://statistics.data.gov.uk/id/local-authority/00CT,Children & Education Services,Special Transport,Transport-Contract Hire,C30000,11/04/2011,9341726,1897.5,A2B Radio Cars,9733
Solihull MBC,http://statistics.data.gov.uk/id/local-authority/00CT,Children & Education Services,Special Transport,Transport-Contract Hire,C30000,11/04/2011,9341727,1437.5,A2B Radio Cars,9733
Solihull MBC,http://statistics.data.gov.uk/id/local-authority/00CT,Children & Education Services,Special Transport,Transport-Contract Hire,C30000,11/04/2011,9341728,1437.5,A2B Radio Cars,9733
Solihull MBC,http://statistics.data.gov.uk/id/local-authority/00CT,Children & Education Services,Special Transport,Transport-Contract Hire,C30000,11/04/2011,9341729,2108.33,A2B Radio Cars,9733
Solihull MBC,http://statistics.data.gov.uk/id/local-authority/00CT,Children & Education Services,Special Transport,Transport-Contract Hire,C30000,11/04/2011,9341730,1437.5,A2B Radio Cars,9733
Solihull MBC,http://statistics.data.gov.uk/id/local-authority/00CT,Children & Education Services,Special Transport,Transport-Contract Hire,C30000,11/04/2011,9341731,1100,A2B Radio Cars,9733
Solihull MBC,http://statistics.data.gov.uk/id/local-authority/00CT,Children & Education Services,Special Transport,Extra District Transport,C30002,11/04/2011,9341732,1150,A2B Radio Cars,9733
Solihull MBC,http://statistics.data.gov.uk/id/local-authority/00CT,Children & Education Services,Bishop Wilson J&I,Agency Staff: Teachers,A35001,06/04/2011,8603715,2266,ABC Teachers,189821
Solihull MBC,http://statistics.data.gov.uk/id/local-authority/00CT,Children & Education Services,Langley J&I,Agency Staff: Teachers,A35001,08/04/2011,9101715,1859.99,ABC Teachers,189821
Solihull MBC,http://statistics.data.gov.uk/id/local-authority/00CT,Children & Education Services,St Peter's,Agency Staff: Teachers,A35001,11/04/2011,9341262,995,ABC Teachers,189821
Solihull MBC,http://statistics.data.gov.uk/id/local-authority/00CT,Children & Education Services,St Peter's,Agency Staff: Teachers,A35001,11/04/2011,9341262,975,ABC Teachers,189821
Solihull MBC,http://statistics.data.gov.uk/id/local-authority/00CT,Children & Education Services,St Peter's,Agency Staff: Teachers,A35001,11/04/2011,9341262,925,ABC Teachers,189821
Solihull MBC,http://statistics.data.gov.uk/id/local-authority/00CT,Children & Education Services,St Peter's,Agency Staff: Teachers,A35001,11/04/2011,9341264,995,ABC Teachers,189821
Solihull MBC,http://statistics.data.gov.uk/id/local-authority/00CT,Children & Education Services,St Peter's,Agency Staff: Teachers,A35001,11/04/2011,9341264,975,ABC Teachers,189821
Solihull MBC,http://statistics.data.gov.uk/id/local-authority/00CT,Children & Education Services,St Peter's,Agency Staff: Teachers,A35001,11/04/2011,9341264,925,ABC Teachers,189821
Solihull MBC,http://statistics.data.gov.uk/id/local-authority/00CT,Children & Education Services,St Peter's,Agency Staff: Teachers,A35001,27/04/2011,9610890,995,ABC Teachers,189821
Solihull MBC,http://statistics.data.gov.uk/id/local-authority/00CT,Children & Education Services,St Peter's,Agency Staff: Teachers,A35001,27/04/2011,9610890,975,ABC Teachers,189821
Solihull MBC,http://statistics.data.gov.uk/id/local-authority/00CT,Children & Education Services,St Peter's,Agency Staff: Teachers,A35001,27/04/2011,9610959,995,ABC Teachers,189821
Solihull MBC,http://statistics.data.gov.uk/id/local-authority/00CT,Children & Education Services,St Peter's,Agency Staff: Teachers,A35001,27/04/2011,9610959,925,ABC Teachers,189821
Solihull MBC,http://statistics.data.gov.uk/id/local-authority/00CT,Children & Education Services,St Peter's,Agency Staff: Teachers,A35001,27/04/2011,9610959,780,ABC Teachers,189821
Solihull MBC,http://statistics.data.gov.uk/id/local-authority/00CT,Children & Education Services,St Peter's,Agency Staff: Teachers,A35001,27/04/2011,9610964,995,ABC Teachers,189821
Solihull MBC,http://statistics.data.gov.uk/id/local-authority/00CT,Children & Education Services,St Peter's,Agency Staff: Teachers,A35001,27/04/2011,9610964,925,ABC Teachers,189821
Solihull MBC,http://statistics.data.gov.uk/id/local-authority/00CT,Children & Education Services,St Peter's,Agency Staff: Teachers,A35001,27/04/2011,9610964,585,ABC Teachers,189821
Solihull MBC,http://statistics.data.gov.uk/id/local-authority/00CT,Adult Social Care,Appointee Spend- I-Proc,General Creditors,S00000,15/04/2011,9365023,814.49,Accord Housing Association,23450
Solihull MBC,http://statistics.data.gov.uk/id/local-authority/00CT,Adult Social Care,Appointee Spend- I-Proc,General Creditors,S00000,15/04/2011,9365023,814.49,Accord Housing Association,23450
Solihull MBC,http://statistics.data.gov.uk/id/local-authority/00CT,Adult Social Care,Appointee Spend- I-Proc,General Creditors,S00000,15/04/2011,9365023,-814.49,Accord Housing Association,23450
Solihull MBC,http://statistics.data.gov.uk/id/local-authority/00CT,Adult Social Care,SP - Old People Support Needs,Other Contracted Services,E29000,27/04/2011,9611043,8185.85,Accord Housing Association,23450
Solihull MBC,http://statistics.data.gov.uk/id/local-authority/00CT,Adult Social Care,SP - Ment Disordered Offenders,Other Contracted Services,E29000,28/04/2011,9619717,2326.65,Accord Housing Association,23450
Solihull MBC,http://statistics.data.gov.uk/id/local-authority/00CT,Central Services to the Public,Recovery Account,Liability Insurance,D94000,15/04/2011,9364761,27516.19,Ace European Group Ltd,121548
Solihull MBC,http://statistics.data.gov.uk/id/local-authority/00CT,Children & Education Services,Ulverley J&I,Building Maint Planned,B31002,28/04/2011,9618832,1318,Acorn Floors,59129
Solihull MBC,http://statistics.data.gov.uk/id/local-authority/00CT,Children & Education Services,Grants For Private Sector,Grant & Subscription (SCITT),D92000,21/04/2011,9604802,2932.65,Active Angels,131744
Solihull MBC,http://statistics.data.gov.uk/id/local-authority/00CT,Children & Education Services,Grants For Private Sector,Grant & Subscription (SCITT),D92000,21/04/2011,9604803,926.1,Active Angels,131744
Solihull MBC,http://statistics.data.gov.uk/id/local-authority/00CT,Children & Education Services,Adoption Services,Grant & Subscription (SCITT),D92000,05/04/2011,8522797,1097,Adoption UK,10219
Solihull MBC,http://statistics.data.gov.uk/id/local-authority/00CT,Cultural & Related Services,Dancescape,Advertising/Publicity/Promotion,D93000,13/04/2011,9353825,429.06,Advance Printwear Ltd,122170
Solihull MBC,http://statistics.data.gov.uk/id/local-authority/00CT,Cultural & Related Services,Dancescape,Advertising/Publicity/Promotion,D93000,13/04/2011,9353825,429.06,Advance Printwear Ltd,122170
Solihull MBC,http://statistics.data.gov.uk/id/local-authority/00CT,Cultural & Related Services,Dancescape,Advertising/Publicity/Promotion,D93000,13/04/2011,9353825,374.34,Advance Printwear Ltd,122170
Solihull MBC,http://statistics.data.gov.uk/id/local-authority/00CT,Cultural & Related Services,Dancescape,Advertising/Publicity/Promotion,D93000,13/04/2011,9353825,374.34,Advance Printwear Ltd,122170
Solihull MBC,http://statistics.data.gov.uk/id/local-authority/00CT,Cultural & Related Services,Dancescape,Advertising/Publicity/Promotion,D93000,13/04/2011,9353825,327.86,Advance Printwear Ltd,122170
Solihull MBC,http://statistics.data.gov.uk/id/local-authority/00CT,Cultural & Related Services,Dancescape,Advertising/Publicity/Promotion,D93000,13/04/2011,9353825,327.86,Advance Printwear Ltd,122170
Solihull MBC,http://statistics.data.gov.uk/id/local-authority/00CT,Cultural & Related Services,Dancescape,Advertising/Publicity/Promotion,D93000,13/04/2011,9353825,19.99,Advance Printwear Ltd,122170
Solihull MBC,http://statistics.data.gov.uk/id/local-authority/00CT,Cultural & Related Services,Dancescape,Advertising/Publicity/Promotion,D93000,13/04/2011,9353825,19.99,Advance Printwear Ltd,122170
Solihull MBC,http://statistics.data.gov.uk/id/local-authority/00CT,Cultural & Related Services,Dancescape,Advertising/Publicity/Promotion,D93000,13/04/2011,9353825,-19.99,Advance Printwear Ltd,122170
Solihull MBC,http://statistics.data.gov.uk/id/local-authority/00CT,Cultural & Related Services,Dancescape,Advertising/Publicity/Promotion,D93000,13/04/2011,9353825,-327.86,Advance Printwear Ltd,122170
Solihull MBC,http://statistics.data.gov.uk/id/local-authority/00CT,Cultural & Related Services,Dancescape,Advertising/Publicity/Promotion,D93000,13/04/2011,9353825,-374.34,Advance Printwear Ltd,122170
Solihull MBC,http://statistics.data.gov.uk/id/local-authority/00CT,Cultural & Related Services,Dancescape,Advertising/Publicity/Promotion,D93000,13/04/2011,9353825,-429.06,Advance Printwear Ltd,122170
Solihull MBC,http://statistics.data.gov.uk/id/local-authority/00CT,Central Services to the Public,Community Initiatives Fund,Grant & Subscription (SCITT),D92000,18/04/2011,9418715,8526,Age Concern,5184
Solihull MBC,http://statistics.data.gov.uk/id/local-authority/00CT,Adult Social Care,SP - Old People Support Needs,Other Contracted Services,E29000,27/04/2011,9611040,7153.31,Age Concern Solihull,958597
Solihull MBC,http://statistics.data.gov.uk/id/local-authority/00CT,Corporate & Democratic Core,International Links,Officers Expenses,D61000,11/03/2011,PC02475,446.6,Air France  0572304559841,Purchase Card Supplier
Solihull MBC,http://statistics.data.gov.uk/id/local-authority/00CT,Corporate & Democratic Core,International Links,Officers Expenses,D61000,11/03/2011,PC02483,446.6,Air France  0572304559848,Purchase Card Supplier
Solihull MBC,http://statistics.data.gov.uk/id/local-authority/00CT,Children & Education Services,St Augustine's J&I,Cleaning Contracts,B40001,07/04/2011,8916715,963.31,A-Kleen Cleaning Services,105447
Solihull MBC,http://statistics.data.gov.uk/id/local-authority/00CT,Children & Education Services,Peterbrook J&I,Building Maint Day To Day,B31001,07/04/2011,9026715,666.67,Alam Beautiful Blinds Ltd,866603
Solihull MBC,http://statistics.data.gov.uk/id/local-authority/00CT,Children & Education Services,Balsall Common J&I,Health & Safety,B43003,05/04/2011,8522849,1037.78,Albany Glass,866605
Solihull MBC,http://statistics.data.gov.uk/id/local-authority/00CT,Planning & Development Services,SSCF Pathfinder,IT Equipment & Software,D32000,15/04/2011,9364884,12470,Alcium Software Ltd,76360
Solihull MBC,http://statistics.data.gov.uk/id/local-authority/00CT,Children & Education Services,Alderbrook,Visits & Pupil Activities,D52002,28/04/2011,9614837,507.9,Alderbrook School,5418
Solihull MBC,http://statistics.data.gov.uk/id/local-authority/00CT,Children & Education Services,Secondary Transport,Transport-Contract Hire,C30000,07/04/2011,8808722,3887,A-Line Coaches,222599
Solihull MBC,http://statistics.data.gov.uk/id/local-authority/00CT,Housing Revenue Account,HRA Client Mgt A/C,Payment Charges,D52702,26/04/2011,,3766.18,Allpay-Net Limited,Direct Debit Payment
Solihull MBC,http://statistics.data.gov.uk/id/local-authority/00CT,Central Services to the Public,Income Team,Professional Fees,D51000,26/04/2011,,900.33,Allpay-Net Limited,Direct Debit Payment
Solihull MBC,http://statistics.data.gov.uk/id/local-authority/00CT,Housing Revenue Account,HRA Client Mgt A/C,Payment Charges,D52702,26/04/2011,,80.6,Allpay-Net Limited,Direct Debit Payment
Solihull MBC,http://statistics.data.gov.uk/id/local-authority/00CT,Central Services to the Public,Income Team,Professional Fees,D51000,26/04/2011,,20,Allpay-Net Limited,Direct Debit Payment
Solihull MBC,http://statistics.data.gov.uk/id/local-authority/00CT,Children & Education Services,St Anne's J&I,Visits & Pupil Activities,D52002,12/04/2011,9344130,735,Alton Castle,61355
Solihull MBC,http://statistics.data.gov.uk/id/local-authority/00CT,Children & Education Services,Primary Transport,Transport-Contract Hire,C30000,06/04/2011,8646717,7130,AM PM Travel,275373
Solihull MBC,http://statistics.data.gov.uk/id/local-authority/00CT,Central Services to the Public,Computer Consumables,IT Equipment & Software,D32000,16/03/2011,PC81250,476.9,Amazon Eu,Purchase Card Supplier
Solihull MBC,http://statistics.data.gov.uk/id/local-authority/00CT,Children & Education Services,Grants For Private Sector,Grant & Subscription (SCITT),D92000,21/04/2011,9604783,3961.65,Angels Daycare,97485
Solihull MBC,http://statistics.data.gov.uk/id/local-authority/00CT,Children & Education Services,Evolution Project (BIP),Other Fees,D52000,04/04/2011,8512015,768,Angelsey Adventure,685596
Solihull MBC,http://statistics.data.gov.uk/id/local-authority/00CT,Highways & Transport Services,Civil Parking Enforcement,Other Contracted Services,E29000,12/04/2011,9344141,57002.44,Apcoa Parking (UK) Ltd,201518
Solihull MBC,http://statistics.data.gov.uk/id/local-authority/00CT,Highways & Transport Services,Civil Parking Enforcement,Other Contracted Services,E29000,14/04/2011,9361715,52262.79,Apcoa Parking (UK) Ltd,201518
Solihull MBC,http://statistics.data.gov.uk/id/local-authority/00CT,Children & Education Services,16 + (S24) 18+ Not In Educ,Client Leaving Care Grant,D62020,04/04/2011,8512158,395.66,Appliance World,249913
Solihull MBC,http://statistics.data.gov.uk/id/local-authority/00CT,Children & Education Services,16 + (S24) 18+ Not In Educ,Client Leaving Care Grant,D62020,04/04/2011,8512158,35.34,Appliance World,249913
Solihull MBC,http://statistics.data.gov.uk/id/local-authority/00CT,Children & Education Services,16 + (S24) 18+ Not In Educ,Client Leaving Care Grant,D62020,04/04/2011,8512158,0.66,Appliance World,249913
Solihull MBC,http://statistics.data.gov.uk/id/local-authority/00CT,Children & Education Services,16 + (S24) 18+ Not In Educ,Client Leaving Care Grant,D62020,04/04/2011,8512158,-0.66,Appliance World,249913
Solihull MBC,http://statistics.data.gov.uk/id/local-authority/00CT,Children & Education Services,Lyndon,Meetings & Other Expenses,D61002,06/04/2011,8542752,590,Aquaid,71388
Solihull MBC,http://statistics.data.gov.uk/id/local-authority/00CT,Children & Education Services,Sharmans Cross Jnr,Health & Safety,B43003,07/04/2011,9009715,885,Aquaid,71388
Solihull MBC,http://statistics.data.gov.uk/id/local-authority/00CT,Children & Education Services,Education Otherwise,Other Contracted Services,E29000,20/04/2011,9600408,616,Archway Academy Ltd,123794
Solihull MBC,http://statistics.data.gov.uk/id/local-authority/00CT,Central Services to the Public,Moat Lane Depot,Repair & Maintn Of Buildings,B31000,21/04/2011,9602880,5986.3,Archway TCS Ltd,633596
Solihull MBC,http://statistics.data.gov.uk/id/local-authority/00CT,Cultural & Related Services,N S Fusion,Room Hire/ Premises Hire,D95000,04/04/2011,8512029,550,Arden Academy Trust,483596
Solihull MBC,http://statistics.data.gov.uk/id/local-authority/00CT,Children & Education Services,Knowle Youth Centre,Rents For Premises,B22000,08/04/2011,9199715,7170,Arden Academy Trust,483596
Solihull MBC,http://statistics.data.gov.uk/id/local-authority/00CT,Children & Education Services,Arden Academy,Other Contracted Services,E29000,21/04/2011,9604832,125043,Arden Academy Trust,483596
Solihull MBC,http://statistics.data.gov.uk/id/local-authority/00CT,Children & Education Services,Making Good Progress,Grant & Subscription (SCITT),D92000,07/04/2011,8973715,4496.64,Arden School,6207
Solihull MBC,http://statistics.data.gov.uk/id/local-authority/00CT,Children & Education Services,Reynalds Cross,Capitation,D11001,31/03/2011,PC14777,582.94,Argos Ltd,Purchase Card Supplier
Solihull MBC,http://statistics.data.gov.uk/id/local-authority/00CT,Central Services to the Public,Car Loans Raised,Other Long Term Assets,Q42000,07/04/2011,8810860,10000,Arnold Clarke,843596
Solihull MBC,http://statistics.data.gov.uk/id/local-authority/00CT,Children & Education Services,LDC Stores,Cleaning,B40000,20/04/2011,9600243,4593.51,Arrow County Supplies,6340
Solihull MBC,http://statistics.data.gov.uk/id/local-authority/00CT,Children & Education Services,LDC Stores,Cleaning,B40000,20/04/2011,9600244,932.41,Arrow County Supplies,6340
Solihull MBC,http://statistics.data.gov.uk/id/local-authority/00CT,Children & Education Services,LDC Stores,Cleaning,B40000,20/04/2011,9600308,1188.54,Arrow County Supplies,6340
Solihull MBC,http://statistics.data.gov.uk/id/local-authority/00CT,Cultural & Related Services,Arts Complex Hirings,IT Equipment & Software,D32000,13/04/2011,9347889,499,Artifax Software Limited,48048
Solihull MBC,http://statistics.data.gov.uk/id/local-authority/00CT,Children & Education Services,Surestart - Quality,Materials,D11000,06/04/2011,8542778,1172.5,Asco Educational Supplies Ltd,6395
Solihull MBC,http://statistics.data.gov.uk/id/local-authority/00CT,Children & Education Services,Reynalds Cross,Training,A32000,08/04/2011,9298715,612.95,Asdan,107778
Solihull MBC,http://statistics.data.gov.uk/id/local-authority/00CT,Environmental and Regulatory Services,Bereavement Services,Materials For Resale,D11202,14/04/2011,9360718,900,Ashdown Supplies,23205
Solihull MBC,http://statistics.data.gov.uk/id/local-authority/00CT,Adult Social Care,SP - Black & Ethnic Minority,Other Contracted Services,E29000,27/04/2011,9611056,3142.03,Ashram Housing Association Ltd,65191
Solihull MBC,http://statistics.data.gov.uk/id/local-authority/00CT,Cultural & Related Services,Libraries Resources Fund,Books,D11410,04/04/2011,8512479,776.2,Askews Library Services Ltd,6562
Solihull MBC,http://statistics.data.gov.uk/id/local-authority/00CT,Cultural & Related Services,Libraries Resources Fund,Books,D11410,04/04/2011,8512479,189.42,Askews Library Services Ltd,6562
Solihull MBC,http://statistics.data.gov.uk/id/local-authority/00CT,Cultural & Related Services,Libraries Resources Fund,Materials,D11000,15/04/2011,9364737,1372.78,Askews Library Services Ltd,6562
Solihull MBC,http://statistics.data.gov.uk/id/local-authority/00CT,Cultural & Related Services,Libraries Resources Fund,Materials,D11000,15/04/2011,9364737,545.11,Askews Library Services Ltd,6562
Solihull MBC,http://statistics.data.gov.uk/id/local-authority/00CT,Cultural & Related Services,Libraries Resources Fund,Materials,D11000,15/04/2011,9364737,346.56,Askews Library Services Ltd,6562
Solihull MBC,http://statistics.data.gov.uk/id/local-authority/00CT,Cultural & Related Services,Libraries Resources Fund,Materials,D11000,15/04/2011,9364737,162.46,Askews Library Services Ltd,6562
Solihull MBC,http://statistics.data.gov.uk/id/local-authority/00CT,Cultural & Related Services,Libraries Resources Fund,Materials,D11000,15/04/2011,9364737,136.69,Askews Library Services Ltd,6562
Solihull MBC,http://statistics.data.gov.uk/id/local-authority/00CT,Cultural & Related Services,Libraries Resources Fund,Materials,D11000,20/04/2011,9600385,603.8,Askews Library Services Ltd,6562
Solihull MBC,http://statistics.data.gov.uk/id/local-authority/00CT,Cultural & Related Services,Libraries Resources Fund,Materials,D11000,20/04/2011,9600385,225.9,Askews Library Services Ltd,6562
Solihull MBC,http://statistics.data.gov.uk/id/local-authority/00CT,Cultural & Related Services,Libraries Resources Fund,Materials,D11000,20/04/2011,9600385,135.51,Askews Library Services Ltd,6562
Solihull MBC,http://statistics.data.gov.uk/id/local-authority/00CT,Cultural & Related Services,Libraries Resources Fund,Materials,D11000,20/04/2011,9600385,25.52,Askews Library Services Ltd,6562
Solihull MBC,http://statistics.data.gov.uk/id/local-authority/00CT,Children & Education Services,Smith's Wood,Agency Staff: Teachers,A35001,07/04/2011,8822715,575,Aspire,119244
Solihull MBC,http://statistics.data.gov.uk/id/local-authority/00CT,Children & Education Services,Smith's Wood,Agency Staff: Teachers,A35001,07/04/2011,8823715,575,Aspire,119244
Solihull MBC,http://statistics.data.gov.uk/id/local-authority/00CT,Children & Education Services,Smith's Wood,Agency Staff: Teachers,A35001,07/04/2011,8825715,575,Aspire,119244
Solihull MBC,http://statistics.data.gov.uk/id/local-authority/00CT,Children & Education Services,Chapel Fields Jnr,Agency Staff: Teachers,A35001,07/04/2011,9035715,477,Aspire,119244
Solihull MBC,http://statistics.data.gov.uk/id/local-authority/00CT,Children & Education Services,Grants For Private Sector,Grant & Subscription (SCITT),D92000,21/04/2011,9604767,4321.8,Asquith Court Nursery,52772
Solihull MBC,http://statistics.data.gov.uk/id/local-authority/00CT,Children & Education Services,St Peter's,Examination Fees,D52001,07/04/2011,8833715,1751.3,Assessment & Qualifications Alliance,34231
Solihull MBC,http://statistics.data.gov.uk/id/local-authority/00CT,Children & Education Services,St Peter's,Examination Fees,D52001,07/04/2011,8864715,1859.25,Assessment & Qualifications Alliance,34231
Solihull MBC,http://statistics.data.gov.uk/id/local-authority/00CT,Children & Education Services,St Peter's,Examination Fees,D52001,07/04/2011,8864715,1304.25,Assessment & Qualifications Alliance,34231
Solihull MBC,http://statistics.data.gov.uk/id/local-authority/00CT,Children & Education Services,St Peter's,Examination Fees,D52001,07/04/2011,8864715,27.8,Assessment & Qualifications Alliance,34231
Solihull MBC,http://statistics.data.gov.uk/id/local-authority/00CT,Children & Education Services,St Peter's,Examination Fees,D52001,07/04/2011,8864715,6.95,Assessment & Qualifications Alliance,34231
Solihull MBC,http://statistics.data.gov.uk/id/local-authority/00CT,Children & Education Services,St Peter's,Examination Fees,D52001,07/04/2011,8864715,3.6,Assessment & Qualifications Alliance,34231
Solihull MBC,http://statistics.data.gov.uk/id/local-authority/00CT,Children & Education Services,Smith's Wood,Examination Fees,D52001,07/04/2011,8955715,-731.95,Assessment & Qualifications Alliance,34231
Solihull MBC,http://statistics.data.gov.uk/id/local-authority/00CT,Children & Education Services,St Peter's,Examination Fees,D52001,11/04/2011,9341219,5189.25,Assessment & Qualifications Alliance,34231
Solihull MBC,http://statistics.data.gov.uk/id/local-authority/00CT,Children & Education Services,St Peter's,Examination Fees,D52001,11/04/2011,9341219,4884,Assessment & Qualifications Alliance,34231
Solihull MBC,http://statistics.data.gov.uk/id/local-authority/00CT,Children & Education Services,St Peter's,Examination Fees,D52001,11/04/2011,9341219,1987.7,Assessment & Qualifications Alliance,34231
Solihull MBC,http://statistics.data.gov.uk/id/local-authority/00CT,Children & Education Services,St Peter's,Examination Fees,D52001,11/04/2011,9341219,1535.5,Assessment & Qualifications Alliance,34231
Solihull MBC,http://statistics.data.gov.uk/id/local-authority/00CT,Children & Education Services,St Peter's,Examination Fees,D52001,11/04/2011,9341219,806.2,Assessment & Qualifications Alliance,34231
Solihull MBC,http://statistics.data.gov.uk/id/local-authority/00CT,Children & Education Services,St Peter's,Examination Fees,D52001,11/04/2011,9341219,795.5,Assessment & Qualifications Alliance,34231
Solihull MBC,http://statistics.data.gov.uk/id/local-authority/00CT,Children & Education Services,St Peter's,Examination Fees,D52001,11/04/2011,9341219,721.5,Assessment & Qualifications Alliance,34231
Solihull MBC,http://statistics.data.gov.uk/id/local-authority/00CT,Children & Education Services,St Peter's,Examination Fees,D52001,11/04/2011,9341219,693.75,Assessment & Qualifications Alliance,34231
Solihull MBC,http://statistics.data.gov.uk/id/local-authority/00CT,Children & Education Services,St Peter's,Examination Fees,D52001,11/04/2011,9341219,693.75,Assessment & Qualifications Alliance,34231
Solihull MBC,http://statistics.data.gov.uk/id/local-authority/00CT,Children & Education Services,St Peter's,Examination Fees,D52001,11/04/2011,9341219,638.25,Assessment & Qualifications Alliance,34231
Solihull MBC,http://statistics.data.gov.uk/id/local-authority/00CT,Children & Education Services,St Peter's,Examination Fees,D52001,11/04/2011,9341219,611.6,Assessment & Qualifications Alliance,34231
Solihull MBC,http://statistics.data.gov.uk/id/local-authority/00CT,Children & Education Services,St Peter's,Examination Fees,D52001,11/04/2011,9341219,556,Assessment & Qualifications Alliance,34231
Solihull MBC,http://statistics.data.gov.uk/id/local-authority/00CT,Children & Education Services,St Peter's,Examination Fees,D52001,11/04/2011,9341219,556,Assessment & Qualifications Alliance,34231
Solihull MBC,http://statistics.data.gov.uk/id/local-authority/00CT,Children & Education Services,St Peter's,Examination Fees,D52001,11/04/2011,9341219,342.25,Assessment & Qualifications Alliance,34231
Solihull MBC,http://statistics.data.gov.uk/id/local-authority/00CT,Children & Education Services,St Peter's,Examination Fees,D52001,11/04/2011,9341219,291.9,Assessment & Qualifications Alliance,34231
Solihull MBC,http://statistics.data.gov.uk/id/local-authority/00CT,Children & Education Services,St Peter's,Examination Fees,D52001,11/04/2011,9341219,264.1,Assessment & Qualifications Alliance,34231
Solihull MBC,http://statistics.data.gov.uk/id/local-authority/00CT,Children & Education Services,St Peter's,Examination Fees,D52001,11/04/2011,9341219,157.25,Assessment & Qualifications Alliance,34231
Solihull MBC,http://statistics.data.gov.uk/id/local-authority/00CT,Children & Education Services,St Peter's,Examination Fees,D52001,11/04/2011,9341219,139,Assessment & Qualifications Alliance,34231
Solihull MBC,http://statistics.data.gov.uk/id/local-authority/00CT,Children & Education Services,St Peter's,Examination Fees,D52001,11/04/2011,9341219,132.05,Assessment & Qualifications Alliance,34231
Solihull MBC,http://statistics.data.gov.uk/id/local-authority/00CT,Children & Education Services,St Peter's,Examination Fees,D52001,11/04/2011,9341219,101.75,Assessment & Qualifications Alliance,34231
Solihull MBC,http://statistics.data.gov.uk/id/local-authority/00CT,Children & Education Services,St Peter's,Examination Fees,D52001,11/04/2011,9341219,55.6,Assessment & Qualifications Alliance,34231
Solihull MBC,http://statistics.data.gov.uk/id/local-authority/00CT,Children & Education Services,St Peter's,Examination Fees,D52001,11/04/2011,9341219,55.6,Assessment & Qualifications Alliance,34231
Solihull MBC,http://statistics.data.gov.uk/id/local-authority/00CT,Children & Education Services,St Peter's,Examination Fees,D52001,11/04/2011,9341219,55.6,Assessment & Qualifications Alliance,34231
Solihull MBC,http://statistics.data.gov.uk/id/local-authority/00CT,Children & Education Services,St Peter's,Examination Fees,D52001,11/04/2011,9341234,14801.7,Assessment & Qualifications Alliance,34231
Solihull MBC,http://statistics.data.gov.uk/id/local-authority/00CT,Children & Education Services,Langley Secondary,Examination Fees,D52001,27/04/2011,9610797,-1054.5,Assessment & Qualifications Alliance,34231
Solihull MBC,http://statistics.data.gov.uk/id/local-authority/00CT,Children & Education Services,St Peter's,Examination Fees,D52001,27/04/2011,9610913,760.55,Assessment & Qualifications Alliance,34231
Solihull MBC,http://statistics.data.gov.uk/id/local-authority/00CT,Children & Education Services,St Peter's,Examination Fees,D52001,27/04/2011,9610913,760.55,Assessment & Qualifications Alliance,34231
Solihull MBC,http://statistics.data.gov.uk/id/local-authority/00CT,Children & Education Services,St Peter's,Examination Fees,D52001,27/04/2011,9610913,649.25,Assessment & Qualifications Alliance,34231
Solihull MBC,http://statistics.data.gov.uk/id/local-authority/00CT,Children & Education Services,St Peter's,Examination Fees,D52001,27/04/2011,9610913,630.7,Assessment & Qualifications Alliance,34231
Solihull MBC,http://statistics.data.gov.uk/id/local-authority/00CT,Children & Education Services,St Peter's,Examination Fees,D52001,27/04/2011,9610913,593.6,Assessment & Qualifications Alliance,34231
Solihull MBC,http://statistics.data.gov.uk/id/local-authority/00CT,Children & Education Services,St Peter's,Examination Fees,D52001,27/04/2011,9610913,463.75,Assessment & Qualifications Alliance,34231
Solihull MBC,http://statistics.data.gov.uk/id/local-authority/00CT,Children & Education Services,St Peter's,Examination Fees,D52001,27/04/2011,9610913,384.4,Assessment & Qualifications Alliance,34231
Solihull MBC,http://statistics.data.gov.uk/id/local-authority/00CT,Children & Education Services,St Peter's,Examination Fees,D52001,27/04/2011,9610913,371,Assessment & Qualifications Alliance,34231
Solihull MBC,http://statistics.data.gov.uk/id/local-authority/00CT,Children & Education Services,St Peter's,Examination Fees,D52001,27/04/2011,9610913,371,Assessment & Qualifications Alliance,34231
Solihull MBC,http://statistics.data.gov.uk/id/local-authority/00CT,Children & Education Services,St Peter's,Examination Fees,D52001,27/04/2011,9610913,334.8,Assessment & Qualifications Alliance,34231
Solihull MBC,http://statistics.data.gov.uk/id/local-authority/00CT,Children & Education Services,St Peter's,Examination Fees,D52001,27/04/2011,9610913,333.9,Assessment & Qualifications Alliance,34231
Solihull MBC,http://statistics.data.gov.uk/id/local-authority/00CT,Children & Education Services,St Peter's,Examination Fees,D52001,27/04/2011,9610913,333.9,Assessment & Qualifications Alliance,34231
Solihull MBC,http://statistics.data.gov.uk/id/local-authority/00CT,Children & Education Services,St Peter's,Examination Fees,D52001,27/04/2011,9610913,310,Assessment & Qualifications Alliance,34231
Solihull MBC,http://statistics.data.gov.uk/id/local-authority/00CT,Children & Education Services,St Peter's,Examination Fees,D52001,27/04/2011,9610913,297.6,Assessment & Qualifications Alliance,34231
Solihull MBC,http://statistics.data.gov.uk/id/local-authority/00CT,Children & Education Services,St Peter's,Examination Fees,D52001,27/04/2011,9610913,272.8,Assessment & Qualifications Alliance,34231
Solihull MBC,http://statistics.data.gov.uk/id/local-authority/00CT,Children & Education Services,St Peter's,Examination Fees,D52001,27/04/2011,9610913,272.8,Assessment & Qualifications Alliance,34231
Solihull MBC,http://statistics.data.gov.uk/id/local-authority/00CT,Children & Education Services,St Peter's,Examination Fees,D52001,27/04/2011,9610913,186,Assessment & Qualifications Alliance,34231
Solihull MBC,http://statistics.data.gov.uk/id/local-authority/00CT,Children & Education Services,St Peter's,Examination Fees,D52001,27/04/2011,9610913,186,Assessment & Qualifications Alliance,34231
Solihull MBC,http://statistics.data.gov.uk/id/local-authority/00CT,Children & Education Services,St Peter's,Examination Fees,D52001,27/04/2011,9610913,186,Assessment & Qualifications Alliance,34231
Solihull MBC,http://statistics.data.gov.uk/id/local-authority/00CT,Children & Education Services,St Peter's,Examination Fees,D52001,27/04/2011,9610913,128.4,Assessment & Qualifications Alliance,34231
Solihull MBC,http://statistics.data.gov.uk/id/local-authority/00CT,Children & Education Services,St Peter's,Examination Fees,D52001,27/04/2011,9610913,42.9,Assessment & Qualifications Alliance,34231
Solihull MBC,http://statistics.data.gov.uk/id/local-authority/00CT,Children & Education Services,St Peter's,Examination Fees,D52001,27/04/2011,9610913,18.55,Assessment & Qualifications Alliance,34231
Solihull MBC,http://statistics.data.gov.uk/id/local-authority/00CT,Children & Education Services,St Peter's,Examination Fees,D52001,27/04/2011,9610913,18.55,Assessment & Qualifications Alliance,34231
Solihull MBC,http://statistics.data.gov.uk/id/local-authority/00CT,Children & Education Services,St Peter's,Examination Fees,D52001,27/04/2011,9610913,18.55,Assessment & Qualifications Alliance,34231
Solihull MBC,http://statistics.data.gov.uk/id/local-authority/00CT,Children & Education Services,St Peter's,Examination Fees,D52001,27/04/2011,9610913,14.3,Assessment & Qualifications Alliance,34231
Solihull MBC,http://statistics.data.gov.uk/id/local-authority/00CT,Children & Education Services,St Peter's,Examination Fees,D52001,27/04/2011,9610913,14.3,Assessment & Qualifications Alliance,34231
Solihull MBC,http://statistics.data.gov.uk/id/local-authority/00CT,Children & Education Services,St Peter's,Examination Fees,D52001,27/04/2011,9610913,12.4,Assessment & Qualifications Alliance,34231
Solihull MBC,http://statistics.data.gov.uk/id/local-authority/00CT,Children & Education Services,St Peter's,Examination Fees,D52001,27/04/2011,9610913,12.4,Assessment & Qualifications Alliance,34231
Solihull MBC,http://statistics.data.gov.uk/id/local-authority/00CT,Children & Education Services,St Peter's,Examination Fees,D52001,27/04/2011,9610913,12.4,Assessment & Qualifications Alliance,34231
Solihull MBC,http://statistics.data.gov.uk/id/local-authority/00CT,Children & Education Services,Broadband Line Rental,IT Equipment & Software,D32000,05/04/2011,8522743,12500,Assurix Ltd,285320
Solihull MBC,http://statistics.data.gov.uk/id/local-authority/00CT,Children & Education Services,Broadband Line Rental,IT Equipment & Software,D32000,05/04/2011,8522743,5000,Assurix Ltd,285320
Solihull MBC,http://statistics.data.gov.uk/id/local-authority/00CT,Children & Education Services,Broadband Line Rental,IT Equipment & Software,D32000,05/04/2011,8522743,2594,Assurix Ltd,285320
Solihull MBC,http://statistics.data.gov.uk/id/local-authority/00CT,Children & Education Services,Broadband Line Rental,IT Equipment & Software,D32000,05/04/2011,8522743,1900,Assurix Ltd,285320
Solihull MBC,http://statistics.data.gov.uk/id/local-authority/00CT,Children & Education Services,Coleshill Heath J&I,Building Maint Day To Day,B31001,28/04/2011,9614820,1099.2,Audible & Visual Security Ltd,6784
Solihull MBC,http://statistics.data.gov.uk/id/local-authority/00CT,Corporate & Democratic Core,External Audit Fees,Professional Fees,D51000,20/04/2011,9600215,27250,Audit Commission,6806
Solihull MBC,http://statistics.data.gov.uk/id/local-authority/00CT,Children & Education Services,Dcatch,Grant & Subscription (SCITT),D92000,08/04/2011,9198715,14989.25,Autism West Midlands,80510
Solihull MBC,http://statistics.data.gov.uk/id/local-authority/00CT,Central Services to the Public,Shared Services (Schools),Fees & Charges,I20000,06/04/2011,8754716,-2373.18,B H S F,7161
Solihull MBC,http://statistics.data.gov.uk/id/local-authority/00CT,Highways & Transport Services,A452 Kenilworth Rd / Bradnocks Marsh Ln,Contractors,Y21000,08/04/2011,9089715,5880.55,B J Leisure Installations Ltd,7195
Solihull MBC,http://statistics.data.gov.uk/id/local-authority/00CT,Children & Education Services,Adoption Services,Grant & Subscription (SCITT),D92000,05/04/2011,8522777,3551.04,BAAF,124674
Solihull MBC,http://statistics.data.gov.uk/id/local-authority/00CT,Children & Education Services,Adoption Services,Grant & Subscription (SCITT),D92000,05/04/2011,8522777,3116.39,BAAF,124674
Solihull MBC,http://statistics.data.gov.uk/id/local-authority/00CT,Children & Education Services,Adoption Services,Grant & Subscription (SCITT),D92000,05/04/2011,8522777,434.65,BAAF,124674
Solihull MBC,http://statistics.data.gov.uk/id/local-authority/00CT,Children & Education Services,Adoption Services,Grant & Subscription (SCITT),D92000,05/04/2011,8522777,-3551.04,BAAF,124674
Solihull MBC,http://statistics.data.gov.uk/id/local-authority/00CT,Children & Education Services,Fostering & Adoptn Panel,Professional Fees,D51000,13/04/2011,9347796,1110.6,BAAF,124674
Solihull MBC,http://statistics.data.gov.uk/id/local-authority/00CT,Children & Education Services,Youth Offending Team,Room Hire/ Premises Hire,D95000,05/04/2011,8522736,794.8,Bacons End Centre Welfare Fund,273026
Solihull MBC,http://statistics.data.gov.uk/id/local-authority/00CT,Children & Education Services,Bentley Heath Child Cent,Furniture & Equipment,D10000,06/04/2011,8627716,570,Baker Ward Ltd,235528
Solihull MBC,http://statistics.data.gov.uk/id/local-authority/00CT,Precepts Paid to Parish Councils,Parish Precepts,Parish Precepts,J10000,14/04/2011,9360731,47715,Balsall Parish Council,7561
Solihull MBC,http://statistics.data.gov.uk/id/local-authority/00CT,Children & Education Services,BSF Smithswood School Pro,Contractors,Y21000,28/04/2011,9614859,1160.25,BAM FM Ltd,228281
Solihull MBC,http://statistics.data.gov.uk/id/local-authority/00CT,Central Services to the Public,Income Team,Debit Card Charges,D52900,11/04/2011,,7400.12,Barclays,Direct Debit Payment
Solihull MBC,http://statistics.data.gov.uk/id/local-authority/00CT,Housing Revenue Account,HRA Client Mgt A/C,Payment Charges,D52702,11/04/2011,,689.77,Barclays,Direct Debit Payment
Solihull MBC,http://statistics.data.gov.uk/id/local-authority/00CT,Cultural & Related Services,Arts Complex Hirings,Other Fees,D52000,11/04/2011,,577.7,Barclays,Direct Debit Payment
Solihull MBC,http://statistics.data.gov.uk/id/local-authority/00CT,Environmental and Regulatory Services,Bereavement Services,Other Fees,D52000,11/04/2011,,95.62,Barclays,Direct Debit Payment
Solihull MBC,http://statistics.data.gov.uk/id/local-authority/00CT,Cultural & Related Services,Theatre Bar,Other Fees,D52000,11/04/2011,,39.61,Barclays,Direct Debit Payment
Solihull MBC,http://statistics.data.gov.uk/id/local-authority/00CT,Central Services to the Public,Income Team,Debit Card Charges,D52900,11/04/2011,,36,Barclays,Direct Debit Payment
Solihull MBC,http://statistics.data.gov.uk/id/local-authority/00CT,Cultural & Related Services,Arts Complex Hirings,Other Fees,D52000,11/04/2011,,30,Barclays,Direct Debit Payment
Solihull MBC,http://statistics.data.gov.uk/id/local-authority/00CT,Cultural & Related Services,Arts Complex Hirings,Other Fees,D52000,11/04/2011,,25,Barclays,Direct Debit Payment
Solihull MBC,http://statistics.data.gov.uk/id/local-authority/00CT,Cultural & Related Services,Theatre Bar,Other Fees,D52000,11/04/2011,,25,Barclays,Direct Debit Payment
Solihull MBC,http://statistics.data.gov.uk/id/local-authority/00CT,Children & Education Services,Langley Arts & Sports Complex,Other Fees,D52000,11/04/2011,,15,Barclays,Direct Debit Payment
Solihull MBC,http://statistics.data.gov.uk/id/local-authority/00CT,Environmental and Regulatory Services,Bereavement Services,Other Fees,D52000,11/04/2011,,15,Barclays,Direct Debit Payment
Solihull MBC,http://statistics.data.gov.uk/id/local-authority/00CT,Environmental and Regulatory Services,Bereavement Services,Other Fees,D52000,11/04/2011,,15,Barclays,Direct Debit Payment
Solihull MBC,http://statistics.data.gov.uk/id/local-authority/00CT,Cultural & Related Services,Arts Complex Hirings,Other Fees,D52000,11/04/2011,,14.4,Barclays,Direct Debit Payment
Solihull MBC,http://statistics.data.gov.uk/id/local-authority/00CT,Children & Education Services,Langley Arts & Sports Complex,Other Fees,D52000,11/04/2011,,8.07,Barclays,Direct Debit Payment
Solihull MBC,http://statistics.data.gov.uk/id/local-authority/00CT,Central Services to the Public,Income Team,Debit Card Charges,D52900,11/04/2011,,2.95,Barclays,Direct Debit Payment
Solihull MBC,http://statistics.data.gov.uk/id/local-authority/00CT,Environmental and Regulatory Services,Bereavement Services,Other Fees,D52000,11/04/2011,,2.26,Barclays,Direct Debit Payment
Solihull MBC,http://statistics.data.gov.uk/id/local-authority/00CT,Cultural & Related Services,Arts Complex Hirings,Other Fees,D52000,11/04/2011,,2.05,Barclays,Direct Debit Payment
Solihull MBC,http://statistics.data.gov.uk/id/local-authority/00CT,Housing Revenue Account,HRA Client Mgt A/C,Payment Charges,D52702,11/04/2011,,0.69,Barclays,Direct Debit Payment
Solihull MBC,http://statistics.data.gov.uk/id/local-authority/00CT,Planning & Development Services,Building Control Holding Account,Professional Fees,D51000,19/04/2011,9597895,1125,Barneveld Consultants,218451
Solihull MBC,http://statistics.data.gov.uk/id/local-authority/00CT,Planning & Development Services,Building Control Holding Account,Professional Fees,D51000,19/04/2011,9597895,27.14,Barneveld Consultants,218451
Solihull MBC,http://statistics.data.gov.uk/id/local-authority/00CT,Children & Education Services,Grants For Private Sector,Grant & Subscription (SCITT),D92000,21/04/2011,9604754,3550.05,Barnhouse Nursey (Eastcote),11122
Solihull MBC,http://statistics.data.gov.uk/id/local-authority/00CT,Children & Education Services,Grants For Private Sector,Grant & Subscription (SCITT),D92000,21/04/2011,9604818,1008.42,Barnhouse Nursey T/A Daycare At St Martins,207625
Solihull MBC,http://statistics.data.gov.uk/id/local-authority/00CT,Precepts Paid to Parish Councils,Parish Precepts,Parish Precepts,J10000,14/04/2011,9360732,1705,Barston Parish Council,7761
Solihull MBC,http://statistics.data.gov.uk/id/local-authority/00CT,Children & Education Services,Meriden C.Centre,Rents For Premises,B22000,12/04/2011,9344021,2974.85,Beechwood Childcare,7960
Solihull MBC,http://statistics.data.gov.uk/id/local-authority/00CT,Children & Education Services,Meriden C.Centre,Rents For Premises,B22000,12/04/2011,9344021,78.97,Beechwood Childcare,7960
Solihull MBC,http://statistics.data.gov.uk/id/local-authority/00CT,Children & Education Services,Grants For Private Sector,Grant & Subscription (SCITT),D92000,21/04/2011,9604725,4321.8,Beechwood Childcare,7960
Solihull MBC,http://statistics.data.gov.uk/id/local-authority/00CT,Children & Education Services,Grants For Private Sector,Grant & Subscription (SCITT),D92000,21/04/2011,9604726,1543.5,Beechwood Childcare,7960
Solihull MBC,http://statistics.data.gov.uk/id/local-authority/00CT,Children & Education Services,Grants For Private Sector,Grant & Subscription (SCITT),D92000,21/04/2011,9604727,3241.35,Beechwood Childcare,7960
Solihull MBC,http://statistics.data.gov.uk/id/local-authority/00CT,Children & Education Services,Section 17 Chelmsley Wood,Clients Expenses,D62000,27/04/2011,9610794,562.5,Beechwood Childcare,7960
Solihull MBC,http://statistics.data.gov.uk/id/local-authority/00CT,Children & Education Services,Grants For Private Sector,Grant & Subscription (SCITT),D92000,21/04/2011,9604724,2016.84,Beechwood Childcare (Mill Lodge),7949
Solihull MBC,http://statistics.data.gov.uk/id/local-authority/00CT,Children & Education Services,Legal And General,Professional Fees,D51000,19/04/2011,9597864,600,Bellamy & Associates Ltd,578603
Solihull MBC,http://statistics.data.gov.uk/id/local-authority/00CT,Children & Education Services,St John The Baptist J&I,Building Maint Planned,B31002,11/04/2011,9341272,832,Berben Installations Ltd,20346
Solihull MBC,http://statistics.data.gov.uk/id/local-authority/00CT,Precepts Paid to Parish Councils,Parish Precepts,Parish Precepts,J10000,14/04/2011,9360733,18600,Berkswell Parish Council,8138
Solihull MBC,http://statistics.data.gov.uk/id/local-authority/00CT,Adult Social Care,SP - Old People Support Needs,Other Contracted Services,E29000,28/04/2011,9614722,780,Berrow Cottage Homes,88317
Solihull MBC,http://statistics.data.gov.uk/id/local-authority/00CT,Environmental and Regulatory Services,Waste Disp Jt Ac Recy Crs,Other Contracted Services,E29000,18/04/2011,9483715,1143.29,Berryman,67256
Solihull MBC,http://statistics.data.gov.uk/id/local-authority/00CT,Precepts Paid to Parish Councils,Parish Precepts,Parish Precepts,J10000,14/04/2011,9360734,63061.5,Bickenhill Parish Council,8417
Solihull MBC,http://statistics.data.gov.uk/id/local-authority/00CT,Highways & Transport Services,Tankers,Other Contracted Services,E29000,05/04/2011,8522814,500,BIFFA Waste Services Ltd,29923
Solihull MBC,http://statistics.data.gov.uk/id/local-authority/00CT,Highways & Transport Services,Tankers,Other Contracted Services,E29000,05/04/2011,8522814,500,BIFFA Waste Services Ltd,29923
Solihull MBC,http://statistics.data.gov.uk/id/local-authority/00CT,Highways & Transport Services,Tankers,Other Contracted Services,E29000,05/04/2011,8522814,-500,BIFFA Waste Services Ltd,29923
Solihull MBC,http://statistics.data.gov.uk/id/local-authority/00CT,Cultural & Related Services,Arts Complex Hirings,Other Fees,D52000,27/04/2011,9610902,2000,Big Bear Music Group,53798
Solihull MBC,http://statistics.data.gov.uk/id/local-authority/00CT,Children & Education Services,Section 17 South/Central,Clients Expenses,D62000,06/04/2011,8542763,841.5,Billy Bears Nursery,102085
Solihull MBC,http://statistics.data.gov.uk/id/local-authority/00CT,Children & Education Services,Shirley Sth B(O Award) CC,Cleaning Contracts,B40001,12/04/2011,9346890,460,Billy Bears Nursery,102085
Solihull MBC,http://statistics.data.gov.uk/id/local-authority/00CT,Children & Education Services,Shirley Sth B(O Award) CC,Repair & Maintn Of Buildings,B31000,12/04/2011,9346890,72,Billy Bears Nursery,102085
Solihull MBC,http://statistics.data.gov.uk/id/local-authority/00CT,Children & Education Services,Grants For Private Sector,Grant & Subscription (SCITT),D92000,21/04/2011,9604786,6791.4,Billy Bears Nursery,102085
Solihull MBC,http://statistics.data.gov.uk/id/local-authority/00CT,Children & Education Services,Grants For Private Sector,Grant & Subscription (SCITT),D92000,21/04/2011,9604787,1852.2,Billy Bears Nursery,102085
Solihull MBC,http://statistics.data.gov.uk/id/local-authority/00CT,Children & Education Services,Diploma Consortium Grant,Training,A32000,04/04/2011,8512490,2500,Birmingham & Solihull WBL Providers Network,662608
Solihull MBC,http://statistics.data.gov.uk/id/local-authority/00CT,Children & Education Services,Childrens Social Work,Training,A32000,11/04/2011,9341017,1000,Birmingham And Solihull Women's Aid,247871
Solihull MBC,http://statistics.data.gov.uk/id/local-authority/00CT,Children & Education Services,Connexions ABG,Training,A32000,01/04/2011,8498715,5000,Birmingham City Council,8616
Solihull MBC,http://statistics.data.gov.uk/id/local-authority/00CT,Children & Education Services,Combined Budgets Contribs,Professional Fees,D51000,12/04/2011,9346961,8244.5,Birmingham City Council,8616
Solihull MBC,http://statistics.data.gov.uk/id/local-authority/00CT,Highways & Transport Services,JDT Client Monitoring,General Debtors,R20000,21/04/2011,9601935,508.06,Birmingham City Council,8616
Solihull MBC,http://statistics.data.gov.uk/id/local-authority/00CT,Highways & Transport Services,Street Lighting Contract 1,Training,A32000,18/03/2011,PC47713,1020,Birmingham Comrcl Trn,Purchase Card Supplier
Solihull MBC,http://statistics.data.gov.uk/id/local-authority/00CT,Environmental and Regulatory Services,Pest Control,Other Fees,D52000,28/04/2011,9614901,1045.83,Birmingham Dogs Home,110603
Solihull MBC,http://statistics.data.gov.uk/id/local-authority/00CT,Children & Education Services,Forest Oak,Link Courses,D52003,07/04/2011,8808751,900,Birmingham Wheels Park,78549
Solihull MBC,http://statistics.data.gov.uk/id/local-authority/00CT,Adult Social Care,SP - Women At Risk Dom Voilence,Other Contracted Services,E29000,27/04/2011,9613715,26891.7,Birmingham Womens Aid,88318
Solihull MBC,http://statistics.data.gov.uk/id/local-authority/00CT,Children & Education Services,Castle Bromwch Youth Cntre,Furniture & Equipment,D10000,23/03/2011,PC67323,820.78,Blockbuster,Purchase Card Supplier
Solihull MBC,http://statistics.data.gov.uk/id/local-authority/00CT,Children & Education Services,Monkspath Childrens Cent,Visits & Pupil Activities,D52002,06/04/2011,8543038,1000,Blossom & Berry,870611
Solihull MBC,http://statistics.data.gov.uk/id/local-authority/00CT,Children & Education Services,Lanchester PRU,Other Contracted Services,E29000,26/04/2011,9605822,450,Blue Whale Training Ltd,277526
Solihull MBC,http://statistics.data.gov.uk/id/local-authority/00CT,Children & Education Services,16+ Southwark Cases,Rents For Premises,B22000,04/04/2011,8512477,945,Blueberry Housing Ltd,208121
Solihull MBC,http://statistics.data.gov.uk/id/local-authority/00CT,Children & Education Services,16+ Southwark Cases,Rents For Premises,B22000,04/04/2011,8512477,604.5,Blueberry Housing Ltd,208121
Solihull MBC,http://statistics.data.gov.uk/id/local-authority/00CT,Children & Education Services,16+ Southwark Cases,Rents For Premises,B22000,04/04/2011,8512477,0.5,Blueberry Housing Ltd,208121
Solihull MBC,http://statistics.data.gov.uk/id/local-authority/00CT,Children & Education Services,16+ Southwark Cases,Rents For Premises,B22000,04/04/2011,8512480,945.01,Blueberry Housing Ltd,208121
Solihull MBC,http://statistics.data.gov.uk/id/local-authority/00CT,Children & Education Services,16+ Southwark Cases,Rents For Premises,B22000,04/04/2011,8512480,604.5,Blueberry Housing Ltd,208121
Solihull MBC,http://statistics.data.gov.uk/id/local-authority/00CT,Children & Education Services,16+ Southwark Cases,Clients Expenses,D62000,04/04/2011,8512480,207.4,Blueberry Housing Ltd,208121
Solihull MBC,http://statistics.data.gov.uk/id/local-authority/00CT,Children & Education Services,16+ Southwark Cases,Clients Transport Costs,C21000,04/04/2011,8512480,52,Blueberry Housing Ltd,208121
Solihull MBC,http://statistics.data.gov.uk/id/local-authority/00CT,Children & Education Services,16+ Southwark Cases,Rents For Premises,B22000,04/04/2011,8512480,0.49,Blueberry Housing Ltd,208121
Solihull MBC,http://statistics.data.gov.uk/id/local-authority/00CT,Children & Education Services,Grants For Private Sector,Grant & Subscription (SCITT),D92000,21/04/2011,9604798,6945.75,Bosworth Wood Neighbourhood Nursery-Lawnswood,130961
Solihull MBC,http://statistics.data.gov.uk/id/local-authority/00CT,Children & Education Services,Grants For Private Sector,Grant & Subscription (SCITT),D92000,21/04/2011,9604799,926.1,Bosworth Wood Neighbourhood Nursery-Lawnswood,130961
Solihull MBC,http://statistics.data.gov.uk/id/local-authority/00CT,Children & Education Services,Parkhall Academy Catering,Catering Provisions,D20000,06/04/2011,8712074,577.37,Brake Bros Foodservice Ltd,9490
Solihull MBC,http://statistics.data.gov.uk/id/local-authority/00CT,Children & Education Services,Alderbrook,Catering Provisions,D20000,06/04/2011,8712206,916.95,Brake Bros Foodservice Ltd,9490
Solihull MBC,http://statistics.data.gov.uk/id/local-authority/00CT,Children & Education Services,Alderbrook,Catering Provisions,D20000,06/04/2011,8712207,617.6,Brake Bros Foodservice Ltd,9490
Solihull MBC,http://statistics.data.gov.uk/id/local-authority/00CT,Children & Education Services,Heart Of England,Catering Provisions,D20000,06/04/2011,8712208,601.45,Brake Bros Foodservice Ltd,9490
Solihull MBC,http://statistics.data.gov.uk/id/local-authority/00CT,Children & Education Services,Parkhall Academy Catering,Catering Provisions,D20000,06/04/2011,8712209,596.6,Brake Bros Foodservice Ltd,9490
Solihull MBC,http://statistics.data.gov.uk/id/local-authority/00CT,Children & Education Services,Parkhall Academy Catering,Catering Provisions,D20000,06/04/2011,8712210,669.38,Brake Bros Foodservice Ltd,9490
Solihull MBC,http://statistics.data.gov.uk/id/local-authority/00CT,Children & Education Services,Lode Heath,Catering Provisions,D20000,06/04/2011,8712211,510.6,Brake Bros Foodservice Ltd,9490
Solihull MBC,http://statistics.data.gov.uk/id/local-authority/00CT,Children & Education Services,Langley,Catering Provisions,D20000,06/04/2011,8712212,509.15,Brake Bros Foodservice Ltd,9490
Solihull MBC,http://statistics.data.gov.uk/id/local-authority/00CT,Children & Education Services,Heart Of England,Catering Provisions,D20000,06/04/2011,8712213,602.88,Brake Bros Foodservice Ltd,9490
Solihull MBC,http://statistics.data.gov.uk/id/local-authority/00CT,Children & Education Services,Arden,Catering Provisions,D20000,06/04/2011,8712214,587.86,Brake Bros Foodservice Ltd,9490
Solihull MBC,http://statistics.data.gov.uk/id/local-authority/00CT,Children & Education Services,Arden,Catering Provisions,D20000,06/04/2011,8712215,476.85,Brake Bros Foodservice Ltd,9490
Solihull MBC,http://statistics.data.gov.uk/id/local-authority/00CT,Children & Education Services,Light Hall,Catering Provisions,D20000,06/04/2011,8712216,454.7,Brake Bros Foodservice Ltd,9490
Solihull MBC,http://statistics.data.gov.uk/id/local-authority/00CT,Children & Education Services,Parkhall Academy Catering,Catering Provisions,D20000,06/04/2011,8806934,531.66,Brake Bros Foodservice Ltd,9490
Solihull MBC,http://statistics.data.gov.uk/id/local-authority/00CT,Children & Education Services,Parkhall Academy Catering,Catering Provisions,D20000,06/04/2011,8807071,583.65,Brake Bros Foodservice Ltd,9490
Solihull MBC,http://statistics.data.gov.uk/id/local-authority/00CT,Children & Education Services,Alderbrook,Catering Provisions,D20000,06/04/2011,8807072,648.38,Brake Bros Foodservice Ltd,9490
Solihull MBC,http://statistics.data.gov.uk/id/local-authority/00CT,Children & Education Services,Alderbrook,Catering Provisions,D20000,06/04/2011,8807073,530.85,Brake Bros Foodservice Ltd,9490
Solihull MBC,http://statistics.data.gov.uk/id/local-authority/00CT,Children & Education Services,Parkhall Academy Catering,Catering Provisions,D20000,06/04/2011,8807074,634.64,Brake Bros Foodservice Ltd,9490
Solihull MBC,http://statistics.data.gov.uk/id/local-authority/00CT,Children & Education Services,Lyndon,Catering Provisions,D20000,06/04/2011,8807075,525.55,Brake Bros Foodservice Ltd,9490
Solihull MBC,http://statistics.data.gov.uk/id/local-authority/00CT,Children & Education Services,Heart Of England,Catering Provisions,D20000,06/04/2011,8807076,590.22,Brake Bros Foodservice Ltd,9490
Solihull MBC,http://statistics.data.gov.uk/id/local-authority/00CT,Children & Education Services,Marston Grn Jnr,Catering Provisions,D20000,06/04/2011,8807077,503.84,Brake Bros Foodservice Ltd,9490
Solihull MBC,http://statistics.data.gov.uk/id/local-authority/00CT,Children & Education Services,Light Hall,Catering Provisions,D20000,06/04/2011,8807078,417.8,Brake Bros Foodservice Ltd,9490
Solihull MBC,http://statistics.data.gov.uk/id/local-authority/00CT,Central Services to the Public,Gas,General Creditors,S00000,14/04/2011,9360722,141448.16,British Gas,133203
Solihull MBC,http://statistics.data.gov.uk/id/local-authority/00CT,Central Services to the Public,Gas,General Creditors,S00000,14/04/2011,9360722,107719.59,British Gas,133203
Solihull MBC,http://statistics.data.gov.uk/id/local-authority/00CT,Central Services to the Public,Gas,General Creditors,S00000,14/04/2011,9360722,33728.57,British Gas,133203
Solihull MBC,http://statistics.data.gov.uk/id/local-authority/00CT,Central Services to the Public,Gas,General Creditors,S00000,14/04/2011,9360722,-33728.57,British Gas,133203
Solihull MBC,http://statistics.data.gov.uk/id/local-authority/00CT,Central Services to the Public,Gas,General Creditors,S00000,14/04/2011,9360722,-107719.59,British Gas,133203
Solihull MBC,http://statistics.data.gov.uk/id/local-authority/00CT,Central Services to the Public,Gas,General Creditors,S00000,18/04/2011,9535715,534.55,British Gas,133203
Solihull MBC,http://statistics.data.gov.uk/id/local-authority/00CT,Central Services to the Public,Gas,General Creditors,S00000,18/04/2011,9537715,1681.43,British Gas,133203
Solihull MBC,http://statistics.data.gov.uk/id/local-authority/00CT,Central Services to the Public,Gas,General Creditors,S00000,18/04/2011,9540715,564.15,British Gas,133203
Solihull MBC,http://statistics.data.gov.uk/id/local-authority/00CT,Cultural & Related Services,Theatre Bar,Catering Provisions,D20000,05/04/2011,8522794,454.14,Britvic Soft Drinks Ltd,9656
Solihull MBC,http://statistics.data.gov.uk/id/local-authority/00CT,Children & Education Services,16+ (S24) 16-18 Years,Rents For Premises,B22000,04/04/2011,8512046,555.26,Bromford Corinthia Housing Association Ltd T/A Bromford Housing Group Ltd,60417
Solihull MBC,http://statistics.data.gov.uk/id/local-authority/00CT,Children & Education Services,16+ (S24) 16-18 Years,Rents For Premises,B22000,04/04/2011,8512046,264.73,Bromford Corinthia Housing Association Ltd T/A Bromford Housing Group Ltd,60417
Solihull MBC,http://statistics.data.gov.uk/id/local-authority/00CT,Adult Social Care,SP - People With Physical Disabiilities,Other Contracted Services,E29000,27/04/2011,9611050,4695.6,Bromford Corinthia Housing Association Ltd T/A Bromford Housing Group Ltd,60417
Solihull MBC,http://statistics.data.gov.uk/id/local-authority/00CT,Adult Social Care,SP - Single Homeless,Other Contracted Services,E29000,27/04/2011,9611051,4233.42,Bromford Corinthia Housing Association Ltd T/A Bromford Housing Group Ltd,60417
Solihull MBC,http://statistics.data.gov.uk/id/local-authority/00CT,Adult Social Care,SP - Young Vulnerable People,Other Contracted Services,E29000,27/04/2011,9611052,2784.35,Bromford Corinthia Housing Association Ltd T/A Bromford Housing Group Ltd,60417
Solihull MBC,http://statistics.data.gov.uk/id/local-authority/00CT,Adult Social Care,SP - Teenage Parents,Other Contracted Services,E29000,27/04/2011,9611053,8137.8,Bromford Corinthia Housing Association Ltd T/A Bromford Housing Group Ltd,60417
Solihull MBC,http://statistics.data.gov.uk/id/local-authority/00CT,Adult Social Care,SP - Generic,Other Contracted Services,E29000,27/04/2011,9611054,3482.65,Bromford Corinthia Housing Association Ltd T/A Bromford Housing Group Ltd,60417
Solihull MBC,http://statistics.data.gov.uk/id/local-authority/00CT,Adult Social Care,SP - Old People Support Needs,Other Contracted Services,E29000,28/04/2011,9615755,953.9,Bromford Corinthia Housing Association Ltd T/A Bromford Housing Group Ltd,60417
Solihull MBC,http://statistics.data.gov.uk/id/local-authority/00CT,Adult Social Care,SP - Learning Disabilities,Other Contracted Services,E29000,28/04/2011,9615756,23912.6,Bromford Corinthia Housing Association Ltd T/A Bromford Housing Group Ltd,60417
Solihull MBC,http://statistics.data.gov.uk/id/local-authority/00CT,Children & Education Services,Streetsbrook Inf PCP,Consultants,Y31000,21/04/2011,9602024,6649.44,Brown Matthews,215517
Solihull MBC,http://statistics.data.gov.uk/id/local-authority/00CT,Children & Education Services,West Midlands Sen Hub,Professional Fees,D51000,12/04/2011,9346934,812.75,Browne Jacobson,9671
Solihull MBC,http://statistics.data.gov.uk/id/local-authority/00CT,Highways & Transport Services,Street Lighting Contract 1,Agency Staff,A35000,08/04/2011,9299715,975,Brownstown Civil Engineering Ltd,412598
Solihull MBC,http://statistics.data.gov.uk/id/local-authority/00CT,Highways & Transport Services,Street Lighting Contract 1,Agency Staff,A35000,26/04/2011,9608019,1625,Brownstown Civil Engineering Ltd,412598
Solihull MBC,http://statistics.data.gov.uk/id/local-authority/00CT,Central Services to the Public,Social Care ICT,IT Equipment & Software,D32000,06/04/2011,8542780,661.71,BT Global Services,138961
Solihull MBC,http://statistics.data.gov.uk/id/local-authority/00CT,Central Services to the Public,Contact Centre,Telephones,D30000,12/04/2011,9346931,2909,BT Global Services,138961
Solihull MBC,http://statistics.data.gov.uk/id/local-authority/00CT,Central Services to the Public,Contact Centre,Telephones,D30000,12/04/2011,9346931,30,BT Global Services,138961
Solihull MBC,http://statistics.data.gov.uk/id/local-authority/00CT,Central Services to the Public,BT - One Bill,General Creditors,S00000,12/04/2011,9346954,13652.92,BT Global Services,138961
Solihull MBC,http://statistics.data.gov.uk/id/local-authority/00CT,Central Services to the Public,Telecommunication Support,Telephones,D30000,28/04/2011,9618863,816.07,BT Global Services,138961
Solihull MBC,http://statistics.data.gov.uk/id/local-authority/00CT,Children & Education Services,Reynalds Cross,Building Maint Day To Day,B31001,26/04/2011,9607908,944,Buckingham Swimming Pools Limited,142138
Solihull MBC,http://statistics.data.gov.uk/id/local-authority/00CT,Highways & Transport Services,TH&E Service Developement,Advertising/Publicity/Promotion,D93000,28/04/2011,9614908,9000,Building Software Limited,83638
Solihull MBC,http://statistics.data.gov.uk/id/local-authority/00CT,Children & Education Services,Grants For Private Sector,Grant & Subscription (SCITT),D92000,21/04/2011,9604759,8273.16,Busy Bees Childcare Ltd,48320
Solihull MBC,http://statistics.data.gov.uk/id/local-authority/00CT,Children & Education Services,Grants For Private Sector,Grant & Subscription (SCITT),D92000,21/04/2011,9604760,1049.58,Busy Bees Childcare Ltd,48320
Solihull MBC,http://statistics.data.gov.uk/id/local-authority/00CT,Children & Education Services,Grants For Private Sector,Grant & Subscription (SCITT),D92000,21/04/2011,9604761,9754.92,Busy Bees Childcare Ltd,48320
Solihull MBC,http://statistics.data.gov.uk/id/local-authority/00CT,Children & Education Services,Grants For Private Sector,Grant & Subscription (SCITT),D92000,21/04/2011,9604762,3889.62,Busy Bees Childcare Ltd,48320
Solihull MBC,http://statistics.data.gov.uk/id/local-authority/00CT,Children & Education Services,2Yr Old Free E Learn/Care,Grant & Subscription (SCITT),D92000,11/04/2011,9341251,1274.34,Busy Little Bees Nursery,52108
Solihull MBC,http://statistics.data.gov.uk/id/local-authority/00CT,Children & Education Services,Grants For Private Sector,Grant & Subscription (SCITT),D92000,21/04/2011,9604765,6534.15,Busy Little Bees Nursery,52108
Solihull MBC,http://statistics.data.gov.uk/id/local-authority/00CT,Children & Education Services,Grants For Private Sector,Grant & Subscription (SCITT),D92000,21/04/2011,9604808,5505.15,Buttercups & Dandelions Day Nursery,143990
Solihull MBC,http://statistics.data.gov.uk/id/local-authority/00CT,Children & Education Services,Grants For Private Sector,Grant & Subscription (SCITT),D92000,21/04/2011,9604809,926.1,Buttercups & Dandelions Day Nursery,143990
Solihull MBC,http://statistics.data.gov.uk/id/local-authority/00CT,Children & Education Services,Lanchester PRU,Other Contracted Services,E29000,26/04/2011,9605724,1215,BXL Services,228729
Solihull MBC,http://statistics.data.gov.uk/id/local-authority/00CT,Children & Education Services,Lanchester PRU,Other Contracted Services,E29000,26/04/2011,9607902,729,BXL Services,228729
Solihull MBC,http://statistics.data.gov.uk/id/local-authority/00CT,Children & Education Services,Lanchester PRU,Other Contracted Services,E29000,26/04/2011,9607904,-729,BXL Services,228729
Solihull MBC,http://statistics.data.gov.uk/id/local-authority/00CT,Children & Education Services,16+ Childrens Placements,Ext Fostering Long Stay,D50101,04/04/2011,8512003,2235.43,By The Bridge,108127
Solihull MBC,http://statistics.data.gov.uk/id/local-authority/00CT,Children & Education Services,Ext. Fostering CIC,Foster Parents,D50000,05/04/2011,8517720,4264.29,By The Bridge,108127
Solihull MBC,http://statistics.data.gov.uk/id/local-authority/00CT,Children & Education Services,Ext. Fostering CIC,Foster Parents,D50000,05/04/2011,8517729,3963.57,By The Bridge,108127
Solihull MBC,http://statistics.data.gov.uk/id/local-authority/00CT,Children & Education Services,Ext. Fostering CIC,Foster Parents,D50000,06/04/2011,8542774,-511.43,By The Bridge,108127
Solihull MBC,http://statistics.data.gov.uk/id/local-authority/00CT,Children & Education Services,Monkspath J&I,Visits & Pupil Activities,D52002,07/04/2011,8810863,648,C & H Bradbury Limited,105573
Solihull MBC,http://statistics.data.gov.uk/id/local-authority/00CT,Children & Education Services,Our Lady Wayside J&I,Visits & Pupil Activities,D52002,14/04/2011,9358772,432,C & H Bradbury Limited,105573
Solihull MBC,http://statistics.data.gov.uk/id/local-authority/00CT,Environmental and Regulatory Services,Public Health Act Funeral,General Creditors,S00000,12/04/2011,9346889,727,C Bastock (Funeral Directors)Ltd,9719
Solihull MBC,http://statistics.data.gov.uk/id/local-authority/00CT,Central Services to the Public,ICT: Network Support,IT Equipment & Software,D32000,06/04/2011,8542928,1217.48,Cable & Wireless Communications,9750
Solihull MBC,http://statistics.data.gov.uk/id/local-authority/00CT,Central Services to the Public,ICT: Network Support,IT Equipment & Software,D32000,06/04/2011,8542929,1437.88,Cable & Wireless Communications,9750
Solihull MBC,http://statistics.data.gov.uk/id/local-authority/00CT,Central Services to the Public,ICT: Network Support,IT Equipment & Software,D32000,06/04/2011,8542931,1748.39,Cable & Wireless Communications,9750
Solihull MBC,http://statistics.data.gov.uk/id/local-authority/00CT,Central Services to the Public,ICT: Network Support,IT Equipment & Software,D32000,08/04/2011,9202715,1241.38,Cable & Wireless Communications,9750
Solihull MBC,http://statistics.data.gov.uk/id/local-authority/00CT,Highways & Transport Services,JDT Client Monitoring,General Debtors,R20000,06/04/2011,8542943,2989.8,Calibre Advisory Services Ltd,9757
Solihull MBC,http://statistics.data.gov.uk/id/local-authority/00CT,Highways & Transport Services,JDT Client Monitoring,General Debtors,R20000,06/04/2011,8542946,2102.75,Calibre Advisory Services Ltd,9757
Solihull MBC,http://statistics.data.gov.uk/id/local-authority/00CT,Highways & Transport Services,JDT Client Monitoring,General Debtors,R20000,11/04/2011,9340841,1543.7,Calibre Advisory Services Ltd,9757
Solihull MBC,http://statistics.data.gov.uk/id/local-authority/00CT,Children & Education Services,Kingshurst Primary,Photocopying,D40001,08/04/2011,9258715,1259.61,Canon (UK) Ltd,9772
Solihull MBC,http://statistics.data.gov.uk/id/local-authority/00CT,Children & Education Services,Grants For Private Sector,Grant & Subscription (SCITT),D92000,21/04/2011,9604823,3992.52,Capellas Nursery,229940
Solihull MBC,http://statistics.data.gov.uk/id/local-authority/00CT,Children & Education Services,Light Hall,Software Licenses & Support,D32906,04/04/2011,8512398,1995,Capita Business Services Ltd,9778
Solihull MBC,http://statistics.data.gov.uk/id/local-authority/00CT,Children & Education Services,Coleshill Heath J&I,Training,A32000,08/04/2011,9269715,798,Capita Business Services Ltd.,99513
Solihull MBC,http://statistics.data.gov.uk/id/local-authority/00CT,Children & Education Services,EIMS Service Package,IT Equipment & Software,D32000,13/04/2011,9347864,102284.14,Capita Business Services Ltd.,99513
Solihull MBC,http://statistics.data.gov.uk/id/local-authority/00CT,Adult Social Care,SP - Travellers,Other Contracted Services,E29000,27/04/2011,9613718,4983.65,Cara Irish Housing Association,127592
Solihull MBC,http://statistics.data.gov.uk/id/local-authority/00CT,Children & Education Services,16+ (S24) 16-18 Years,Rents For Premises,B22000,04/04/2011,8512326,4307.22,Care & Management Services Ltd,273213
Solihull MBC,http://statistics.data.gov.uk/id/local-authority/00CT,Children & Education Services,16+ (S24) 16-18 Years,Rents For Premises,B22000,04/04/2011,8512326,-0.06,Care & Management Services Ltd,273213
Solihull MBC,http://statistics.data.gov.uk/id/local-authority/00CT,Children & Education Services,Residential CIC,Other Contracted Services,E29000,05/04/2011,8517826,12400,Care & Management Services Ltd,273213
Solihull MBC,http://statistics.data.gov.uk/id/local-authority/00CT,Children & Education Services,16+ Childrens Placements,Other Contracted Services,E29000,05/04/2011,8522958,6642.87,Care & Management Services Ltd,273213
Solihull MBC,http://statistics.data.gov.uk/id/local-authority/00CT,Children & Education Services,Child Disability Dom Care,Clients Expenses,D62000,12/04/2011,9346997,1841,Care Help Line (Solihull) Ltd,9791
Solihull MBC,http://statistics.data.gov.uk/id/local-authority/00CT,Children & Education Services,Child Disability Dom Care,Clients Expenses,D62000,12/04/2011,9347000,586.5,Care Help Line (Solihull) Ltd,9791
Solihull MBC,http://statistics.data.gov.uk/id/local-authority/00CT,Adult Social Care,ADSS Directorate,Other Contracted Services,E29000,01/04/2011,8503715,2186,Care Quality Commission,323602
Solihull MBC,http://statistics.data.gov.uk/id/local-authority/00CT,Children & Education Services,Alderbrook,Consumables,D32907,06/04/2011,8546720,1622.52,Cartridge World Solihull,90956
Solihull MBC,http://statistics.data.gov.uk/id/local-authority/00CT,Children & Education Services,UASC U16,Foster Parents,D50000,12/04/2011,9343841,506.82,Cassell Mcintosh Grant,206244
Solihull MBC,http://statistics.data.gov.uk/id/local-authority/00CT,Children & Education Services,UASC U16,Foster Parents,D50000,18/04/2011,9368750,1182.57,Cassell Mcintosh Grant,206244
Solihull MBC,http://statistics.data.gov.uk/id/local-authority/00CT,Children & Education Services,UASC U16,Foster Parents,D50000,18/04/2011,9368772,1061.61,Cassell Mcintosh Grant,206244
Solihull MBC,http://statistics.data.gov.uk/id/local-authority/00CT,Central Services to the Public,Community Initiatives Fund,Grant & Subscription (SCITT),D92000,14/04/2011,9360735,11357.25,Castle Bromwich Hall Gardens,9817
Solihull MBC,http://statistics.data.gov.uk/id/local-authority/00CT,Precepts Paid to Parish Councils,Parish Precepts,Parish Precepts,J10000,14/04/2011,9360736,109644,Castle Bromwich Parish Council,19761
Solihull MBC,http://statistics.data.gov.uk/id/local-authority/00CT,Central Services to the Public,Legal Services,Other Fees,D52000,13/04/2011,9347861,1200,Catherine Rowlands,92338
Solihull MBC,http://statistics.data.gov.uk/id/local-authority/00CT,Central Services to the Public,Legal Services,Other Fees,D52000,13/04/2011,9347863,1020,Catherine Rowlands,92338
Solihull MBC,http://statistics.data.gov.uk/id/local-authority/00CT,Children & Education Services,Childrens SW-Smiths Wood,General Office Expenses,D42000,28/04/2011,9618846,462.65,Cave Tab PLC,9827
Solihull MBC,http://statistics.data.gov.uk/id/local-authority/00CT,Central Services to the Public,Statutory Complaints,IT Equipment & Software,D32000,18/04/2011,9480715,2841.3,CDC Respond,279483
Solihull MBC,http://statistics.data.gov.uk/id/local-authority/00CT,Highways & Transport Services,Street Lighting Contract 1,Furniture & Equipment,D10000,15/04/2011,9364833,2368.8,Cemex UK Materials Ltd,123427
Solihull MBC,http://statistics.data.gov.uk/id/local-authority/00CT,Children & Education Services,Catering Management,Furniture & Equipment,D10000,12/04/2011,9345745,1012,Central Kitchen Solutions,272502
Solihull MBC,http://statistics.data.gov.uk/id/local-authority/00CT,Children & Education Services,Catering Management,Furniture & Equipment,D10000,12/04/2011,9345745,1012,Central Kitchen Solutions,272502
Solihull MBC,http://statistics.data.gov.uk/id/local-authority/00CT,Children & Education Services,Catering Management,Furniture & Equipment,D10000,12/04/2011,9345745,1012,Central Kitchen Solutions,272502
Solihull MBC,http://statistics.data.gov.uk/id/local-authority/00CT,Children & Education Services,Catering Management,Furniture & Equipment,D10000,12/04/2011,9345745,1012,Central Kitchen Solutions,272502
Solihull MBC,http://statistics.data.gov.uk/id/local-authority/00CT,Children & Education Services,Catering Management,Furniture & Equipment,D10000,12/04/2011,9345745,1012,Central Kitchen Solutions,272502
Solihull MBC,http://statistics.data.gov.uk/id/local-authority/00CT,Children & Education Services,Catering Management,Furniture & Equipment,D10000,12/04/2011,9345745,1012,Central Kitchen Solutions,272502
Solihull MBC,http://statistics.data.gov.uk/id/local-authority/00CT,Children & Education Services,Catering Management,Furniture & Equipment,D10000,13/04/2011,9347868,1648,Central Kitchen Solutions,272502
Solihull MBC,http://statistics.data.gov.uk/id/local-authority/00CT,Children & Education Services,Catering Management,Furniture & Equipment,D10000,13/04/2011,9347869,1012,Central Kitchen Solutions,272502
Solihull MBC,http://statistics.data.gov.uk/id/local-authority/00CT,Highways & Transport Services,Street Lighting Contract 1,Other Contracted Services,E29000,18/04/2011,9518715,784.34,Central Networks,107389
Solihull MBC,http://statistics.data.gov.uk/id/local-authority/00CT,Children & Education Services,Licence Fees,Other Fees,D52000,13/04/2011,9347728,8342.08,Centre For Education & Finance Management,121410
Solihull MBC,http://statistics.data.gov.uk/id/local-authority/00CT,Children & Education Services,Licence Fees,Other Fees,D52000,13/04/2011,9347729,6630.65,Centre For Education & Finance Management,121410
Solihull MBC,http://statistics.data.gov.uk/id/local-authority/00CT,Children & Education Services,Licence Fees,Other Fees,D52000,13/04/2011,9347729,6630.65,Centre For Education & Finance Management,121410
Solihull MBC,http://statistics.data.gov.uk/id/local-authority/00CT,Children & Education Services,Licence Fees,Other Fees,D52000,13/04/2011,9347729,-6630.65,Centre For Education & Finance Management,121410
Solihull MBC,http://statistics.data.gov.uk/id/local-authority/00CT,Central Services to the Public,Green Travel Scheme,Other Fees,D52000,27/04/2011,9610717,23090.3,Centro,85433
Solihull MBC,http://statistics.data.gov.uk/id/local-authority/00CT,Children & Education Services,Dorridge Jnr,Photocopying,D40001,05/04/2011,8513739,1199.29,CF Asset,221711
Solihull MBC,http://statistics.data.gov.uk/id/local-authority/00CT,Children & Education Services,Chapel Fields Jnr,Photocopying,D40001,07/04/2011,9039715,1587.66,CF Asset,221711
Solihull MBC,http://statistics.data.gov.uk/id/local-authority/00CT,Children & Education Services,Reynalds Cross,Photocopying,D40001,08/04/2011,9308715,438.94,CF Asset Finance Ltd,65277
Solihull MBC,http://statistics.data.gov.uk/id/local-authority/00CT,Children & Education Services,Reynalds Cross,Photocopying,D40001,08/04/2011,9309715,-438.94,CF Asset Finance Ltd,65277
Solihull MBC,http://statistics.data.gov.uk/id/local-authority/00CT,Children & Education Services,Grants For Private Sector,Grant & Subscription (SCITT),D92000,27/04/2011,9612720,2315.25,Chadwick House Day Nursery,179058
Solihull MBC,http://statistics.data.gov.uk/id/local-authority/00CT,Children & Education Services,Child Protection Unit (Prevention),General Office Expenses,D42000,19/04/2011,9554715,459,Charter Office Equipment Ltd,9886
Solihull MBC,http://statistics.data.gov.uk/id/local-authority/00CT,Central Services to the Public,Solihull Connect,Stationery,D41000,19/04/2011,9597814,576.9,Charter Office Equipment Ltd,9886
Solihull MBC,http://statistics.data.gov.uk/id/local-authority/00CT,Environmental and Regulatory Services,Pub Protc Strat & Support,Grant & Subscription (SCITT),D92000,14/04/2011,9362728,480,Chartered Institute Of Environmental Health,120810
Solihull MBC,http://statistics.data.gov.uk/id/local-authority/00CT,Children & Education Services,Smith's Wood,Capitation,D11001,07/04/2011,8900715,457.5,Chatfields Birmingham,133695
Solihull MBC,http://statistics.data.gov.uk/id/local-authority/00CT,Central Services to the Public,Community Initiatives Fund,Grant & Subscription (SCITT),D92000,18/04/2011,9418718,21227.5,Chelmsley Advice & Resources,155778
Solihull MBC,http://statistics.data.gov.uk/id/local-authority/00CT,Central Services to the Public,I & A Management,Other Fees,D52000,18/04/2011,9495715,600,Chelmsley Citizens Advice Bureau Ltd,215583
Solihull MBC,http://statistics.data.gov.uk/id/local-authority/00CT,Precepts Paid to Parish Councils,Parish Precepts,Parish Precepts,J10000,14/04/2011,9360740,126160,Chelmsley Wood Parish Council,123449
Solihull MBC,http://statistics.data.gov.uk/id/local-authority/00CT,Children & Education Services,LDC Stores,Cleaning,B40000,20/04/2011,9600262,848.49,Cherwell Packaging Ltd,69246
Solihull MBC,http://statistics.data.gov.uk/id/local-authority/00CT,Precepts Paid to Parish Councils,Parish Precepts,Parish Precepts,J10000,14/04/2011,9360743,22500,Cheswick Green Parish Council,237552
Solihull MBC,http://statistics.data.gov.uk/id/local-authority/00CT,Children & Education Services,Grants For Private Sector,Grant & Subscription (SCITT),D92000,21/04/2011,9604775,4630.5,Cheswick Green Pre School,69226
Solihull MBC,http://statistics.data.gov.uk/id/local-authority/00CT,Children & Education Services,Langley,Catering Provisions,D20000,06/04/2011,8807240,661,Chicken Joes,216133
Solihull MBC,http://statistics.data.gov.uk/id/local-authority/00CT,Children & Education Services,Arden,Catering Provisions,D20000,06/04/2011,8807243,536.7,Chicken Joes,216133
Solihull MBC,http://statistics.data.gov.uk/id/local-authority/00CT,Children & Education Services,2Yr Old Free E Learn/Care,Grant & Subscription (SCITT),D92000,04/04/2011,8512274,4224.35,Child First Nursery,134588
Solihull MBC,http://statistics.data.gov.uk/id/local-authority/00CT,Children & Education Services,Grants For Private Sector,Grant & Subscription (SCITT),D92000,21/04/2011,9604804,12348,Child First Nursery,134588
Solihull MBC,http://statistics.data.gov.uk/id/local-authority/00CT,Children & Education Services,Grants For Private Sector,Grant & Subscription (SCITT),D92000,21/04/2011,9604805,2872.63,Child First Nursery,134588
Solihull MBC,http://statistics.data.gov.uk/id/local-authority/00CT,Planning & Development Services,Deprived Area Funding,Other Contracted Services,E29000,18/04/2011,9528715,549,Childsplay Ltd,100664
Solihull MBC,http://statistics.data.gov.uk/id/local-authority/00CT,Central Services to the Public,Accountancy,Car Allowances: Officers,C10000,26/04/2011,9608070,98,Chiltern Railways,9916
Solihull MBC,http://statistics.data.gov.uk/id/local-authority/00CT,Central Services to the Public,Accountancy,Car Allowances: Officers,C10000,26/04/2011,9608070,90,Chiltern Railways,9916
Solihull MBC,http://statistics.data.gov.uk/id/local-authority/00CT,Central Services to the Public,Accountancy,Car Allowances: Officers,C10000,26/04/2011,9608070,90,Chiltern Railways,9916
Solihull MBC,http://statistics.data.gov.uk/id/local-authority/00CT,Corporate & Democratic Core,Members Expenses,Car Allowances: Officers,C10000,26/04/2011,9608070,90,Chiltern Railways,9916
Solihull MBC,http://statistics.data.gov.uk/id/local-authority/00CT,Central Services to the Public,I & A Management,Car Allowances: Officers,C10000,26/04/2011,9608070,90,Chiltern Railways,9916
Solihull MBC,http://statistics.data.gov.uk/id/local-authority/00CT,Central Services to the Public,I & A Management,Car Allowances: Officers,C10000,26/04/2011,9608070,85,Chiltern Railways,9916
Solihull MBC,http://statistics.data.gov.uk/id/local-authority/00CT,Children & Education Services,Substance Misuse Grant,Car Allowances: Officers,C10000,26/04/2011,9608070,74,Chiltern Railways,9916
Solihull MBC,http://statistics.data.gov.uk/id/local-authority/00CT,Children & Education Services,Substance Misuse Grant,Car Allowances: Officers,C10000,26/04/2011,9608070,74,Chiltern Railways,9916
Solihull MBC,http://statistics.data.gov.uk/id/local-authority/00CT,Children & Education Services,Substance Misuse Grant,Car Allowances: Officers,C10000,26/04/2011,9608070,74,Chiltern Railways,9916
Solihull MBC,http://statistics.data.gov.uk/id/local-authority/00CT,Corporate & Democratic Core,Members Expenses,Car Allowances: Officers,C10000,26/04/2011,9608070,59.4,Chiltern Railways,9916
Solihull MBC,http://statistics.data.gov.uk/id/local-authority/00CT,Central Services to the Public,I & A Management,Car Allowances: Officers,C10000,26/04/2011,9608070,52,Chiltern Railways,9916
Solihull MBC,http://statistics.data.gov.uk/id/local-authority/00CT,Children & Education Services,Child Protection Unit (Prevention),Car Allowances: Officers,C10000,26/04/2011,9608070,48.1,Chiltern Railways,9916
Solihull MBC,http://statistics.data.gov.uk/id/local-authority/00CT,Highways & Transport Services,TH&E Service Developement,Car Allowances: Officers,C10000,26/04/2011,9608070,38.5,Chiltern Railways,9916
Solihull MBC,http://statistics.data.gov.uk/id/local-authority/00CT,Children & Education Services,Substance Misuse Grant,Car Allowances: Officers,C10000,26/04/2011,9608070,37,Chiltern Railways,9916
Solihull MBC,http://statistics.data.gov.uk/id/local-authority/00CT,Children & Education Services,Substance Misuse Grant,Car Allowances: Officers,C10000,26/04/2011,9608070,37,Chiltern Railways,9916
Solihull MBC,http://statistics.data.gov.uk/id/local-authority/00CT,Children & Education Services,Substance Misuse Grant,Car Allowances: Officers,C10000,26/04/2011,9608070,37,Chiltern Railways,9916
Solihull MBC,http://statistics.data.gov.uk/id/local-authority/00CT,Children & Education Services,Substance Misuse Grant,Car Allowances: Officers,C10000,26/04/2011,9608070,33.8,Chiltern Railways,9916
Solihull MBC,http://statistics.data.gov.uk/id/local-authority/00CT,Children & Education Services,Substance Misuse Grant,Car Allowances: Officers,C10000,26/04/2011,9608070,33.8,Chiltern Railways,9916
Solihull MBC,http://statistics.data.gov.uk/id/local-authority/00CT,Children & Education Services,Substance Misuse Grant,Car Allowances: Officers,C10000,26/04/2011,9608070,33.8,Chiltern Railways,9916
Solihull MBC,http://statistics.data.gov.uk/id/local-authority/00CT,Planning & Development Services,Community & Voluntary,Car Allowances: Officers,C10000,26/04/2011,9608070,21.1,Chiltern Railways,9916
Solihull MBC,http://statistics.data.gov.uk/id/local-authority/00CT,Highways & Transport Services,TH&E Service Developement,Car Allowances: Officers,C10000,26/04/2011,9608070,8,Chiltern Railways,9916
Solihull MBC,http://statistics.data.gov.uk/id/local-authority/00CT,Central Services to the Public,I & A Management,Car Allowances: Officers,C10000,26/04/2011,9608070,8,Chiltern Railways,9916
Solihull MBC,http://statistics.data.gov.uk/id/local-authority/00CT,Central Services to the Public,I & A Management,Car Allowances: Officers,C10000,26/04/2011,9608070,8,Chiltern Railways,9916
Solihull MBC,http://statistics.data.gov.uk/id/local-authority/00CT,Children & Education Services,ICIS,Car Allowances: Officers,C10000,26/04/2011,9608070,8,Chiltern Railways,9916
Solihull MBC,http://statistics.data.gov.uk/id/local-authority/00CT,Children & Education Services,ICIS,Car Allowances: Officers,C10000,26/04/2011,9608070,8,Chiltern Railways,9916
Solihull MBC,http://statistics.data.gov.uk/id/local-authority/00CT,Highways & Transport Services,TH&E Service Developement,Car Allowances: Officers,C10000,26/04/2011,9608070,8,Chiltern Railways,9916
Solihull MBC,http://statistics.data.gov.uk/id/local-authority/00CT,Highways & Transport Services,TH&E Service Developement,Car Allowances: Officers,C10000,26/04/2011,9608070,8,Chiltern Railways,9916
Solihull MBC,http://statistics.data.gov.uk/id/local-authority/00CT,Planning & Development Services,Community & Voluntary,Car Allowances: Officers,C10000,26/04/2011,9608070,7.8,Chiltern Railways,9916
Solihull MBC,http://statistics.data.gov.uk/id/local-authority/00CT,Central Services to the Public,Legal Services,Car Allowances: Officers,C10000,26/04/2011,9608070,6.6,Chiltern Railways,9916
Solihull MBC,http://statistics.data.gov.uk/id/local-authority/00CT,Central Services to the Public,Legal Services,Car Allowances: Officers,C10000,26/04/2011,9608070,6.6,Chiltern Railways,9916
Solihull MBC,http://statistics.data.gov.uk/id/local-authority/00CT,Children & Education Services,Kingshurst Primary,Alarms,B43002,07/04/2011,8993715,1171.54,Chubb Electronic Security Ltd,9929
Solihull MBC,http://statistics.data.gov.uk/id/local-authority/00CT,Central Services to the Public,Internal Audit,Training,A32000,06/04/2011,8620715,4580,CIPFA,9942
Solihull MBC,http://statistics.data.gov.uk/id/local-authority/00CT,Central Services to the Public,Accountancy,General Office Expenses,D42000,28/04/2011,9614939,1450,CIPFA,9942
Solihull MBC,http://statistics.data.gov.uk/id/local-authority/00CT,Children & Education Services,Castle Bromwich Inf,Photocopying,D40001,27/04/2011,9610892,516.47,CIT Vendor Finance (UK) Ltd,109763
Solihull MBC,http://statistics.data.gov.uk/id/local-authority/00CT,Children & Education Services,Sharmans Cross Jnr,Photocopying,D40001,28/04/2011,9618813,492.26,CIT Vendor Finance (UK) Ltd,109763
Solihull MBC,http://statistics.data.gov.uk/id/local-authority/00CT,Central Services to the Public,Community Initiatives Fund,Grant & Subscription (SCITT),D92000,21/04/2011,9604837,65836,Citizens Advice Solihull Borough Ltd,921643
Solihull MBC,http://statistics.data.gov.uk/id/local-authority/00CT,Children & Education Services,Strategy And Regulation,Postage & Courier Services,D43000,19/04/2011,9597915,1608.75,City Sprint (UK) Ltd,285272
Solihull MBC,http://statistics.data.gov.uk/id/local-authority/00CT,Children & Education Services,Strategy And Regulation,Postage & Courier Services,D43000,19/04/2011,9597962,1301.33,City Sprint (UK) Ltd,285272
Solihull MBC,http://statistics.data.gov.uk/id/local-authority/00CT,Environmental and Regulatory Services,Pub Protc Strat & Support,IT Equipment & Software,D32000,14/04/2011,9362726,1060.68,Civica UK Ltd,172758
Solihull MBC,http://statistics.data.gov.uk/id/local-authority/00CT,Central Services to the Public,Appln Software,IT Equipment & Software,D32000,19/04/2011,9597922,800,Civica UK Ltd,172758
Solihull MBC,http://statistics.data.gov.uk/id/local-authority/00CT,Children & Education Services,Swimming,Transport-Contract Hire,C30000,06/04/2011,8647716,2960,Claribel Coaches,9959
Solihull MBC,http://statistics.data.gov.uk/id/local-authority/00CT,Children & Education Services,Swimming,Transport-Contract Hire,C30000,06/04/2011,8647717,4035,Claribel Coaches,9959
Solihull MBC,http://statistics.data.gov.uk/id/local-authority/00CT,Children & Education Services,Secondary Transport,Transport-Contract Hire,C30000,07/04/2011,8808717,21492.52,Claribel Coaches,9959
Solihull MBC,http://statistics.data.gov.uk/id/local-authority/00CT,Children & Education Services,Primary Transport,Transport-Contract Hire,C30000,07/04/2011,8808718,11960,Claribel Coaches,9959
Solihull MBC,http://statistics.data.gov.uk/id/local-authority/00CT,Children & Education Services,Substance Misuses Educ Trg,Materials,D11000,04/04/2011,8512365,427,Clarity Gazebo,138959
Solihull MBC,http://statistics.data.gov.uk/id/local-authority/00CT,Environmental and Regulatory Services,Bereavement Services,Stationery,D41000,08/04/2011,9261716,1029,Clarity Gazebo,138959
Solihull MBC,http://statistics.data.gov.uk/id/local-authority/00CT,Children & Education Services,Childrens Centres,General Office Expenses,D42000,27/04/2011,9610885,890,Clarity Print Ltd,9960
Solihull MBC,http://statistics.data.gov.uk/id/local-authority/00CT,Central Services to the Public,ICT: Network Support,IT Equipment & Software,D32000,05/04/2011,8513716,24875,Clearswift Ltd,233720
Solihull MBC,http://statistics.data.gov.uk/id/local-authority/00CT,Children & Education Services,Broadband Line Rental,IT Equipment & Software,D32000,05/04/2011,8513716,24874.99,Clearswift Ltd,233720
Solihull MBC,http://statistics.data.gov.uk/id/local-authority/00CT,Central Services to the Public,ICT: Network Support,IT Equipment & Software,D32000,05/04/2011,8513716,0.01,Clearswift Ltd,233720
Solihull MBC,http://statistics.data.gov.uk/id/local-authority/00CT,Children & Education Services,Broadband Line Rental,IT Equipment & Software,D32000,05/04/2011,8513716,0.01,Clearswift Ltd,233720
Solihull MBC,http://statistics.data.gov.uk/id/local-authority/00CT,Children & Education Services,Residential South/Central,Other Contracted Services,E29000,05/04/2011,8517755,3604,Clifford House,9978
Solihull MBC,http://statistics.data.gov.uk/id/local-authority/00CT,Children & Education Services,Residential Smiths Wood,Other Contracted Services,E29000,05/04/2011,8517756,11288,Clifford House,9978
Solihull MBC,http://statistics.data.gov.uk/id/local-authority/00CT,Central Services to the Public,I & A Management,Training,A32000,13/04/2011,9347815,1900,Coactiva Aspiren,891600
Solihull MBC,http://statistics.data.gov.uk/id/local-authority/00CT,Central Services to the Public,ICT: Desktop Team Helpdesk,IT Equipment & Software,D32000,04/04/2011,8512493,36820.95,Cognitive Network Solutions Limited,83202
Solihull MBC,http://statistics.data.gov.uk/id/local-authority/00CT,Central Services to the Public,Telecom Server Repl,Software,Y13002,04/04/2011,8512493,11000,Cognitive Network Solutions Limited,83202
Solihull MBC,http://statistics.data.gov.uk/id/local-authority/00CT,Central Services to the Public,Anti Virus Software Renew,Software,Y13002,04/04/2011,8512493,1829.95,Cognitive Network Solutions Limited,83202
Solihull MBC,http://statistics.data.gov.uk/id/local-authority/00CT,Central Services to the Public,ICT: Desktop Team Helpdesk,IT Equipment & Software,D32000,04/04/2011,8512494,992.98,Cognitive Network Solutions Limited,83202
Solihull MBC,http://statistics.data.gov.uk/id/local-authority/00CT,Central Services to the Public,Anti Virus Software Renew,Consultants,Y31000,04/04/2011,8512495,5400,Cognitive Network Solutions Limited,83202
Solihull MBC,http://statistics.data.gov.uk/id/local-authority/00CT,Adult Social Care,Appointee Spend- I-Proc,General Creditors,S00000,18/04/2011,9440715,563.58,Cole Valley Care Limited,120815
Solihull MBC,http://statistics.data.gov.uk/id/local-authority/00CT,Children & Education Services,Local Safeguarding Childrens Board,Other Fees,D52000,04/04/2011,8512347,20150,Colebridge Trust,93475
Solihull MBC,http://statistics.data.gov.uk/id/local-authority/00CT,Cultural & Related Services,Woodland Mgt Project,Maintenance Of Grounds,B30000,05/04/2011,8522912,402.1,Colebridge Trust,93475
Solihull MBC,http://statistics.data.gov.uk/id/local-authority/00CT,Cultural & Related Services,Project Kingfisher,Maintenance Of Grounds,B30000,05/04/2011,8522912,201.05,Colebridge Trust,93475
Solihull MBC,http://statistics.data.gov.uk/id/local-authority/00CT,Cultural & Related Services,Project Kingfisher,Maintenance Of Grounds,B30000,05/04/2011,8522912,0.01,Colebridge Trust,93475
Solihull MBC,http://statistics.data.gov.uk/id/local-authority/00CT,Central Services to the Public,Community Initiatives Fund,Grant & Subscription (SCITT),D92000,14/04/2011,9360739,18750,Colebridge Trust,93475
Solihull MBC,http://statistics.data.gov.uk/id/local-authority/00CT,Central Services to the Public,Community Initiatives Fund,Grant & Subscription (SCITT),D92000,18/04/2011,9418716,13400,Colebridge Trust,93475
Solihull MBC,http://statistics.data.gov.uk/id/local-authority/00CT,Central Services to the Public,Community Initiatives Fund,Grant & Subscription (SCITT),D92000,18/04/2011,9418717,23712.5,Colebridge Trust,93475
Solihull MBC,http://statistics.data.gov.uk/id/local-authority/00CT,Children & Education Services,Special Transport,Transport-Contract Hire,C30000,11/04/2011,9342724,1725,Coleshill Cars Ltd,10006
Solihull MBC,http://statistics.data.gov.uk/id/local-authority/00CT,Children & Education Services,Special Transport,Transport-Contract Hire,C30000,11/04/2011,9342725,1725,Coleshill Cars Ltd,10006
Solihull MBC,http://statistics.data.gov.uk/id/local-authority/00CT,Children & Education Services,Special Transport,Extra District Transport,C30002,07/04/2011,8808741,2150.5,Community Transport,10033
Solihull MBC,http://statistics.data.gov.uk/id/local-authority/00CT,Children & Education Services,16+ Childrens Placements,Ext Fostering Long Stay,D50101,07/04/2011,8813715,3310.8,Compass Childrens Services Ltd,87908
Solihull MBC,http://statistics.data.gov.uk/id/local-authority/00CT,Children & Education Services,Ind Schools/ Non Maintained,Voluntary Day Pupils,E29003,06/04/2011,8543028,18333.33,Complete Care (Warks) Ltd,63676
Solihull MBC,http://statistics.data.gov.uk/id/local-authority/00CT,Central Services to the Public,PB - General Building,Contractors,Y21000,07/04/2011,8809757,960.56,Concrete Repairs & Grouting Ltd,159079
Solihull MBC,http://statistics.data.gov.uk/id/local-authority/00CT,Children & Education Services,Castle Bromwich Inf,Agency Staff: Teachers,A35001,06/04/2011,8707715,480,Connex Holdings Ltd,185358
Solihull MBC,http://statistics.data.gov.uk/id/local-authority/00CT,Children & Education Services,Windy Arbor J&I,Agency Staff: Teachers,A35001,07/04/2011,8857715,775,Connex Holdings Ltd,185358
Solihull MBC,http://statistics.data.gov.uk/id/local-authority/00CT,Children & Education Services,Castle Bromwich Inf,Agency Staff: Teachers,A35001,27/04/2011,9610926,800,Connex Holdings Ltd,185358
Solihull MBC,http://statistics.data.gov.uk/id/local-authority/00CT,Children & Education Services,Windy Arbor J&I,Agency Staff: Teachers,A35001,28/04/2011,9614951,480,Connex Holdings Ltd,185358
Solihull MBC,http://statistics.data.gov.uk/id/local-authority/00CT,Children & Education Services,Windy Arbor J&I,Agency Staff: Teachers,A35001,28/04/2011,9614954,620,Connex Holdings Ltd,185358
Solihull MBC,http://statistics.data.gov.uk/id/local-authority/00CT,Children & Education Services,Forest Oak,Agency Staff: Teachers,A35001,28/04/2011,9618810,490,Connex Holdings Ltd,185358
Solihull MBC,http://statistics.data.gov.uk/id/local-authority/00CT,Cultural & Related Services,Theatre Bar,Catering Provisions,D20000,05/04/2011,8517814,632.5,Coors Brewers Ltd,84882
Solihull MBC,http://statistics.data.gov.uk/id/local-authority/00CT,Cultural & Related Services,Theatre Bar,Catering Provisions,D20000,05/04/2011,8517815,419.05,Coors Brewers Ltd,84882
Solihull MBC,http://statistics.data.gov.uk/id/local-authority/00CT,Cultural & Related Services,Theatre Bar,Catering Provisions,D20000,05/04/2011,8522789,450,Coors Brewers Ltd,84882
Solihull MBC,http://statistics.data.gov.uk/id/local-authority/00CT,Cultural & Related Services,Theatre Bar,Catering Provisions,D20000,05/04/2011,8522791,470.64,Coors Brewers Ltd,84882
Solihull MBC,http://statistics.data.gov.uk/id/local-authority/00CT,Cultural & Related Services,Theatre Bar,Catering Provisions,D20000,05/04/2011,8522791,387.03,Coors Brewers Ltd,84882
Solihull MBC,http://statistics.data.gov.uk/id/local-authority/00CT,Cultural & Related Services,Theatre Bar,Catering Provisions,D20000,05/04/2011,8522791,83.61,Coors Brewers Ltd,84882
Solihull MBC,http://statistics.data.gov.uk/id/local-authority/00CT,Cultural & Related Services,Theatre Bar,Catering Provisions,D20000,05/04/2011,8522791,-470.64,Coors Brewers Ltd,84882
Solihull MBC,http://statistics.data.gov.uk/id/local-authority/00CT,Children & Education Services,Ulverley J&I,Photocopying,D40001,28/04/2011,9618808,522.48,Copier Maintenance Co Ltd,10071
Solihull MBC,http://statistics.data.gov.uk/id/local-authority/00CT,Children & Education Services,Grants For Private Sector,Grant & Subscription (SCITT),D92000,21/04/2011,9604777,4753.98,Coppice Playgroup,76570
Solihull MBC,http://statistics.data.gov.uk/id/local-authority/00CT,Children & Education Services,Youth Opportunity Fund,Materials,D11000,29/03/2011,PC21593,1290.3,Cotswold Outdoor,Purchase Card Supplier
Solihull MBC,http://statistics.data.gov.uk/id/local-authority/00CT,Central Services to the Public,Corp Perform Policy & Info,IT Equipment & Software,D32000,27/04/2011,9610825,8449.12,Covalent Software Ltd,194238
Solihull MBC,http://statistics.data.gov.uk/id/local-authority/00CT,Planning & Development Services,Employmnt For Learn Disab,Professional Fees,D51000,19/04/2011,9597835,7500,Coventry & Warwickshire Co-Operative Development A,662612
Solihull MBC,http://statistics.data.gov.uk/id/local-authority/00CT,Planning & Development Services,Employmnt For Learn Disab,Professional Fees,D51000,19/04/2011,9597836,7500,Coventry & Warwickshire Co-Operative Development A,662612
Solihull MBC,http://statistics.data.gov.uk/id/local-authority/00CT,Central Services to the Public,Corporate Land & Property,Professional Fees,D51000,07/04/2011,9005715,6000,Coventry City Council,10098
Solihull MBC,http://statistics.data.gov.uk/id/local-authority/00CT,Children & Education Services,Catering Management,Furniture & Equipment,D10000,06/04/2011,8553741,617,CPS Catering Equipment Ltd,137951
Solihull MBC,http://statistics.data.gov.uk/id/local-authority/00CT,Children & Education Services,Chuckles,Training,A32000,12/04/2011,9346775,1080,Crackerjack Training Ltd,111520
Solihull MBC,http://statistics.data.gov.uk/id/local-authority/00CT,Adult Social Care,Appointee Spend- I-Proc,General Creditors,S00000,18/04/2011,9431715,820.04,Craegmoor Healthcare Ltd,87853
Solihull MBC,http://statistics.data.gov.uk/id/local-authority/00CT,Environmental and Regulatory Services,Vehicle Licensing,Other Fees,D52000,12/04/2011,9347011,516.25,Cre8 Security,276133
Solihull MBC,http://statistics.data.gov.uk/id/local-authority/00CT,Environmental and Regulatory Services,Vehicle Licensing,Other Fees,D52000,12/04/2011,9347015,516.25,Cre8 Security,276133
Solihull MBC,http://statistics.data.gov.uk/id/local-authority/00CT,Environmental and Regulatory Services,Vehicle Licensing,Other Fees,D52000,19/04/2011,9597733,516.25,Cre8 Security,276133
Solihull MBC,http://statistics.data.gov.uk/id/local-authority/00CT,Children & Education Services,Ext. Fostering CDT,External Fostering,E29006,26/04/2011,9608009,2071.43,Credo Care Ltd,700596
Solihull MBC,http://statistics.data.gov.uk/id/local-authority/00CT,Children & Education Services,Ext. Fostering CDT,External Fostering,E29006,26/04/2011,9608033,5800,Credo Care Ltd,700596
Solihull MBC,http://statistics.data.gov.uk/id/local-authority/00CT,Environmental and Regulatory Services,Vehicle Licensing,Other Fees,D52000,14/04/2011,9360721,5004,Criminal  Records  Bureau,205951
Solihull MBC,http://statistics.data.gov.uk/id/local-authority/00CT,Central Services to the Public,HR Rechargable,Other Employee Costs,A39000,14/04/2011,9360721,2232,Criminal  Records  Bureau,205951
Solihull MBC,http://statistics.data.gov.uk/id/local-authority/00CT,Children & Education Services,DSG - Schools Hr Charges,Other Employee Costs,A39000,14/04/2011,9360721,2052,Criminal  Records  Bureau,205951
Solihull MBC,http://statistics.data.gov.uk/id/local-authority/00CT,Children & Education Services,Childrens Management,Other Employee Costs,A39000,14/04/2011,9360721,1512,Criminal  Records  Bureau,205951
Solihull MBC,http://statistics.data.gov.uk/id/local-authority/00CT,Corporate & Democratic Core,Members Expenses,Other Employee Costs,A39000,14/04/2011,9360721,72,Criminal  Records  Bureau,205951
Solihull MBC,http://statistics.data.gov.uk/id/local-authority/00CT,Central Services to the Public,Director Corp Governance,Other Employee Costs,A39000,14/04/2011,9360721,36,Criminal  Records  Bureau,205951
Solihull MBC,http://statistics.data.gov.uk/id/local-authority/00CT,Cultural & Related Services,Leisure,Other Employee Costs,A39000,14/04/2011,9360721,36,Criminal  Records  Bureau,205951
Solihull MBC,http://statistics.data.gov.uk/id/local-authority/00CT,Children & Education Services,Sch Assets Sup Team - SAST,Materials,D11000,14/03/2011,PC22394,426.31,Croner Cch Product,Purchase Card Supplier
Solihull MBC,http://statistics.data.gov.uk/id/local-authority/00CT,Planning & Development Services,Development Control,Professional Fees,D51000,13/04/2011,9347739,4163.17,Cross Engineering Consultancy,103602
Solihull MBC,http://statistics.data.gov.uk/id/local-authority/00CT,Children & Education Services,Child Disability Dom Care,Clients Expenses,D62000,08/04/2011,9290716,625.44,Crossroads Caring For Carers,122691
Solihull MBC,http://statistics.data.gov.uk/id/local-authority/00CT,Children & Education Services,Child Disability Dom Care,Clients Expenses,D62000,12/04/2011,9346990,1420.56,Crossroads Caring For Carers,122691
Solihull MBC,http://statistics.data.gov.uk/id/local-authority/00CT,Children & Education Services,Child Disability Dom Care,Clients Expenses,D62000,12/04/2011,9346992,716,Crossroads Caring For Carers,122691
Solihull MBC,http://statistics.data.gov.uk/id/local-authority/00CT,Children & Education Services,Child Disability Dom Care,Clients Expenses,D62000,12/04/2011,9346994,605.82,Crossroads Caring For Carers,122691
Solihull MBC,http://statistics.data.gov.uk/id/local-authority/00CT,Children & Education Services,Child Disability Dom Care,Clients Expenses,D62000,14/04/2011,9362715,527,Crossroads Caring For Carers,122691
Solihull MBC,http://statistics.data.gov.uk/id/local-authority/00CT,Children & Education Services,Child Disability Dom Care,Clients Expenses,D62000,14/04/2011,9362715,0.7,Crossroads Caring For Carers,122691
Solihull MBC,http://statistics.data.gov.uk/id/local-authority/00CT,Children & Education Services,Ind Schools/ Non Maintained,Voluntary Residtl Pupils,E29004,06/04/2011,8545718,22614.71,Cruckton Hall School (Shrewsbury) Ltd,119823
Solihull MBC,http://statistics.data.gov.uk/id/local-authority/00CT,Children & Education Services,Ind Schools/ Non Maintained,Voluntary Residtl Pupils,E29004,06/04/2011,8545719,22166.67,Cruckton Hall School (Shrewsbury) Ltd,119823
Solihull MBC,http://statistics.data.gov.uk/id/local-authority/00CT,Children & Education Services,Residential Chelmsley Wood,Other Contracted Services,E29000,06/04/2011,8545719,9500,Cruckton Hall School (Shrewsbury) Ltd,119823
Solihull MBC,http://statistics.data.gov.uk/id/local-authority/00CT,Children & Education Services,Residential South/Central,Other Contracted Services,E29000,06/04/2011,8545721,14166.67,Cruckton Hall School (Shrewsbury) Ltd,119823
Solihull MBC,http://statistics.data.gov.uk/id/local-authority/00CT,Children & Education Services,Ind Schools/ Non Maintained,Voluntary Residtl Pupils,E29004,06/04/2011,8545721,14166.66,Cruckton Hall School (Shrewsbury) Ltd,119823
Solihull MBC,http://statistics.data.gov.uk/id/local-authority/00CT,Children & Education Services,Lanchester PRU,Other Contracted Services,E29000,05/04/2011,8522811,10656,CTC Kingshurst Academy,10140
Solihull MBC,http://statistics.data.gov.uk/id/local-authority/00CT,Children & Education Services,CTC Kingshurst Academy,Other Contracted Services,E29000,21/04/2011,9604737,20835,CTC Kingshurst Academy,10140
Solihull MBC,http://statistics.data.gov.uk/id/local-authority/00CT,Central Services to the Public,Cycle To Work Scheme,Furniture & Equipment,D10000,08/04/2011,9187716,711.66,Cyclescheme Ltd,260217
Solihull MBC,http://statistics.data.gov.uk/id/local-authority/00CT,Highways & Transport Services,Traffic Signal Nm Maint,Other Contracted Services,E29000,13/04/2011,9347813,4109.5,Dambach UK Ltd,74161
Solihull MBC,http://statistics.data.gov.uk/id/local-authority/00CT,Children & Education Services,Yew Tree J&I,Photocopying,D40001,08/04/2011,9219715,1047.75,Danwood Contract Rentals,121419
Solihull MBC,http://statistics.data.gov.uk/id/local-authority/00CT,Children & Education Services,Oak Cottage J&I,Photocopying,D40001,06/04/2011,8542942,510.14,Danwood Group Ltd,5121
Solihull MBC,http://statistics.data.gov.uk/id/local-authority/00CT,Environmental and Regulatory Services,Vehicle Licensing,Materials,D11000,19/04/2011,9597820,2900,Datatek,218181
Solihull MBC,http://statistics.data.gov.uk/id/local-authority/00CT,Environmental and Regulatory Services,Scambusters Grant,Furniture & Equipment,D10000,06/04/2011,8628715,1975,David Horn Communications Ltd,16885
Solihull MBC,http://statistics.data.gov.uk/id/local-authority/00CT,Environmental and Regulatory Services,Scambusters Grant,Furniture & Equipment,D10000,06/04/2011,8628715,18.5,David Horn Communications Ltd,16885
Solihull MBC,http://statistics.data.gov.uk/id/local-authority/00CT,Adult Social Care,In House Transport,Transport-Contract Hire,C30000,05/04/2011,8522834,9875.76,Dawson Rentals Bus & Coach Ltd,147829
Solihull MBC,http://statistics.data.gov.uk/id/local-authority/00CT,Adult Social Care,In House Transport,Transport-Contract Hire,C30000,05/04/2011,8522835,14571.17,Dawson Rentals Bus & Coach Ltd,147829
Solihull MBC,http://statistics.data.gov.uk/id/local-authority/00CT,Children & Education Services,Langley,Catering Provisions,D20000,06/04/2011,8711761,731.16,Delice De France PLC,68194
Solihull MBC,http://statistics.data.gov.uk/id/local-authority/00CT,Central Services to the Public,ICT Linux,IT Equipment & Software,D32000,15/04/2011,9364854,19184,Dell Computer Corp Ltd,5155
Solihull MBC,http://statistics.data.gov.uk/id/local-authority/00CT,Children & Education Services,LDC Stores,Cleaning,B40000,20/04/2011,9600279,445.27,Demontford Marketing Ltd,256500
Solihull MBC,http://statistics.data.gov.uk/id/local-authority/00CT,Precepts Paid to Parish Councils,Parish Precepts,Parish Precepts,J10000,14/04/2011,9360744,40000,Dickens Heath Parish Council,237571
Solihull MBC,http://statistics.data.gov.uk/id/local-authority/00CT,Adult Social Care,PD - Community SW Team,ASC - Direct Payments,E20009,21/04/2011,9604904,561.45,Direct Payments A/C Shaw Trust,914598
Solihull MBC,http://statistics.data.gov.uk/id/local-authority/00CT,Adult Social Care,LD - Community SW Team,ASC - Direct Payments,E20009,21/04/2011,9604909,7196.43,Direct Payments A/C Shaw Trust,914598
Solihull MBC,http://statistics.data.gov.uk/id/local-authority/00CT,Adult Social Care,OP - Locality SW Central B,ASC - Direct Payments,E20009,21/04/2011,9604911,544.05,Direct Payments A/C Shaw Trust,914598
Solihull MBC,http://statistics.data.gov.uk/id/local-authority/00CT,Adult Social Care,OP - Locality SW South B,ASC - Direct Payments,E20009,21/04/2011,9604976,1513.95,Direct Payments A/C Shaw Trust,914598
Solihull MBC,http://statistics.data.gov.uk/id/local-authority/00CT,Adult Social Care,OP - Locality SW North,ASC - Direct Payments,E20009,21/04/2011,9604990,803.52,Direct Payments A/C Shaw Trust,914598
Solihull MBC,http://statistics.data.gov.uk/id/local-authority/00CT,Adult Social Care,LD - Community SW Team,ASC - Direct Payments,E20009,21/04/2011,9605026,687,Direct Payments A/C Shaw Trust,914598
Solihull MBC,http://statistics.data.gov.uk/id/local-authority/00CT,Adult Social Care,PD - Community SW Team,ASC - Direct Payments,E20009,21/04/2011,9605063,932.66,Direct Payments A/C Shaw Trust,914598
Solihull MBC,http://statistics.data.gov.uk/id/local-authority/00CT,Adult Social Care,PD - Community SW Team,ASC - Direct Payments,E20009,21/04/2011,9605068,770.57,Direct Payments A/C Shaw Trust,914598
Solihull MBC,http://statistics.data.gov.uk/id/local-authority/00CT,Adult Social Care,LD - Community SW Team,ASC - Direct Payments,E20009,21/04/2011,9605130,10066.41,Direct Payments A/C Shaw Trust,914598
Solihull MBC,http://statistics.data.gov.uk/id/local-authority/00CT,Children & Education Services,Education Fire Fund,Repair & Maintn Of Buildings,B31000,13/04/2011,9347751,5135,Disaster Recovery Midlands Ltd,232626
Solihull MBC,http://statistics.data.gov.uk/id/local-authority/00CT,Central Services to the Public,General Fire Fund,Repair & Maintn Of Buildings,B31000,13/04/2011,9347752,5437.9,Disaster Recovery Midlands Ltd,232626
Solihull MBC,http://statistics.data.gov.uk/id/local-authority/00CT,Central Services to the Public,General Fire Fund,Repair & Maintn Of Buildings,B31000,13/04/2011,9347859,7605,Disaster Recovery Midlands Ltd,232626
Solihull MBC,http://statistics.data.gov.uk/id/local-authority/00CT,Children & Education Services,LSCB Training,Professional Fees,D51000,13/04/2011,9352788,650,Diverse Solutions UK,685601
Solihull MBC,http://statistics.data.gov.uk/id/local-authority/00CT,Children & Education Services,Residential Smiths Wood,Other Contracted Services,E29000,18/04/2011,9408715,3964.35,DMR Childrens Services Ltd,215972
Solihull MBC,http://statistics.data.gov.uk/id/local-authority/00CT,Children & Education Services,Residential Smiths Wood,Other Contracted Services,E29000,18/04/2011,9410715,1585.74,DMR Childrens Services Ltd,215972
Solihull MBC,http://statistics.data.gov.uk/id/local-authority/00CT,Central Services to the Public,Tenant Works,Reactive Works (External),B31353,05/04/2011,8514935,2934.39,Dodd Group (Midlands) Ltd,60305
Solihull MBC,http://statistics.data.gov.uk/id/local-authority/00CT,Central Services to the Public,Mechanical Refurbs,Contractors,Y21000,05/04/2011,8514936,3725.11,Dodd Group (Midlands) Ltd,60305
Solihull MBC,http://statistics.data.gov.uk/id/local-authority/00CT,Children & Education Services,PSD- Arden Academy,Repair & Maintn Of Buildings,B31000,05/04/2011,8514937,6245.31,Dodd Group (Midlands) Ltd,60305
Solihull MBC,http://statistics.data.gov.uk/id/local-authority/00CT,Children & Education Services,PSD- St Patricks Academy,Repair & Maintn Of Buildings,B31000,05/04/2011,8514938,9968.51,Dodd Group (Midlands) Ltd,60305
Solihull MBC,http://statistics.data.gov.uk/id/local-authority/00CT,Other Housing Services,PSD- Primary Care Trust,Reactive Works (Landlord),B31301,05/04/2011,8514939,1144.23,Dodd Group (Midlands) Ltd,60305
Solihull MBC,http://statistics.data.gov.uk/id/local-authority/00CT,Children & Education Services,PSD-Schools Package 1,Reactive Works (Landlord),B31301,05/04/2011,8514940,9956.88,Dodd Group (Midlands) Ltd,60305
Solihull MBC,http://statistics.data.gov.uk/id/local-authority/00CT,Children & Education Services,Oak Cottage J&I,Building Maint Day To Day,B31001,05/04/2011,8514941,4099.13,Dodd Group (Midlands) Ltd,60305
Solihull MBC,http://statistics.data.gov.uk/id/local-authority/00CT,Children & Education Services,Oak Cottage J&I,Internal Building Maintenance,H20908,05/04/2011,8514941,409.91,Dodd Group (Midlands) Ltd,60305
Solihull MBC,http://statistics.data.gov.uk/id/local-authority/00CT,Central Services to the Public,Tenant Team,Internal Income-Miscellaneous,H21000,05/04/2011,8514941,-409.91,Dodd Group (Midlands) Ltd,60305
Solihull MBC,http://statistics.data.gov.uk/id/local-authority/00CT,Central Services to the Public,Landlord Team,Planned Works (Landlord),B31303,05/04/2011,8514942,9206.11,Dodd Group (Midlands) Ltd,60305
Solihull MBC,http://statistics.data.gov.uk/id/local-authority/00CT,Central Services to the Public,Mechanical Refurbs,Contractors,Y21000,05/04/2011,8514943,12967.05,Dodd Group (Midlands) Ltd,60305
Solihull MBC,http://statistics.data.gov.uk/id/local-authority/00CT,Central Services to the Public,Electrical Refurbishment,Contractors,Y21000,05/04/2011,8514944,2929.94,Dodd Group (Midlands) Ltd,60305
Solihull MBC,http://statistics.data.gov.uk/id/local-authority/00CT,Central Services to the Public,Mechanical Refurbs,Contractors,Y21000,05/04/2011,8514953,6996.52,Dodd Group (Midlands) Ltd,60305
Solihull MBC,http://statistics.data.gov.uk/id/local-authority/00CT,Central Services to the Public,Mechanical Refurbs,Contractors,Y21000,05/04/2011,8514954,3313.31,Dodd Group (Midlands) Ltd,60305
Solihull MBC,http://statistics.data.gov.uk/id/local-authority/00CT,Central Services to the Public,Mechanical Refurbs,Contractors,Y21000,05/04/2011,8514955,3087.08,Dodd Group (Midlands) Ltd,60305
Solihull MBC,http://statistics.data.gov.uk/id/local-authority/00CT,Central Services to the Public,PB - Mechanical Refurb,Contractors,Y21000,05/04/2011,8514956,866.26,Dodd Group (Midlands) Ltd,60305
Solihull MBC,http://statistics.data.gov.uk/id/local-authority/00CT,Children & Education Services,St George & Teresa J&I,Building Maint Day To Day,B31001,05/04/2011,8522774,-760.77,Dodd Group (Midlands) Ltd,60305
Solihull MBC,http://statistics.data.gov.uk/id/local-authority/00CT,Other Housing Services,PSD- Primary Care Trust,Reactive Works (Landlord),B31301,06/04/2011,8542923,420.8,Dodd Group (Midlands) Ltd,60305
Solihull MBC,http://statistics.data.gov.uk/id/local-authority/00CT,Central Services to the Public,Tenant Works,Planned Works (Tenant),B31352,07/04/2011,8809821,745.83,Dodd Group (Midlands) Ltd,60305
Solihull MBC,http://statistics.data.gov.uk/id/local-authority/00CT,Highways & Transport Services,Marks & Spencer (Poplar Rd),Repair & Maintn Of Buildings,B31000,07/04/2011,8809834,561.63,Dodd Group (Midlands) Ltd,60305
Solihull MBC,http://statistics.data.gov.uk/id/local-authority/00CT,Highways & Transport Services,Marks & Spencer (Poplar Rd),Internal Building Maintenance,H20908,07/04/2011,8809834,56.16,Dodd Group (Midlands) Ltd,60305
Solihull MBC,http://statistics.data.gov.uk/id/local-authority/00CT,Central Services to the Public,Tenant Team,Internal Income-Miscellaneous,H21000,07/04/2011,8809834,-56.16,Dodd Group (Midlands) Ltd,60305
Solihull MBC,http://statistics.data.gov.uk/id/local-authority/00CT,Central Services to the Public,Energy And Carbon Savings,Contractors,Y21000,08/04/2011,9071721,1565.46,Dodd Group (Midlands) Ltd,60305
Solihull MBC,http://statistics.data.gov.uk/id/local-authority/00CT,Central Services to the Public,Landlord Team,Reactive Works (Landlord),B31301,11/04/2011,9340729,1977.91,Dodd Group (Midlands) Ltd,60305
Solihull MBC,http://statistics.data.gov.uk/id/local-authority/00CT,Central Services to the Public,Mechanical Refurbs,Contractors,Y21000,11/04/2011,9340730,11842.84,Dodd Group (Midlands) Ltd,60305
Solihull MBC,http://statistics.data.gov.uk/id/local-authority/00CT,Children & Education Services,PSD-Solihull 6Th Form Col,Repair & Maintn Of Buildings,B31000,14/04/2011,9356717,714.75,Dodd Group (Midlands) Ltd,60305
Solihull MBC,http://statistics.data.gov.uk/id/local-authority/00CT,Central Services to the Public,Mechanical Refurbs,Contractors,Y21000,21/04/2011,9602716,4816.9,Dodd Group (Midlands) Ltd,60305
Solihull MBC,http://statistics.data.gov.uk/id/local-authority/00CT,Central Services to the Public,Council House Complex,Repair & Maintn Of Buildings,B31000,21/04/2011,9602717,7245.42,Dodd Group (Midlands) Ltd,60305
Solihull MBC,http://statistics.data.gov.uk/id/local-authority/00CT,Central Services to the Public,Council House Complex,Internal Building Maintenance,H20908,21/04/2011,9602717,724.54,Dodd Group (Midlands) Ltd,60305
Solihull MBC,http://statistics.data.gov.uk/id/local-authority/00CT,Central Services to the Public,Tenant Team,Internal Income-Miscellaneous,H21000,21/04/2011,9602717,-724.54,Dodd Group (Midlands) Ltd,60305
Solihull MBC,http://statistics.data.gov.uk/id/local-authority/00CT,Children & Education Services,PSD-Solihull 6Th Form Col,Repair & Maintn Of Buildings,B31000,21/04/2011,9602718,8149.89,Dodd Group (Midlands) Ltd,60305
Solihull MBC,http://statistics.data.gov.uk/id/local-authority/00CT,Central Services to the Public,Tenant Works,Reactive Works (External),B31353,21/04/2011,9602719,16267.97,Dodd Group (Midlands) Ltd,60305
Solihull MBC,http://statistics.data.gov.uk/id/local-authority/00CT,Children & Education Services,PSD-Solihull 6Th Form Col,Repair & Maintn Of Buildings,B31000,21/04/2011,9602723,1952.47,Dodd Group (Midlands) Ltd,60305
Solihull MBC,http://statistics.data.gov.uk/id/local-authority/00CT,Children & Education Services,PSD-Solihull 6Th Form Col,Repair & Maintn Of Buildings,B31000,21/04/2011,9602724,3622.07,Dodd Group (Midlands) Ltd,60305
Solihull MBC,http://statistics.data.gov.uk/id/local-authority/00CT,Children & Education Services,PSD- Tudor Grange Academy,Repair & Maintn Of Buildings,B31000,21/04/2011,9602757,606.85,Dodd Group (Midlands) Ltd,60305
Solihull MBC,http://statistics.data.gov.uk/id/local-authority/00CT,Central Services to the Public,General Building,Contractors,Y21000,21/04/2011,9602758,2255.24,Dodd Group (Midlands) Ltd,60305
Solihull MBC,http://statistics.data.gov.uk/id/local-authority/00CT,Central Services to the Public,Landlord Team,Servicing,B31304,21/04/2011,9602770,705.85,Dodd Group (Midlands) Ltd,60305
Solihull MBC,http://statistics.data.gov.uk/id/local-authority/00CT,Children & Education Services,Castle Bromwich Jnr,Building Maint Day To Day,B31001,21/04/2011,9602780,3851.73,Dodd Group (Midlands) Ltd,60305
Solihull MBC,http://statistics.data.gov.uk/id/local-authority/00CT,Children & Education Services,Lyndon,Building Maint Day To Day,B31001,21/04/2011,9602781,582.53,Dodd Group (Midlands) Ltd,60305
Solihull MBC,http://statistics.data.gov.uk/id/local-authority/00CT,Children & Education Services,PSD-Schools Package 1,Reactive Works (Landlord),B31301,21/04/2011,9602784,9506.54,Dodd Group (Midlands) Ltd,60305
Solihull MBC,http://statistics.data.gov.uk/id/local-authority/00CT,Central Services to the Public,Landlord Team,Reactive Works (Landlord),B31301,21/04/2011,9602789,3374.46,Dodd Group (Midlands) Ltd,60305
Solihull MBC,http://statistics.data.gov.uk/id/local-authority/00CT,Children & Education Services,Reynalds Cross,Building Maint Day To Day,B31001,21/04/2011,9602796,432.4,Dodd Group (Midlands) Ltd,60305
Solihull MBC,http://statistics.data.gov.uk/id/local-authority/00CT,Children & Education Services,PSD-Schools Package 1,Reactive Works (Landlord),B31301,21/04/2011,9602838,492.9,Dodd Group (Midlands) Ltd,60305
Solihull MBC,http://statistics.data.gov.uk/id/local-authority/00CT,Children & Education Services,PSD-Schools Package 1,Reactive Works (Landlord),B31301,21/04/2011,9602847,1503.18,Dodd Group (Midlands) Ltd,60305
Solihull MBC,http://statistics.data.gov.uk/id/local-authority/00CT,Central Services to the Public,Landlord Team,Reactive Works (Landlord),B31301,21/04/2011,9602848,491.52,Dodd Group (Midlands) Ltd,60305
Solihull MBC,http://statistics.data.gov.uk/id/local-authority/00CT,Central Services to the Public,Mechanical Refurbs,Contractors,Y21000,21/04/2011,9602849,1930.99,Dodd Group (Midlands) Ltd,60305
Solihull MBC,http://statistics.data.gov.uk/id/local-authority/00CT,Children & Education Services,Smith's Wood Community Primary,Building Maint Day To Day,B31001,21/04/2011,9602853,537.43,Dodd Group (Midlands) Ltd,60305
Solihull MBC,http://statistics.data.gov.uk/id/local-authority/00CT,Children & Education Services,PSD-Schools Package 1,Reactive Works (Landlord),B31301,21/04/2011,9602857,431.74,Dodd Group (Midlands) Ltd,60305
Solihull MBC,http://statistics.data.gov.uk/id/local-authority/00CT,Children & Education Services,PSD-Schools Package 1,Reactive Works (Landlord),B31301,21/04/2011,9602858,897.53,Dodd Group (Midlands) Ltd,60305
Solihull MBC,http://statistics.data.gov.uk/id/local-authority/00CT,Children & Education Services,PSD-Schools Package 1,Reactive Works (Landlord),B31301,21/04/2011,9602859,521.46,Dodd Group (Midlands) Ltd,60305
Solihull MBC,http://statistics.data.gov.uk/id/local-authority/00CT,Other Housing Services,PSD- Primary Care Trust,Reactive Works (Landlord),B31301,21/04/2011,9602862,1957.42,Dodd Group (Midlands) Ltd,60305
Solihull MBC,http://statistics.data.gov.uk/id/local-authority/00CT,Children & Education Services,PSD-Schools Package 1,Reactive Works (Landlord),B31301,21/04/2011,9602877,1505.97,Dodd Group (Midlands) Ltd,60305
Solihull MBC,http://statistics.data.gov.uk/id/local-authority/00CT,Central Services to the Public,Landlord Team,Reactive Works (Landlord),B31301,27/04/2011,9611715,1506,Dodd Group (Midlands) Ltd,60305
Solihull MBC,http://statistics.data.gov.uk/id/local-authority/00CT,Central Services to the Public,Electrical Refurbishment,Contractors,Y21000,28/04/2011,9615715,2486.36,Dodd Group (Midlands) Ltd,60305
Solihull MBC,http://statistics.data.gov.uk/id/local-authority/00CT,Children & Education Services,PSD- St Patricks Academy,Repair & Maintn Of Buildings,B31000,28/04/2011,9615716,21317.6,Dodd Group (Midlands) Ltd,60305
Solihull MBC,http://statistics.data.gov.uk/id/local-authority/00CT,Central Services to the Public,Tenant Works,Repair & Maintn Of Buildings,B31000,28/04/2011,9615717,538.98,Dodd Group (Midlands) Ltd,60305
Solihull MBC,http://statistics.data.gov.uk/id/local-authority/00CT,Environmental and Regulatory Services,Scambusters Grant,Other Fees,D52000,21/03/2011,PC65806,680.4,Don Ruffles Ltd,Purchase Card Supplier
Solihull MBC,http://statistics.data.gov.uk/id/local-authority/00CT,Highways & Transport Services,W.Mids Casualty Reduction,Other Contracted Services,E29000,15/04/2011,9364809,595,Dorman Varitext,216250
Solihull MBC,http://statistics.data.gov.uk/id/local-authority/00CT,Environmental and Regulatory Services,Bereavement Services,Professional Fees,D51000,18/04/2011,9456716,2079,Dr B S Jheeta,54279
Solihull MBC,http://statistics.data.gov.uk/id/local-authority/00CT,Environmental and Regulatory Services,Bereavement Services,Professional Fees,D51000,18/04/2011,9459715,5526,Dr E Leyton,5249
Solihull MBC,http://statistics.data.gov.uk/id/local-authority/00CT,Environmental and Regulatory Services,Bereavement Services,Professional Fees,D51000,18/04/2011,9455715,2079,Dr M Street,59269
Solihull MBC,http://statistics.data.gov.uk/id/local-authority/00CT,Environmental and Regulatory Services,Bereavement Services,Professional Fees,D51000,18/04/2011,9457715,4320,Dr Maria Del Mar Font Olive,223391
Solihull MBC,http://statistics.data.gov.uk/id/local-authority/00CT,Children & Education Services,Legal And General,Professional Fees,D51000,04/04/2011,8512377,1501.44,Dr Tanya Garett,866606
Solihull MBC,http://statistics.data.gov.uk/id/local-authority/00CT,Environmental and Regulatory Services,Recycling Bins Etc,Furniture & Equipment,Y13000,07/04/2011,8819715,3527.1,Driveline Gb Ltd,136896
Solihull MBC,http://statistics.data.gov.uk/id/local-authority/00CT,Environmental and Regulatory Services,Recycling Bins Etc,Furniture & Equipment,Y13000,07/04/2011,8820715,3885.3,Driveline Gb Ltd,136896
Solihull MBC,http://statistics.data.gov.uk/id/local-authority/00CT,Environmental and Regulatory Services,Recycling Bins Etc,Furniture & Equipment,Y13000,07/04/2011,8821715,3447,Driveline Gb Ltd,136896
Solihull MBC,http://statistics.data.gov.uk/id/local-authority/00CT,Environmental and Regulatory Services,Recycling Bins Etc,Furniture & Equipment,Y13000,08/04/2011,9278715,2996.55,Driveline Gb Ltd,136896
Solihull MBC,http://statistics.data.gov.uk/id/local-authority/00CT,Environmental and Regulatory Services,Recycling Bins Etc,Furniture & Equipment,Y13000,08/04/2011,9280715,1974.6,Driveline GB Ltd,136896
Solihull MBC,http://statistics.data.gov.uk/id/local-authority/00CT,Environmental and Regulatory Services,Recycling Bins Etc,Furniture & Equipment,Y13000,08/04/2011,9281716,2578.95,Driveline Gb Ltd,136896
Solihull MBC,http://statistics.data.gov.uk/id/local-authority/00CT,Corporate & Democratic Core,International Links,Officers Expenses,D61000,21/03/2011,PC80232,451.45,Dsb Kastrup Billet,Purchase Card Supplier
Solihull MBC,http://statistics.data.gov.uk/id/local-authority/00CT,Planning & Development Services,Land At Meriden,Consultants,Y31000,07/04/2011,9031715,3000,DTZ Debenham Tie Leung Ltd,189306
Solihull MBC,http://statistics.data.gov.uk/id/local-authority/00CT,Children & Education Services,Residential Smiths Wood,Other Contracted Services,E29000,12/04/2011,9345750,6942.86,Dudley Lodge,134531
Solihull MBC,http://statistics.data.gov.uk/id/local-authority/00CT,Highways & Transport Services,Salting & Gritting,Other Contracted Services,E29000,04/04/2011,8512337,10510.1,Dudley Metropolitan Borough Council,5274
Solihull MBC,http://statistics.data.gov.uk/id/local-authority/00CT,Children & Education Services,Evolution Project (BIP),Professional Fees,D51000,05/04/2011,8522740,425,DY3 Training & Community Services,237933
Solihull MBC,http://statistics.data.gov.uk/id/local-authority/00CT,Children & Education Services,Valley Inf PCP,Contractors,Y21000,15/04/2011,9364765,82376.74,E Manton Ltd,5299
Solihull MBC,http://statistics.data.gov.uk/id/local-authority/00CT,Children & Education Services,Grants For Private Sector,Grant & Subscription (SCITT),D92000,21/04/2011,9604740,555.66,Early Birds Nursery,11104
Solihull MBC,http://statistics.data.gov.uk/id/local-authority/00CT,Children & Education Services,Lyndon,Health & Safety,B43003,05/04/2011,8525715,594.75,Eastern Shires Purchasing Organisation,6363
Solihull MBC,http://statistics.data.gov.uk/id/local-authority/00CT,Children & Education Services,Lyndon,Furniture & Equipment,D10000,05/04/2011,8526715,1134,Eastern Shires Purchasing Organisation,6363
Solihull MBC,http://statistics.data.gov.uk/id/local-authority/00CT,Children & Education Services,Castle Bromwich Inf,Capitation,D11001,08/04/2011,9291715,645.18,Eastern Shires Purchasing Organisation,6363
Solihull MBC,http://statistics.data.gov.uk/id/local-authority/00CT,Children & Education Services,St Anne's J&I,Capitation,D11001,12/04/2011,9343799,419.01,Eastern Shires Purchasing Organisation,6363
Solihull MBC,http://statistics.data.gov.uk/id/local-authority/00CT,Children & Education Services,Inclusion-Surestart Rev,Furniture & Equipment,D10000,18/04/2011,9420715,780,Eastern Shires Purchasing Organisation,6363
Solihull MBC,http://statistics.data.gov.uk/id/local-authority/00CT,Children & Education Services,LDC Stores,Cleaning,B40000,20/04/2011,9600285,438.04,Eastern Shires Purchasing Organisation,6363
Solihull MBC,http://statistics.data.gov.uk/id/local-authority/00CT,Children & Education Services,LDC Stores,Cleaning,B40000,20/04/2011,9600289,538.67,Eastern Shires Purchasing Organisation,6363
Solihull MBC,http://statistics.data.gov.uk/id/local-authority/00CT,Children & Education Services,Castle Bromwich Inf,Capitation,D11001,27/04/2011,9610898,574.85,Eastern Shires Purchasing Organisation,6363
Solihull MBC,http://statistics.data.gov.uk/id/local-authority/00CT,Children & Education Services,Heart Of England,Building Maint Planned,B31002,01/04/2011,8459715,516,Eclipse Alarms Security Systems Ltd,838596
Solihull MBC,http://statistics.data.gov.uk/id/local-authority/00CT,Children & Education Services,Heart Of England,Building Maint Planned,B31002,01/04/2011,8462715,488,Eclipse Alarms Security Systems Ltd,838596
Solihull MBC,http://statistics.data.gov.uk/id/local-authority/00CT,Children & Education Services,Light Hall,Professional Fees,D51000,04/04/2011,8512416,83.9,Edenred,276843
Solihull MBC,http://statistics.data.gov.uk/id/local-authority/00CT,Children & Education Services,Diploma Consortium Grant,Training,A32000,04/04/2011,8512028,650,Edexcel Limited,112178
Solihull MBC,http://statistics.data.gov.uk/id/local-authority/00CT,Children & Education Services,St Peter's,Examination Fees,D52001,11/04/2011,9341180,-992.8,Edexcel Limited,112178
Solihull MBC,http://statistics.data.gov.uk/id/local-authority/00CT,Children & Education Services,St Peter's,Examination Fees,D52001,11/04/2011,9341188,759.2,Edexcel Limited,112178
Solihull MBC,http://statistics.data.gov.uk/id/local-authority/00CT,Children & Education Services,St Peter's,Examination Fees,D52001,11/04/2011,9341188,744.6,Edexcel Limited,112178
Solihull MBC,http://statistics.data.gov.uk/id/local-authority/00CT,Children & Education Services,St Peter's,Examination Fees,D52001,11/04/2011,9341188,715.4,Edexcel Limited,112178
Solihull MBC,http://statistics.data.gov.uk/id/local-authority/00CT,Children & Education Services,St Peter's,Examination Fees,D52001,11/04/2011,9341188,554.8,Edexcel Limited,112178
Solihull MBC,http://statistics.data.gov.uk/id/local-authority/00CT,Children & Education Services,St Peter's,Examination Fees,D52001,11/04/2011,9341188,525.6,Edexcel Limited,112178
Solihull MBC,http://statistics.data.gov.uk/id/local-authority/00CT,Children & Education Services,St Peter's,Examination Fees,D52001,11/04/2011,9341188,525.6,Edexcel Limited,112178
Solihull MBC,http://statistics.data.gov.uk/id/local-authority/00CT,Children & Education Services,St Peter's,Examination Fees,D52001,11/04/2011,9341188,373.1,Edexcel Limited,112178
Solihull MBC,http://statistics.data.gov.uk/id/local-authority/00CT,Children & Education Services,St Peter's,Examination Fees,D52001,11/04/2011,9341188,373.1,Edexcel Limited,112178
Solihull MBC,http://statistics.data.gov.uk/id/local-authority/00CT,Children & Education Services,St Peter's,Examination Fees,D52001,11/04/2011,9341188,344.4,Edexcel Limited,112178
Solihull MBC,http://statistics.data.gov.uk/id/local-authority/00CT,Children & Education Services,St Peter's,Examination Fees,D52001,11/04/2011,9341188,200.9,Edexcel Limited,112178
Solihull MBC,http://statistics.data.gov.uk/id/local-authority/00CT,Children & Education Services,St Peter's,Examination Fees,D52001,11/04/2011,9341188,102.2,Edexcel Limited,112178
Solihull MBC,http://statistics.data.gov.uk/id/local-authority/00CT,Children & Education Services,St Peter's,Examination Fees,D52001,11/04/2011,9341188,102.2,Edexcel Limited,112178
Solihull MBC,http://statistics.data.gov.uk/id/local-authority/00CT,Children & Education Services,St Peter's,Examination Fees,D52001,11/04/2011,9341188,102.2,Edexcel Limited,112178
Solihull MBC,http://statistics.data.gov.uk/id/local-authority/00CT,Children & Education Services,St Peter's,Examination Fees,D52001,11/04/2011,9341188,73,Edexcel Limited,112178
Solihull MBC,http://statistics.data.gov.uk/id/local-authority/00CT,Children & Education Services,St Peter's,Examination Fees,D52001,11/04/2011,9341188,73,Edexcel Limited,112178
Solihull MBC,http://statistics.data.gov.uk/id/local-authority/00CT,Children & Education Services,St Peter's,Examination Fees,D52001,11/04/2011,9341188,73,Edexcel Limited,112178
Solihull MBC,http://statistics.data.gov.uk/id/local-authority/00CT,Children & Education Services,St Peter's,Examination Fees,D52001,11/04/2011,9341198,3180,Edexcel Limited,112178
Solihull MBC,http://statistics.data.gov.uk/id/local-authority/00CT,Children & Education Services,St Peter's,Examination Fees,D52001,11/04/2011,9341198,3030,Edexcel Limited,112178
Solihull MBC,http://statistics.data.gov.uk/id/local-authority/00CT,Children & Education Services,St Peter's,Examination Fees,D52001,11/04/2011,9341198,1527.6,Edexcel Limited,112178
Solihull MBC,http://statistics.data.gov.uk/id/local-authority/00CT,Children & Education Services,St Peter's,Examination Fees,D52001,11/04/2011,9341198,204.4,Edexcel Limited,112178
Solihull MBC,http://statistics.data.gov.uk/id/local-authority/00CT,Children & Education Services,St Peter's,Examination Fees,D52001,11/04/2011,9341198,204.4,Edexcel Limited,112178
Solihull MBC,http://statistics.data.gov.uk/id/local-authority/00CT,Children & Education Services,St Peter's,Examination Fees,D52001,11/04/2011,9341198,204.4,Edexcel Limited,112178
Solihull MBC,http://statistics.data.gov.uk/id/local-authority/00CT,Children & Education Services,St Peter's,Examination Fees,D52001,11/04/2011,9341198,204.4,Edexcel Limited,112178
Solihull MBC,http://statistics.data.gov.uk/id/local-authority/00CT,Children & Education Services,St Peter's,Examination Fees,D52001,11/04/2011,9341198,124.1,Edexcel Limited,112178
Solihull MBC,http://statistics.data.gov.uk/id/local-authority/00CT,Children & Education Services,St Peter's,Examination Fees,D52001,11/04/2011,9341198,124.1,Edexcel Limited,112178
Solihull MBC,http://statistics.data.gov.uk/id/local-authority/00CT,Children & Education Services,St Peter's,Examination Fees,D52001,11/04/2011,9341198,124.1,Edexcel Limited,112178
Solihull MBC,http://statistics.data.gov.uk/id/local-authority/00CT,Children & Education Services,St Peter's,Examination Fees,D52001,11/04/2011,9341198,124.1,Edexcel Limited,112178
Solihull MBC,http://statistics.data.gov.uk/id/local-authority/00CT,Children & Education Services,St Peter's,Examination Fees,D52001,11/04/2011,9341198,87.6,Edexcel Limited,112178
Solihull MBC,http://statistics.data.gov.uk/id/local-authority/00CT,Children & Education Services,St Peter's,Examination Fees,D52001,11/04/2011,9341198,87.6,Edexcel Limited,112178
Solihull MBC,http://statistics.data.gov.uk/id/local-authority/00CT,Children & Education Services,St Peter's,Examination Fees,D52001,11/04/2011,9341198,87.6,Edexcel Limited,112178
Solihull MBC,http://statistics.data.gov.uk/id/local-authority/00CT,Children & Education Services,St Peter's,Examination Fees,D52001,11/04/2011,9341198,87.6,Edexcel Limited,112178
Solihull MBC,http://statistics.data.gov.uk/id/local-authority/00CT,Children & Education Services,St Peter's,Examination Fees,D52001,11/04/2011,9341231,304.8,Edexcel Limited,112178
Solihull MBC,http://statistics.data.gov.uk/id/local-authority/00CT,Children & Education Services,St Peter's,Examination Fees,D52001,11/04/2011,9341231,304.8,Edexcel Limited,112178
Solihull MBC,http://statistics.data.gov.uk/id/local-authority/00CT,Children & Education Services,St Peter's,Examination Fees,D52001,11/04/2011,9341231,195.6,Edexcel Limited,112178
Solihull MBC,http://statistics.data.gov.uk/id/local-authority/00CT,Children & Education Services,St Peter's,Examination Fees,D52001,11/04/2011,9341231,177.8,Edexcel Limited,112178
Solihull MBC,http://statistics.data.gov.uk/id/local-authority/00CT,Children & Education Services,St Peter's,Examination Fees,D52001,11/04/2011,9341231,177.8,Edexcel Limited,112178
Solihull MBC,http://statistics.data.gov.uk/id/local-authority/00CT,Children & Education Services,St Peter's,Examination Fees,D52001,11/04/2011,9341231,152.4,Edexcel Limited,112178
Solihull MBC,http://statistics.data.gov.uk/id/local-authority/00CT,Children & Education Services,St Peter's,Examination Fees,D52001,11/04/2011,9341231,152.4,Edexcel Limited,112178
Solihull MBC,http://statistics.data.gov.uk/id/local-authority/00CT,Children & Education Services,St Peter's,Examination Fees,D52001,11/04/2011,9341231,114.1,Edexcel Limited,112178
Solihull MBC,http://statistics.data.gov.uk/id/local-authority/00CT,Children & Education Services,St Peter's,Examination Fees,D52001,11/04/2011,9341231,97.8,Edexcel Limited,112178
Solihull MBC,http://statistics.data.gov.uk/id/local-authority/00CT,Children & Education Services,St Peter's,Examination Fees,D52001,11/04/2011,9341231,33.8,Edexcel Limited,112178
Solihull MBC,http://statistics.data.gov.uk/id/local-authority/00CT,Children & Education Services,St Peter's,Examination Fees,D52001,11/04/2011,9341231,25.4,Edexcel Limited,112178
Solihull MBC,http://statistics.data.gov.uk/id/local-authority/00CT,Children & Education Services,St Peter's,Examination Fees,D52001,11/04/2011,9341231,25.4,Edexcel Limited,112178
Solihull MBC,http://statistics.data.gov.uk/id/local-authority/00CT,Children & Education Services,St Peter's,Examination Fees,D52001,11/04/2011,9341231,16.3,Edexcel Limited,112178
Solihull MBC,http://statistics.data.gov.uk/id/local-authority/00CT,Children & Education Services,St Peter's,Examination Fees,D52001,11/04/2011,9341231,14.6,Edexcel Limited,112178
Solihull MBC,http://statistics.data.gov.uk/id/local-authority/00CT,Children & Education Services,Light Hall,Examination Fees,D52001,27/04/2011,9610721,-564,Edexcel Limited,112178
Solihull MBC,http://statistics.data.gov.uk/id/local-authority/00CT,Highways & Transport Services,Streetlighting Engery,Electricity,B11000,12/04/2011,9346800,68346.87,EDF Energy 1 Ltd,135472
Solihull MBC,http://statistics.data.gov.uk/id/local-authority/00CT,Highways & Transport Services,Streetlighting Engery,Electricity,B11000,12/04/2011,9346800,68346.87,EDF Energy 1 Ltd,135472
Solihull MBC,http://statistics.data.gov.uk/id/local-authority/00CT,Highways & Transport Services,Streetlighting Engery,Electricity,B11000,12/04/2011,9346800,50.66,EDF Energy 1 Ltd,135472
Solihull MBC,http://statistics.data.gov.uk/id/local-authority/00CT,Highways & Transport Services,Streetlighting Engery,Electricity,B11000,12/04/2011,9346800,50.66,EDF Energy 1 Ltd,135472
Solihull MBC,http://statistics.data.gov.uk/id/local-authority/00CT,Highways & Transport Services,Streetlighting Engery,Electricity,B11000,12/04/2011,9346800,-50.66,EDF Energy 1 Ltd,135472
Solihull MBC,http://statistics.data.gov.uk/id/local-authority/00CT,Highways & Transport Services,Streetlighting Engery,Electricity,B11000,12/04/2011,9346800,-68346.87,EDF Energy 1 Ltd,135472
Solihull MBC,http://statistics.data.gov.uk/id/local-authority/00CT,Highways & Transport Services,Streetlighting Engery,Electricity,B11000,12/04/2011,9346802,59100.25,EDF Energy 1 Ltd,135472
Solihull MBC,http://statistics.data.gov.uk/id/local-authority/00CT,Highways & Transport Services,Streetlighting Engery,Electricity,B11000,12/04/2011,9346802,59100.25,EDF Energy 1 Ltd,135472
Solihull MBC,http://statistics.data.gov.uk/id/local-authority/00CT,Highways & Transport Services,Streetlighting Engery,Electricity,B11000,12/04/2011,9346802,-59100.25,EDF Energy 1 Ltd,135472
Solihull MBC,http://statistics.data.gov.uk/id/local-authority/00CT,Highways & Transport Services,Streetlighting Engery,Electricity,B11000,12/04/2011,9346811,50173.67,EDF Energy 1 Ltd,135472
Solihull MBC,http://statistics.data.gov.uk/id/local-authority/00CT,Highways & Transport Services,Streetlighting Engery,Electricity,B11000,12/04/2011,9346811,50173.67,EDF Energy 1 Ltd,135472
Solihull MBC,http://statistics.data.gov.uk/id/local-authority/00CT,Highways & Transport Services,Streetlighting Engery,Electricity,B11000,12/04/2011,9346811,-50173.67,EDF Energy 1 Ltd,135472
Solihull MBC,http://statistics.data.gov.uk/id/local-authority/00CT,Highways & Transport Services,Streetlighting Engery,Electricity,B11000,12/04/2011,9346817,55300.3,EDF Energy 1 Ltd,135472
Solihull MBC,http://statistics.data.gov.uk/id/local-authority/00CT,Highways & Transport Services,Streetlighting Engery,Electricity,B11000,12/04/2011,9346817,55300.3,EDF Energy 1 Ltd,135472
Solihull MBC,http://statistics.data.gov.uk/id/local-authority/00CT,Highways & Transport Services,Streetlighting Engery,Electricity,B11000,12/04/2011,9346817,-55300.3,EDF Energy 1 Ltd,135472
Solihull MBC,http://statistics.data.gov.uk/id/local-authority/00CT,Highways & Transport Services,Streetlighting Engery,Electricity,B11000,12/04/2011,9346819,66417.5,EDF Energy 1 Ltd,135472
Solihull MBC,http://statistics.data.gov.uk/id/local-authority/00CT,Highways & Transport Services,Streetlighting Engery,Electricity,B11000,12/04/2011,9346819,66417.5,EDF Energy 1 Ltd,135472
Solihull MBC,http://statistics.data.gov.uk/id/local-authority/00CT,Highways & Transport Services,Streetlighting Engery,Electricity,B11000,12/04/2011,9346819,-66417.5,EDF Energy 1 Ltd,135472
Solihull MBC,http://statistics.data.gov.uk/id/local-authority/00CT,Highways & Transport Services,Streetlighting Engery,Electricity,B11000,12/04/2011,9346822,77278.1,EDF Energy 1 Ltd,135472
Solihull MBC,http://statistics.data.gov.uk/id/local-authority/00CT,Highways & Transport Services,Streetlighting Engery,Electricity,B11000,12/04/2011,9346822,77278.1,EDF Energy 1 Ltd,135472
Solihull MBC,http://statistics.data.gov.uk/id/local-authority/00CT,Highways & Transport Services,Streetlighting Engery,Electricity,B11000,12/04/2011,9346822,-77278.1,EDF Energy 1 Ltd,135472
Solihull MBC,http://statistics.data.gov.uk/id/local-authority/00CT,Highways & Transport Services,Streetlighting Engery,Electricity,B11000,12/04/2011,9346826,93294.01,EDF Energy 1 Ltd,135472
Solihull MBC,http://statistics.data.gov.uk/id/local-authority/00CT,Highways & Transport Services,Streetlighting Engery,Electricity,B11000,12/04/2011,9346826,93294.01,EDF Energy 1 Ltd,135472
Solihull MBC,http://statistics.data.gov.uk/id/local-authority/00CT,Highways & Transport Services,Streetlighting Engery,Electricity,B11000,12/04/2011,9346826,-93294.01,EDF Energy 1 Ltd,135472
Solihull MBC,http://statistics.data.gov.uk/id/local-authority/00CT,Highways & Transport Services,Streetlighting Engery,Electricity,B11000,12/04/2011,9346829,101742.96,EDF Energy 1 Ltd,135472
Solihull MBC,http://statistics.data.gov.uk/id/local-authority/00CT,Highways & Transport Services,Streetlighting Engery,Electricity,B11000,12/04/2011,9346829,101742.96,EDF Energy 1 Ltd,135472
Solihull MBC,http://statistics.data.gov.uk/id/local-authority/00CT,Highways & Transport Services,Streetlighting Engery,Electricity,B11000,12/04/2011,9346829,-101742.96,EDF Energy 1 Ltd,135472
Solihull MBC,http://statistics.data.gov.uk/id/local-authority/00CT,Highways & Transport Services,Streetlighting Engery,Electricity,B11000,12/04/2011,9346837,111767.24,EDF Energy 1 Ltd,135472
Solihull MBC,http://statistics.data.gov.uk/id/local-authority/00CT,Highways & Transport Services,Streetlighting Engery,Electricity,B11000,12/04/2011,9346837,111767.24,EDF Energy 1 Ltd,135472
Solihull MBC,http://statistics.data.gov.uk/id/local-authority/00CT,Highways & Transport Services,Streetlighting Engery,Electricity,B11000,12/04/2011,9346837,-111767.24,EDF Energy 1 Ltd,135472
Solihull MBC,http://statistics.data.gov.uk/id/local-authority/00CT,Highways & Transport Services,Streetlighting Engery,Electricity,B11000,12/04/2011,9346842,89156.55,EDF Energy 1 Ltd,135472
Solihull MBC,http://statistics.data.gov.uk/id/local-authority/00CT,Highways & Transport Services,Streetlighting Engery,Electricity,B11000,12/04/2011,9346842,54.81,EDF Energy 1 Ltd,135472
Solihull MBC,http://statistics.data.gov.uk/id/local-authority/00CT,Highways & Transport Services,Streetlighting Engery,Electricity,B11000,12/04/2011,9346908,85122.64,EDF Energy 1 Ltd,135472
Solihull MBC,http://statistics.data.gov.uk/id/local-authority/00CT,Highways & Transport Services,Streetlighting Engery,Electricity,B11000,12/04/2011,9346908,62.67,EDF Energy 1 Ltd,135472
Solihull MBC,http://statistics.data.gov.uk/id/local-authority/00CT,Highways & Transport Services,Streetlighting Engery,Electricity,B11000,12/04/2011,9346917,68529.29,EDF Energy 1 Ltd,135472
Solihull MBC,http://statistics.data.gov.uk/id/local-authority/00CT,Highways & Transport Services,Streetlighting Engery,Electricity,B11000,12/04/2011,9346917,50.66,EDF Energy 1 Ltd,135472
Solihull MBC,http://statistics.data.gov.uk/id/local-authority/00CT,Highways & Transport Services,Streetlighting Engery,Electricity,B11000,12/04/2011,9346917,-50.66,EDF Energy 1 Ltd,135472
Solihull MBC,http://statistics.data.gov.uk/id/local-authority/00CT,Highways & Transport Services,Streetlighting Engery,Electricity,B11000,12/04/2011,9346917,-50.66,EDF Energy 1 Ltd,135472
Solihull MBC,http://statistics.data.gov.uk/id/local-authority/00CT,Highways & Transport Services,Streetlighting Engery,Electricity,B11000,12/04/2011,9346917,-68529.29,EDF Energy 1 Ltd,135472
Solihull MBC,http://statistics.data.gov.uk/id/local-authority/00CT,Highways & Transport Services,Streetlighting Engery,Electricity,B11000,12/04/2011,9346917,-68529.29,EDF Energy 1 Ltd,135472
Solihull MBC,http://statistics.data.gov.uk/id/local-authority/00CT,Highways & Transport Services,Streetlighting Engery,Electricity,B11000,12/04/2011,9346923,61596.54,EDF Energy 1 Ltd,135472
Solihull MBC,http://statistics.data.gov.uk/id/local-authority/00CT,Highways & Transport Services,Streetlighting Engery,Electricity,B11000,12/04/2011,9346923,-61596.54,EDF Energy 1 Ltd,135472
Solihull MBC,http://statistics.data.gov.uk/id/local-authority/00CT,Highways & Transport Services,Streetlighting Engery,Electricity,B11000,12/04/2011,9346923,-61596.54,EDF Energy 1 Ltd,135472
Solihull MBC,http://statistics.data.gov.uk/id/local-authority/00CT,Highways & Transport Services,Streetlighting Engery,Electricity,B11000,12/04/2011,9346927,52632.31,EDF Energy 1 Ltd,135472
Solihull MBC,http://statistics.data.gov.uk/id/local-authority/00CT,Highways & Transport Services,Streetlighting Engery,Electricity,B11000,12/04/2011,9346927,52554.96,EDF Energy 1 Ltd,135472
Solihull MBC,http://statistics.data.gov.uk/id/local-authority/00CT,Highways & Transport Services,Streetlighting Engery,Electricity,B11000,12/04/2011,9346927,77.35,EDF Energy 1 Ltd,135472
Solihull MBC,http://statistics.data.gov.uk/id/local-authority/00CT,Highways & Transport Services,Streetlighting Engery,Electricity,B11000,12/04/2011,9346927,-77.35,EDF Energy 1 Ltd,135472
Solihull MBC,http://statistics.data.gov.uk/id/local-authority/00CT,Highways & Transport Services,Streetlighting Engery,Electricity,B11000,12/04/2011,9346927,-77.35,EDF Energy 1 Ltd,135472
Solihull MBC,http://statistics.data.gov.uk/id/local-authority/00CT,Highways & Transport Services,Streetlighting Engery,Electricity,B11000,12/04/2011,9346927,-52554.96,EDF Energy 1 Ltd,135472
Solihull MBC,http://statistics.data.gov.uk/id/local-authority/00CT,Highways & Transport Services,Streetlighting Engery,Electricity,B11000,12/04/2011,9346927,-52554.96,EDF Energy 1 Ltd,135472
Solihull MBC,http://statistics.data.gov.uk/id/local-authority/00CT,Highways & Transport Services,Streetlighting Engery,Electricity,B11000,12/04/2011,9346927,-52632.31,EDF Energy 1 Ltd,135472
Solihull MBC,http://statistics.data.gov.uk/id/local-authority/00CT,Highways & Transport Services,Streetlighting Engery,Electricity,B11000,12/04/2011,9346940,57927,EDF Energy 1 Ltd,135472
Solihull MBC,http://statistics.data.gov.uk/id/local-authority/00CT,Highways & Transport Services,Streetlighting Engery,Electricity,B11000,12/04/2011,9346940,53.42,EDF Energy 1 Ltd,135472
Solihull MBC,http://statistics.data.gov.uk/id/local-authority/00CT,Highways & Transport Services,Streetlighting Engery,Electricity,B11000,12/04/2011,9346940,-53.42,EDF Energy 1 Ltd,135472
Solihull MBC,http://statistics.data.gov.uk/id/local-authority/00CT,Highways & Transport Services,Streetlighting Engery,Electricity,B11000,12/04/2011,9346940,-53.42,EDF Energy 1 Ltd,135472
Solihull MBC,http://statistics.data.gov.uk/id/local-authority/00CT,Highways & Transport Services,Streetlighting Engery,Electricity,B11000,12/04/2011,9346940,-57927,EDF Energy 1 Ltd,135472
Solihull MBC,http://statistics.data.gov.uk/id/local-authority/00CT,Highways & Transport Services,Streetlighting Engery,Electricity,B11000,12/04/2011,9346940,-57927,EDF Energy 1 Ltd,135472
Solihull MBC,http://statistics.data.gov.uk/id/local-authority/00CT,Highways & Transport Services,Streetlighting Engery,Electricity,B11000,12/04/2011,9346950,69578.04,EDF Energy 1 Ltd,135472
Solihull MBC,http://statistics.data.gov.uk/id/local-authority/00CT,Highways & Transport Services,Streetlighting Engery,Electricity,B11000,12/04/2011,9346950,194.77,EDF Energy 1 Ltd,135472
Solihull MBC,http://statistics.data.gov.uk/id/local-authority/00CT,Highways & Transport Services,Streetlighting Engery,Electricity,B11000,12/04/2011,9346950,-194.77,EDF Energy 1 Ltd,135472
Solihull MBC,http://statistics.data.gov.uk/id/local-authority/00CT,Highways & Transport Services,Streetlighting Engery,Electricity,B11000,12/04/2011,9346950,-194.77,EDF Energy 1 Ltd,135472
Solihull MBC,http://statistics.data.gov.uk/id/local-authority/00CT,Highways & Transport Services,Streetlighting Engery,Electricity,B11000,12/04/2011,9346950,-69578.04,EDF Energy 1 Ltd,135472
Solihull MBC,http://statistics.data.gov.uk/id/local-authority/00CT,Highways & Transport Services,Streetlighting Engery,Electricity,B11000,12/04/2011,9346950,-69578.04,EDF Energy 1 Ltd,135472
Solihull MBC,http://statistics.data.gov.uk/id/local-authority/00CT,Highways & Transport Services,Streetlighting Engery,Electricity,B11000,12/04/2011,9346953,80961.16,EDF Energy 1 Ltd,135472
Solihull MBC,http://statistics.data.gov.uk/id/local-authority/00CT,Highways & Transport Services,Streetlighting Engery,Electricity,B11000,12/04/2011,9346953,-80961.16,EDF Energy 1 Ltd,135472
Solihull MBC,http://statistics.data.gov.uk/id/local-authority/00CT,Highways & Transport Services,Streetlighting Engery,Electricity,B11000,12/04/2011,9346953,-80961.16,EDF Energy 1 Ltd,135472
Solihull MBC,http://statistics.data.gov.uk/id/local-authority/00CT,Highways & Transport Services,Streetlighting Engery,Electricity,B11000,12/04/2011,9346956,97745.56,EDF Energy 1 Ltd,135472
Solihull MBC,http://statistics.data.gov.uk/id/local-authority/00CT,Highways & Transport Services,Streetlighting Engery,Electricity,B11000,12/04/2011,9346956,-97745.56,EDF Energy 1 Ltd,135472
Solihull MBC,http://statistics.data.gov.uk/id/local-authority/00CT,Highways & Transport Services,Streetlighting Engery,Electricity,B11000,12/04/2011,9346956,-97745.56,EDF Energy 1 Ltd,135472
Solihull MBC,http://statistics.data.gov.uk/id/local-authority/00CT,Highways & Transport Services,Streetlighting Engery,Electricity,B11000,12/04/2011,9346959,106601.17,EDF Energy 1 Ltd,135472
Solihull MBC,http://statistics.data.gov.uk/id/local-authority/00CT,Highways & Transport Services,Streetlighting Engery,Electricity,B11000,12/04/2011,9346959,-106601.17,EDF Energy 1 Ltd,135472
Solihull MBC,http://statistics.data.gov.uk/id/local-authority/00CT,Highways & Transport Services,Streetlighting Engery,Electricity,B11000,12/04/2011,9346959,-106601.17,EDF Energy 1 Ltd,135472
Solihull MBC,http://statistics.data.gov.uk/id/local-authority/00CT,Highways & Transport Services,Streetlighting Engery,Electricity,B11000,12/04/2011,9346963,117023.25,EDF Energy 1 Ltd,135472
Solihull MBC,http://statistics.data.gov.uk/id/local-authority/00CT,Highways & Transport Services,Streetlighting Engery,Electricity,B11000,12/04/2011,9346963,-117023.25,EDF Energy 1 Ltd,135472
Solihull MBC,http://statistics.data.gov.uk/id/local-authority/00CT,Highways & Transport Services,Streetlighting Engery,Electricity,B11000,12/04/2011,9346963,-117023.25,EDF Energy 1 Ltd,135472
Solihull MBC,http://statistics.data.gov.uk/id/local-authority/00CT,Highways & Transport Services,Streetlighting Engery,Electricity,B11000,12/04/2011,9347040,1822.58,EDF Energy 1 Ltd,135472
Solihull MBC,http://statistics.data.gov.uk/id/local-authority/00CT,Highways & Transport Services,Streetlighting Engery,Electricity,B11000,12/04/2011,9347040,1.82,EDF Energy 1 Ltd,135472
Solihull MBC,http://statistics.data.gov.uk/id/local-authority/00CT,Highways & Transport Services,Streetlighting Engery,Electricity,B11000,12/04/2011,9347045,1822.58,EDF Energy 1 Ltd,135472
Solihull MBC,http://statistics.data.gov.uk/id/local-authority/00CT,Highways & Transport Services,Streetlighting Engery,Electricity,B11000,12/04/2011,9347045,4.69,EDF Energy 1 Ltd,135472
Solihull MBC,http://statistics.data.gov.uk/id/local-authority/00CT,Highways & Transport Services,Traffic Mgt Energy Costs,Electricity,B11000,13/04/2011,9347850,4823.63,EDF Energy 1 Ltd,135472
Solihull MBC,http://statistics.data.gov.uk/id/local-authority/00CT,Children & Education Services,Kingshurst Primary,IT Equipment & Software,D32000,07/04/2011,8996715,688.5,Education City,199798
Solihull MBC,http://statistics.data.gov.uk/id/local-authority/00CT,Children & Education Services,Woodlands Solihull Inf,IT Equipment & Software,D32000,07/04/2011,9053715,420,Education City,199798
Solihull MBC,http://statistics.data.gov.uk/id/local-authority/00CT,Children & Education Services,Our Lady Compassion  J&I,Capitation,D11001,08/04/2011,9142716,858.5,Education City,199798
Solihull MBC,http://statistics.data.gov.uk/id/local-authority/00CT,Children & Education Services,Monkspath J&I,IT Equipment & Software,D32000,28/04/2011,9614888,1269,Education City,199798
Solihull MBC,http://statistics.data.gov.uk/id/local-authority/00CT,Children & Education Services,Windy Arbor J&I,IT Equipment & Software,D32000,28/04/2011,9615165,752.25,Education City,199798
Solihull MBC,http://statistics.data.gov.uk/id/local-authority/00CT,Children & Education Services,Alderbrook,Capitation,D11001,28/04/2011,9614943,3520,Education Maintenance Services,233744
Solihull MBC,http://statistics.data.gov.uk/id/local-authority/00CT,Children & Education Services,Licence Fees,Other Fees,D52000,14/04/2011,9358796,15762.09,Education Recording Agency,53836
Solihull MBC,http://statistics.data.gov.uk/id/local-authority/00CT,Children & Education Services,St Anne's J&I,Agency Staff: Teachers,A35001,12/04/2011,9343793,4404.5,Education Staffing Link,5343
Solihull MBC,http://statistics.data.gov.uk/id/local-authority/00CT,Highways & Transport Services,Street Lighting Contract 1,Furniture & Equipment,D10000,18/04/2011,9427715,756.9,Electric Centre Ltd,5363
Solihull MBC,http://statistics.data.gov.uk/id/local-authority/00CT,Corporate & Democratic Core,International Links,Officers Expenses,D61000,24/03/2011,PC66169,3262.89,Elite Stadshotellet  V,Purchase Card Supplier
Solihull MBC,http://statistics.data.gov.uk/id/local-authority/00CT,Children & Education Services,Special Transport,Transport-Contract Hire,C30000,11/04/2011,9342752,1817,Elmdon Cars Ltd,5380
Solihull MBC,http://statistics.data.gov.uk/id/local-authority/00CT,Children & Education Services,Special Transport,Transport-Contract Hire,C30000,11/04/2011,9342753,1702,Elmdon Cars Ltd,5380
Solihull MBC,http://statistics.data.gov.uk/id/local-authority/00CT,Children & Education Services,Special Transport,Transport-Contract Hire,C30000,11/04/2011,9342755,8625,Elmdon Cars Ltd,5380
Solihull MBC,http://statistics.data.gov.uk/id/local-authority/00CT,Children & Education Services,Post Sixteen Transport,Extra District Transport,C30002,11/04/2011,9342756,3069,Elmdon Cars Ltd,5380
Solihull MBC,http://statistics.data.gov.uk/id/local-authority/00CT,Children & Education Services,Special Transport,Transport-Contract Hire,C30000,11/04/2011,9342757,460,Elmdon Cars Ltd,5380
Solihull MBC,http://statistics.data.gov.uk/id/local-authority/00CT,Children & Education Services,Section 17 South/Central,Clients Transport Costs,C21000,13/04/2011,9351764,680,Elmdon Cars Ltd,5380
Solihull MBC,http://statistics.data.gov.uk/id/local-authority/00CT,Children & Education Services,Grants For Private Sector,Grant & Subscription (SCITT),D92000,21/04/2011,9604790,3457.44,Elmdon Playgroup,113682
Solihull MBC,http://statistics.data.gov.uk/id/local-authority/00CT,Children & Education Services,Dickens Hth Primary,Furniture & Equipment,D10000,28/04/2011,9618880,1876.41,EME Furniture,29719
Solihull MBC,http://statistics.data.gov.uk/id/local-authority/00CT,Planning & Development Services,Community & Voluntary,Other Contracted Services,E29000,14/04/2011,9360741,13041,Enable Solihull,235367
Solihull MBC,http://statistics.data.gov.uk/id/local-authority/00CT,Planning & Development Services,Community & Voluntary,Other Contracted Services,E29000,14/04/2011,9360742,4700,Enable Solihull,235367
Solihull MBC,http://statistics.data.gov.uk/id/local-authority/00CT,Central Services to the Public,Community Initiatives Fund,Grant & Subscription (SCITT),D92000,18/04/2011,9418719,14500,Enable Solihull,235367
Solihull MBC,http://statistics.data.gov.uk/id/local-authority/00CT,Central Services to the Public,Benefits Specific Grants,Other Fees,D52000,18/04/2011,9507715,1056,Enable Solihull,235367
Solihull MBC,http://statistics.data.gov.uk/id/local-authority/00CT,Central Services to the Public,Benefits Specific Grants,Other Fees,D52000,18/04/2011,9507715,1056,Enable Solihull,235367
Solihull MBC,http://statistics.data.gov.uk/id/local-authority/00CT,Central Services to the Public,Benefits Specific Grants,Other Fees,D52000,18/04/2011,9507715,1056,Enable Solihull,235367
Solihull MBC,http://statistics.data.gov.uk/id/local-authority/00CT,Central Services to the Public,Benefits Specific Grants,Other Fees,D52000,18/04/2011,9507715,-1056,Enable Solihull,235367
Solihull MBC,http://statistics.data.gov.uk/id/local-authority/00CT,Central Services to the Public,Benefits Specific Grants,Other Fees,D52000,18/04/2011,9507715,-1056,Enable Solihull,235367
Solihull MBC,http://statistics.data.gov.uk/id/local-authority/00CT,Highways & Transport Services,Street Cleansing,Other Contracted Services,E29000,04/04/2011,8512336,51368.98,Enterprise Managed Services Ltd,206418
Solihull MBC,http://statistics.data.gov.uk/id/local-authority/00CT,Environmental and Regulatory Services,Waste Collection,Strategic Environment Contract,E29300,15/04/2011,9364893,193303.35,Enterprise Managed Services Ltd,206418
Solihull MBC,http://statistics.data.gov.uk/id/local-authority/00CT,Highways & Transport Services,Street Cleansing,Strategic Environment Contract,E29300,15/04/2011,9364893,144059.34,Enterprise Managed Services Ltd,206418
Solihull MBC,http://statistics.data.gov.uk/id/local-authority/00CT,Highways & Transport Services,Horticultural Maintenance,Strategic Environment Contract,E29300,15/04/2011,9364893,101276.84,Enterprise Managed Services Ltd,206418
Solihull MBC,http://statistics.data.gov.uk/id/local-authority/00CT,Environmental and Regulatory Services,Waste Collection,Strategic Environment Contract,E29300,15/04/2011,9364893,64615.84,Enterprise Managed Services Ltd,206418
Solihull MBC,http://statistics.data.gov.uk/id/local-authority/00CT,Cultural & Related Services,Parks Other,Strategic Environment Contract,E29300,15/04/2011,9364893,61691.13,Enterprise Managed Services Ltd,206418
Solihull MBC,http://statistics.data.gov.uk/id/local-authority/00CT,Environmental and Regulatory Services,Waste Disp Jt Ac Recy Crs,Strategic Environment Contract,E29300,15/04/2011,9364893,33532.22,Enterprise Managed Services Ltd,206418
Solihull MBC,http://statistics.data.gov.uk/id/local-authority/00CT,Environmental and Regulatory Services,Waste Collection,Strategic Environment Contract,E29300,15/04/2011,9364893,24009.88,Enterprise Managed Services Ltd,206418
Solihull MBC,http://statistics.data.gov.uk/id/local-authority/00CT,Environmental and Regulatory Services,Moat Lane Waste Station,Strategic Environment Contract,E29300,15/04/2011,9364893,21492.78,Enterprise Managed Services Ltd,206418
Solihull MBC,http://statistics.data.gov.uk/id/local-authority/00CT,Environmental and Regulatory Services,Bereavement Services,Strategic Environment Contract,E29300,15/04/2011,9364893,13671.35,Enterprise Managed Services Ltd,206418
Solihull MBC,http://statistics.data.gov.uk/id/local-authority/00CT,Environmental and Regulatory Services,Public Conveniences,Strategic Environment Contract,E29300,15/04/2011,9364893,4829.18,Enterprise Managed Services Ltd,206418
Solihull MBC,http://statistics.data.gov.uk/id/local-authority/00CT,Planning & Development Services,Town Centre Management,Strategic Environment Contract,E29300,15/04/2011,9364893,3060.75,Enterprise Managed Services Ltd,206418
Solihull MBC,http://statistics.data.gov.uk/id/local-authority/00CT,Central Services to the Public,Council House Complex,Strategic Environment Contract,E29300,15/04/2011,9364893,3060.75,Enterprise Managed Services Ltd,206418
Solihull MBC,http://statistics.data.gov.uk/id/local-authority/00CT,Highways & Transport Services,Monkspath Hall Car Pk,Strategic Environment Contract,E29300,15/04/2011,9364893,3060.75,Enterprise Managed Services Ltd,206418
Solihull MBC,http://statistics.data.gov.uk/id/local-authority/00CT,Housing Revenue Account,Community Services,Strategic Environment Contract,E29300,15/04/2011,9364893,2924.74,Enterprise Managed Services Ltd,206418
Solihull MBC,http://statistics.data.gov.uk/id/local-authority/00CT,Planning & Development Services,Shops,Strategic Environment Contract,E29300,15/04/2011,9364893,2040.5,Enterprise Managed Services Ltd,206418
Solihull MBC,http://statistics.data.gov.uk/id/local-authority/00CT,Highways & Transport Services,Culverts And Subways,Strategic Environment Contract,E29300,15/04/2011,9364893,1632.4,Enterprise Managed Services Ltd,206418
Solihull MBC,http://statistics.data.gov.uk/id/local-authority/00CT,Highways & Transport Services,Surface Free Car Pk,Strategic Environment Contract,E29300,15/04/2011,9364893,1088.25,Enterprise Managed Services Ltd,206418
Solihull MBC,http://statistics.data.gov.uk/id/local-authority/00CT,Highways & Transport Services,Mell Square (Warwick Rd),Strategic Environment Contract,E29300,15/04/2011,9364893,203.8,Enterprise Managed Services Ltd,206418
Solihull MBC,http://statistics.data.gov.uk/id/local-authority/00CT,Highways & Transport Services,Lode Lane Ms Car Pk,Strategic Environment Contract,E29300,15/04/2011,9364893,203.05,Enterprise Managed Services Ltd,206418
Solihull MBC,http://statistics.data.gov.uk/id/local-authority/00CT,Housing Revenue Account,Community Services,Strategic Environment Contract,E29300,15/04/2011,9364893,67.99,Enterprise Managed Services Ltd,206418
Solihull MBC,http://statistics.data.gov.uk/id/local-authority/00CT,Highways & Transport Services,Church Hill Car Pk,Strategic Environment Contract,E29300,15/04/2011,9364893,67.99,Enterprise Managed Services Ltd,206418
Solihull MBC,http://statistics.data.gov.uk/id/local-authority/00CT,Highways & Transport Services,Marks & Spencer (Poplar Rd),Strategic Environment Contract,E29300,15/04/2011,9364893,67.99,Enterprise Managed Services Ltd,206418
Solihull MBC,http://statistics.data.gov.uk/id/local-authority/00CT,Highways & Transport Services,Prince's Way Car Pk,Strategic Environment Contract,E29300,15/04/2011,9364893,20.92,Enterprise Managed Services Ltd,206418
Solihull MBC,http://statistics.data.gov.uk/id/local-authority/00CT,Highways & Transport Services,Lode Lane Ms Car Pk,Strategic Environment Contract,E29300,15/04/2011,9364893,1,Enterprise Managed Services Ltd,206418
Solihull MBC,http://statistics.data.gov.uk/id/local-authority/00CT,Environmental and Regulatory Services,Moat Lane Waste Station,Strategic Environment Contract,E29300,15/04/2011,9364893,0.49,Enterprise Managed Services Ltd,206418
Solihull MBC,http://statistics.data.gov.uk/id/local-authority/00CT,Highways & Transport Services,Mell Square (Warwick Rd),Strategic Environment Contract,E29300,15/04/2011,9364893,0.25,Enterprise Managed Services Ltd,206418
Solihull MBC,http://statistics.data.gov.uk/id/local-authority/00CT,Environmental and Regulatory Services,Waste Collection,Strategic Environment Contract,E29300,15/04/2011,9364893,0.07,Enterprise Managed Services Ltd,206418
Solihull MBC,http://statistics.data.gov.uk/id/local-authority/00CT,Highways & Transport Services,Church Hill Car Pk,Strategic Environment Contract,E29300,15/04/2011,9364893,0.03,Enterprise Managed Services Ltd,206418
Solihull MBC,http://statistics.data.gov.uk/id/local-authority/00CT,Highways & Transport Services,Marks & Spencer (Poplar Rd),Strategic Environment Contract,E29300,15/04/2011,9364893,0.03,Enterprise Managed Services Ltd,206418
Solihull MBC,http://statistics.data.gov.uk/id/local-authority/00CT,Highways & Transport Services,Surface Free Car Pk,Strategic Environment Contract,E29300,15/04/2011,9364893,0.02,Enterprise Managed Services Ltd,206418
Solihull MBC,http://statistics.data.gov.uk/id/local-authority/00CT,Environmental and Regulatory Services,Waste Collection,Strategic Environment Contract,E29300,15/04/2011,9364893,0.01,Enterprise Managed Services Ltd,206418
Solihull MBC,http://statistics.data.gov.uk/id/local-authority/00CT,Environmental and Regulatory Services,Waste Collection,Strategic Environment Contract,E29300,15/04/2011,9364893,0.01,Enterprise Managed Services Ltd,206418
Solihull MBC,http://statistics.data.gov.uk/id/local-authority/00CT,Environmental and Regulatory Services,Bereavement Services,Other Contracted Services,E29000,27/04/2011,9610933,48194.45,Enterprise Managed Services Ltd,206418
Solihull MBC,http://statistics.data.gov.uk/id/local-authority/00CT,Environmental and Regulatory Services,Bereavement Services,Other Contracted Services,E29000,27/04/2011,9610938,28311.74,Enterprise Managed Services Ltd,206418
Solihull MBC,http://statistics.data.gov.uk/id/local-authority/00CT,Environmental and Regulatory Services,Bereavement Services,Other Contracted Services,E29000,27/04/2011,9610938,19081,Enterprise Managed Services Ltd,206418
Solihull MBC,http://statistics.data.gov.uk/id/local-authority/00CT,Environmental and Regulatory Services,Bereavement Services,Other Contracted Services,E29000,27/04/2011,9610938,9230.74,Enterprise Managed Services Ltd,206418
Solihull MBC,http://statistics.data.gov.uk/id/local-authority/00CT,Environmental and Regulatory Services,Bereavement Services,Other Contracted Services,E29000,27/04/2011,9610938,-28311.74,Enterprise Managed Services Ltd,206418
Solihull MBC,http://statistics.data.gov.uk/id/local-authority/00CT,Central Services to the Public,Environment Agency,Parish Precepts,J10000,21/04/2011,9604758,20454.5,Environment Agency,20162
Solihull MBC,http://statistics.data.gov.uk/id/local-authority/00CT,Environmental and Regulatory Services,Moat Lane Waste Station,Building Insurance,B41000,28/04/2011,9614869,2780,Environment Agency,20162
Solihull MBC,http://statistics.data.gov.uk/id/local-authority/00CT,Children & Education Services,Alderbrook,Visits & Pupil Activities,D52002,05/04/2011,8522723,11376.5,Equity Travel,115471
Solihull MBC,http://statistics.data.gov.uk/id/local-authority/00CT,Children & Education Services,Marston Green Jnr,Capitation,D11001,18/03/2011,PC35502,425.15,Espo,Purchase Card Supplier
Solihull MBC,http://statistics.data.gov.uk/id/local-authority/00CT,Children & Education Services,Peterbrook J&I,Capitation,D11001,03/03/2011,PC53687,418,Espo,Purchase Card Supplier
Solihull MBC,http://statistics.data.gov.uk/id/local-authority/00CT,Children & Education Services,Marston Green Jnr,Capitation,D11001,07/03/2011,PC60113,833.33,Espo,Purchase Card Supplier
Solihull MBC,http://statistics.data.gov.uk/id/local-authority/00CT,Children & Education Services,Monkspath J&I,IT Equipment & Software,D32000,04/04/2011,8511879,2807.5,Espresso Education Ltd,124581
Solihull MBC,http://statistics.data.gov.uk/id/local-authority/00CT,Central Services to the Public,Wintel Server Replacement,Software,Y13002,13/04/2011,9347740,34581.73,Esteem Systems Ltd,120841
Solihull MBC,http://statistics.data.gov.uk/id/local-authority/00CT,Cultural & Related Services,Arts Complex Hirings,Other Fees,D52000,20/04/2011,9600187,3500,ETM Ltd,108408
Solihull MBC,http://statistics.data.gov.uk/id/local-authority/00CT,Environmental and Regulatory Services,Vehicle Licensing,Advertising/Publicity/Promotion,D93000,11/04/2011,9340881,454.62,Euro RSCG Riley Ltd,124888
Solihull MBC,http://statistics.data.gov.uk/id/local-authority/00CT,Environmental and Regulatory Services,Vehicle Licensing,Advertising/Publicity/Promotion,D93000,11/04/2011,9340881,0.48,Euro RSCG Riley Ltd,124888
Solihull MBC,http://statistics.data.gov.uk/id/local-authority/00CT,Central Services to the Public,HR Shared Service,Recruitment Costs,A34000,19/04/2011,9597967,757.15,Euro RSCG Riley Ltd,124888
Solihull MBC,http://statistics.data.gov.uk/id/local-authority/00CT,Children & Education Services,Castle Bromwich Inf,Employee Advertising,A34001,28/04/2011,9614715,1313.86,Euro RSCG Riley Ltd,124888
Solihull MBC,http://statistics.data.gov.uk/id/local-authority/00CT,Central Services to the Public,Equip Maint Trading Unit,IT Equipment & Software,D32000,06/04/2011,8553739,1900,EV Assist Ltd,492596
Solihull MBC,http://statistics.data.gov.uk/id/local-authority/00CT,Central Services to the Public,Equip Maint Trading Unit,IT Equipment & Software,D32000,06/04/2011,8553739,1900,EV Assist Ltd,492596
Solihull MBC,http://statistics.data.gov.uk/id/local-authority/00CT,Central Services to the Public,Equip Maint Trading Unit,IT Equipment & Software,D32000,06/04/2011,8553739,1900,EV Assist Ltd,492596
Solihull MBC,http://statistics.data.gov.uk/id/local-authority/00CT,Central Services to the Public,Equip Maint Trading Unit,IT Equipment & Software,D32000,06/04/2011,8553739,1900,EV Assist Ltd,492596
Solihull MBC,http://statistics.data.gov.uk/id/local-authority/00CT,Central Services to the Public,Legal Services,Other Fees,D52000,21/04/2011,9601966,1990,Eversheds LLP,124858
Solihull MBC,http://statistics.data.gov.uk/id/local-authority/00CT,Children & Education Services,Youth Offending Team,Other Fees,D52000,11/04/2011,9340876,688.3,Excel Custodial & Escorts Services Ltd,202978
Solihull MBC,http://statistics.data.gov.uk/id/local-authority/00CT,Children & Education Services,Youth Capital Fund,Furniture & Equipment,Y13000,25/03/2011,PC58103,419,Express Music,Purchase Card Supplier
Solihull MBC,http://statistics.data.gov.uk/id/local-authority/00CT,Children & Education Services,Cfund ABG Forest Schools,Other Fees,D52000,12/04/2011,9347025,675,Family Care Trust (Solihull),5472
Solihull MBC,http://statistics.data.gov.uk/id/local-authority/00CT,Adult Social Care,SP - Ment Disordered Offenders,Other Contracted Services,E29000,28/04/2011,9619715,22383.6,Family Care Trust (Solihull),5472
Solihull MBC,http://statistics.data.gov.uk/id/local-authority/00CT,Children & Education Services,Int. Fostering CIC,External Fostering,E29006,15/04/2011,9364801,2523.48,Family Fostercare,891598
Solihull MBC,http://statistics.data.gov.uk/id/local-authority/00CT,Children & Education Services,Int. Fostering CIC,External Fostering,E29006,15/04/2011,9364801,2414.14,Family Fostercare,891598
Solihull MBC,http://statistics.data.gov.uk/id/local-authority/00CT,Children & Education Services,Int. Fostering CIC,External Fostering,E29006,15/04/2011,9364801,2413.8,Family Fostercare,891598
Solihull MBC,http://statistics.data.gov.uk/id/local-authority/00CT,Children & Education Services,Int. Fostering CIC,External Fostering,E29006,15/04/2011,9364801,2413.76,Family Fostercare,891598
Solihull MBC,http://statistics.data.gov.uk/id/local-authority/00CT,Children & Education Services,Int. Fostering CIC,External Fostering,E29006,15/04/2011,9364801,1306.16,Family Fostercare,891598
Solihull MBC,http://statistics.data.gov.uk/id/local-authority/00CT,Children & Education Services,St George & Teresa J&I,Visits & Pupil Activities,D52002,05/04/2011,8517728,1500,Farms For City Children,5475
Solihull MBC,http://statistics.data.gov.uk/id/local-authority/00CT,Children & Education Services,Ext. Fostering Smiths Wood,Foster Parents,D50000,05/04/2011,8517746,2974.8,Father Hudsons Society,5479
Solihull MBC,http://statistics.data.gov.uk/id/local-authority/00CT,Children & Education Services,Ext. Fostering Smiths Wood,Foster Parents,D50000,05/04/2011,8517746,2911.17,Father Hudsons Society,5479
Solihull MBC,http://statistics.data.gov.uk/id/local-authority/00CT,Children & Education Services,16+ Childrens Placements,Ext Fostering Long Stay,D50101,05/04/2011,8517747,3375.59,Father Hudsons Society,5479
Solihull MBC,http://statistics.data.gov.uk/id/local-authority/00CT,Children & Education Services,16+ Childrens Placements,Ext Fostering Long Stay,D50101,05/04/2011,8517747,3375.55,Father Hudsons Society,5479
Solihull MBC,http://statistics.data.gov.uk/id/local-authority/00CT,Children & Education Services,16+ Childrens Placements,Ext Fostering Long Stay,D50101,05/04/2011,8517747,-0.04,Father Hudsons Society,5479
Solihull MBC,http://statistics.data.gov.uk/id/local-authority/00CT,Children & Education Services,16+ Childrens Placements,Ext Fostering Long Stay,D50101,05/04/2011,8517766,-2831.1,Father Hudsons Society,5479
Solihull MBC,http://statistics.data.gov.uk/id/local-authority/00CT,Children & Education Services,Head Teachers Conferences - Fees And Charges,Training,A32000,06/04/2011,8553730,15415.02,Fawsley Hall,234125
Solihull MBC,http://statistics.data.gov.uk/id/local-authority/00CT,Children & Education Services,Head Teachers Conferences - Fees And Charges,Training,A32000,06/04/2011,8553730,490.2,Fawsley Hall,234125
Solihull MBC,http://statistics.data.gov.uk/id/local-authority/00CT,Children & Education Services,Head Teachers Conferences - Fees And Charges,Training,A32000,06/04/2011,8553730,163.4,Fawsley Hall,234125
Solihull MBC,http://statistics.data.gov.uk/id/local-authority/00CT,Children & Education Services,Residential Smiths Wood,Other Contracted Services,E29000,05/04/2011,8522726,11146,Ferndearle Child Care Services,270473
Solihull MBC,http://statistics.data.gov.uk/id/local-authority/00CT,Children & Education Services,Residential Smiths Wood,Other Contracted Services,E29000,05/04/2011,8522726,1258.57,Ferndearle Child Care Services,270473
Solihull MBC,http://statistics.data.gov.uk/id/local-authority/00CT,Children & Education Services,Alderbrook,Capitation,D11001,16/03/2011,PC00383,479.94,Findel Education,Purchase Card Supplier
Solihull MBC,http://statistics.data.gov.uk/id/local-authority/00CT,Children & Education Services,Coppice Jnr,Capitation,D11001,11/03/2011,PC07332,422.35,Findel Education,Purchase Card Supplier
Solihull MBC,http://statistics.data.gov.uk/id/local-authority/00CT,Children & Education Services,Coppice Jnr,Capitation,D11001,14/03/2011,PC82730,475.14,Findel Education,Purchase Card Supplier
Solihull MBC,http://statistics.data.gov.uk/id/local-authority/00CT,Children & Education Services,Grants For Private Sector,Grant & Subscription (SCITT),D92000,21/04/2011,9604781,4455.57,First Choice Childcare,94295
Solihull MBC,http://statistics.data.gov.uk/id/local-authority/00CT,Children & Education Services,Grants For Private Sector,Grant & Subscription (SCITT),D92000,21/04/2011,9604782,617.4,First Choice Childcare,94295
Solihull MBC,http://statistics.data.gov.uk/id/local-authority/00CT,Central Services to the Public,Corporate Governance,Training,A32000,15/04/2011,9364860,528.57,First Response (First Aid) Ltd,211247
Solihull MBC,http://statistics.data.gov.uk/id/local-authority/00CT,Central Services to the Public,Corporate Governance,Training,A32000,15/04/2011,9364860,396.43,First Response (First Aid) Ltd,211247
Solihull MBC,http://statistics.data.gov.uk/id/local-authority/00CT,Central Services to the Public,Corporate Governance,Training,A32000,15/04/2011,9364862,770.83,First Response (First Aid) Ltd,211247
Solihull MBC,http://statistics.data.gov.uk/id/local-authority/00CT,Central Services to the Public,Corporate Governance,Training,A32000,15/04/2011,9364862,154.17,First Response (First Aid) Ltd,211247
Solihull MBC,http://statistics.data.gov.uk/id/local-authority/00CT,Central Services to the Public,Corporate Governance,Training,A32000,15/04/2011,9364863,585,First Response (First Aid) Ltd,211247
Solihull MBC,http://statistics.data.gov.uk/id/local-authority/00CT,Children & Education Services,Grants For Private Sector,Grant & Subscription (SCITT),D92000,21/04/2011,9604757,2695.98,First Steps Nursery,18608
Solihull MBC,http://statistics.data.gov.uk/id/local-authority/00CT,Children & Education Services,Greswold J&I,Capitation,D11001,01/04/2011,8453715,650,Fitness Fun For Coaching,253296
Solihull MBC,http://statistics.data.gov.uk/id/local-authority/00CT,Children & Education Services,UASC 18+,External Fostering,E29006,21/04/2011,9601723,-1242,Five Rivers Child Care Ltd,128576
Solihull MBC,http://statistics.data.gov.uk/id/local-authority/00CT,Children & Education Services,UASC 16+,External Fostering,E29006,21/04/2011,9601728,2484,Five Rivers Child Care Ltd,128576
Solihull MBC,http://statistics.data.gov.uk/id/local-authority/00CT,Children & Education Services,UASC 18+,External Fostering,E29006,21/04/2011,9601728,1366.2,Five Rivers Child Care Ltd,128576
Solihull MBC,http://statistics.data.gov.uk/id/local-authority/00CT,Central Services to the Public,Digital Print,IT Equipment & Software,D32000,26/04/2011,9608028,862,Flame Limited,66234
Solihull MBC,http://statistics.data.gov.uk/id/local-authority/00CT,Adult Social Care,SP - Learning Disabilities,Other Contracted Services,E29000,27/04/2011,9611048,3727.9,Focus Home Options,255980
Solihull MBC,http://statistics.data.gov.uk/id/local-authority/00CT,Adult Social Care,SP - People With Physical Disabiilities,Other Contracted Services,E29000,27/04/2011,9611049,6065.17,Focus Home Options,255980
Solihull MBC,http://statistics.data.gov.uk/id/local-authority/00CT,Children & Education Services,Grants For Private Sector,Grant & Subscription (SCITT),D92000,21/04/2011,9604715,3087,Footprints Nursery,5532
Solihull MBC,http://statistics.data.gov.uk/id/local-authority/00CT,Children & Education Services,Grants For Private Sector,Grant & Subscription (SCITT),D92000,21/04/2011,9604716,1234.8,Footprints Nursery,5532
Solihull MBC,http://statistics.data.gov.uk/id/local-authority/00CT,Precepts Paid to Parish Councils,Parish Precepts,Parish Precepts,J10000,14/04/2011,9360738,62500,Fordbridge Town Council,80533
Solihull MBC,http://statistics.data.gov.uk/id/local-authority/00CT,Children & Education Services,Heart Of England,Refuse Collection,B43001,07/04/2011,8808738,421.55,Fortress Recycling,253766
Solihull MBC,http://statistics.data.gov.uk/id/local-authority/00CT,Children & Education Services,Chapel Fields Jnr,Building Maint Day To Day,B31001,11/04/2011,9341153,640,Forward Drains Ltd,5545
Solihull MBC,http://statistics.data.gov.uk/id/local-authority/00CT,Children & Education Services,Ext. Fostering South/Central,Foster Parents,D50000,05/04/2011,8522784,4185,Foster Plus Ltd,248847
Solihull MBC,http://statistics.data.gov.uk/id/local-authority/00CT,Children & Education Services,Fostering Team,Grant & Subscription (SCITT),D92000,28/04/2011,9614868,3551,Fostering Network,77622
Solihull MBC,http://statistics.data.gov.uk/id/local-authority/00CT,Children & Education Services,Fostering Team,Grant & Subscription (SCITT),D92000,28/04/2011,9614868,2613,Fostering Network,77622
Solihull MBC,http://statistics.data.gov.uk/id/local-authority/00CT,Children & Education Services,Ext. Fostering South/Central,Foster Parents,D50000,05/04/2011,8517734,3554.46,Fostering Solutions,107905
Solihull MBC,http://statistics.data.gov.uk/id/local-authority/00CT,Children & Education Services,Ext. Fostering CIC,Foster Parents,D50000,05/04/2011,8522792,3410.93,Fostering Solutions,107905
Solihull MBC,http://statistics.data.gov.uk/id/local-authority/00CT,Children & Education Services,Ext. Fostering CIC,Foster Parents,D50000,05/04/2011,8522793,3410.93,Fostering Solutions,107905
Solihull MBC,http://statistics.data.gov.uk/id/local-authority/00CT,Children & Education Services,George Fentham J&I,Cleaning Contracts,B40001,08/04/2011,9333715,495,Fountains Infrastructure Ltd,284117
Solihull MBC,http://statistics.data.gov.uk/id/local-authority/00CT,Central Services to the Public,Council House Complex,Cleaning Contracts,B40001,08/04/2011,9336715,6731.64,Fountains Infrastructure Ltd,284117
Solihull MBC,http://statistics.data.gov.uk/id/local-authority/00CT,Cultural & Related Services,Library Square Complex,Cleaning Contracts,B40001,08/04/2011,9336715,4385.18,Fountains Infrastructure Ltd,284117
Solihull MBC,http://statistics.data.gov.uk/id/local-authority/00CT,Central Services to the Public,Chelmsley Wood T/Centre,Cleaning Contracts,B40001,08/04/2011,9336715,2307.99,Fountains Infrastructure Ltd,284117
Solihull MBC,http://statistics.data.gov.uk/id/local-authority/00CT,Central Services to the Public,Council House Complex,Cleaning Contracts,B40001,08/04/2011,9336715,1538.66,Fountains Infrastructure Ltd,284117
Solihull MBC,http://statistics.data.gov.uk/id/local-authority/00CT,Corporate & Democratic Core,Civic Suite,Cleaning Contracts,B40001,08/04/2011,9336715,1538.66,Fountains Infrastructure Ltd,284117
Solihull MBC,http://statistics.data.gov.uk/id/local-authority/00CT,Central Services to the Public,Keepers Lodge,Cleaning Contracts,B40001,08/04/2011,9336715,1384.79,Fountains Infrastructure Ltd,284117
Solihull MBC,http://statistics.data.gov.uk/id/local-authority/00CT,Children & Education Services,Childrens Contact Team,Cleaning Contracts,B40001,08/04/2011,9336715,1038.6,Fountains Infrastructure Ltd,284117
Solihull MBC,http://statistics.data.gov.uk/id/local-authority/00CT,Children & Education Services,Childrens Contact Team,Cleaning Contracts,B40001,08/04/2011,9336715,846.26,Fountains Infrastructure Ltd,284117
Solihull MBC,http://statistics.data.gov.uk/id/local-authority/00CT,Central Services to the Public,21 Poplar Rd,Cleaning Contracts,B40001,08/04/2011,9336715,846.26,Fountains Infrastructure Ltd,284117
Solihull MBC,http://statistics.data.gov.uk/id/local-authority/00CT,Planning & Development Services,Small Business Units,Cleaning Contracts,B40001,08/04/2011,9336715,653.93,Fountains Infrastructure Ltd,284117
Solihull MBC,http://statistics.data.gov.uk/id/local-authority/00CT,Children & Education Services,Disability Team,Cleaning Contracts,B40001,08/04/2011,9336715,423.13,Fountains Infrastructure Ltd,284117
Solihull MBC,http://statistics.data.gov.uk/id/local-authority/00CT,Children & Education Services,Jubilee House,Cleaning Contracts,B40001,08/04/2011,9336715,423.13,Fountains Infrastructure Ltd,284117
Solihull MBC,http://statistics.data.gov.uk/id/local-authority/00CT,Central Services to the Public,142 Lode Lane,Cleaning Contracts,B40001,08/04/2011,9336715,423.13,Fountains Infrastructure Ltd,284117
Solihull MBC,http://statistics.data.gov.uk/id/local-authority/00CT,Cultural & Related Services,Hobs Moat Library,Cleaning Contracts,B40001,08/04/2011,9336715,423.13,Fountains Infrastructure Ltd,284117
Solihull MBC,http://statistics.data.gov.uk/id/local-authority/00CT,Children & Education Services,UASC Team,Cleaning Contracts,B40001,08/04/2011,9336715,423.13,Fountains Infrastructure Ltd,284117
Solihull MBC,http://statistics.data.gov.uk/id/local-authority/00CT,Cultural & Related Services,Balsall Common Library,Cleaning Contracts,B40001,08/04/2011,9336715,423.13,Fountains Infrastructure Ltd,284117
Solihull MBC,http://statistics.data.gov.uk/id/local-authority/00CT,Cultural & Related Services,Shirley Library,Cleaning Contracts,B40001,08/04/2011,9336715,423.13,Fountains Infrastructure Ltd,284117
Solihull MBC,http://statistics.data.gov.uk/id/local-authority/00CT,Cultural & Related Services,Knowle Library,Cleaning Contracts,B40001,08/04/2011,9336715,423.13,Fountains Infrastructure Ltd,284117
Solihull MBC,http://statistics.data.gov.uk/id/local-authority/00CT,Cultural & Related Services,Dickens Heath Library,Cleaning Contracts,B40001,08/04/2011,9336715,346.2,Fountains Infrastructure Ltd,284117
Solihull MBC,http://statistics.data.gov.uk/id/local-authority/00CT,Children & Education Services,Adoption Team,Cleaning Contracts,B40001,08/04/2011,9336715,346.2,Fountains Infrastructure Ltd,284117
Solihull MBC,http://statistics.data.gov.uk/id/local-authority/00CT,Cultural & Related Services,Castle Bromwich Library,Cleaning Contracts,B40001,08/04/2011,9336715,230.8,Fountains Infrastructure Ltd,284117
Solihull MBC,http://statistics.data.gov.uk/id/local-authority/00CT,Cultural & Related Services,Kingshurst Library,Cleaning Contracts,B40001,08/04/2011,9336715,230.8,Fountains Infrastructure Ltd,284117
Solihull MBC,http://statistics.data.gov.uk/id/local-authority/00CT,Cultural & Related Services,Olton Library,Cleaning Contracts,B40001,08/04/2011,9336715,230.8,Fountains Infrastructure Ltd,284117
Solihull MBC,http://statistics.data.gov.uk/id/local-authority/00CT,Planning & Development Services,Small Business Units,Cleaning Contracts,B40001,08/04/2011,9336715,230.8,Fountains Infrastructure Ltd,284117
Solihull MBC,http://statistics.data.gov.uk/id/local-authority/00CT,Planning & Development Services,Small Business Units,Cleaning Contracts,B40001,08/04/2011,9336715,230.8,Fountains Infrastructure Ltd,284117
Solihull MBC,http://statistics.data.gov.uk/id/local-authority/00CT,Planning & Development Services,Small Business Units,Cleaning Contracts,B40001,08/04/2011,9336715,230.8,Fountains Infrastructure Ltd,284117
Solihull MBC,http://statistics.data.gov.uk/id/local-authority/00CT,Cultural & Related Services,Meriden Library,Cleaning Contracts,B40001,08/04/2011,9336715,153.87,Fountains Infrastructure Ltd,284117
Solihull MBC,http://statistics.data.gov.uk/id/local-authority/00CT,Planning & Development Services,Small Business Units,Cleaning Contracts,B40001,08/04/2011,9336715,134.64,Fountains Infrastructure Ltd,284117
Solihull MBC,http://statistics.data.gov.uk/id/local-authority/00CT,Cultural & Related Services,Marston Green Library,Cleaning Contracts,B40001,08/04/2011,9336715,115.4,Fountains Infrastructure Ltd,284117
Solihull MBC,http://statistics.data.gov.uk/id/local-authority/00CT,Cultural & Related Services,Hampton In Arden Library,Cleaning Contracts,B40001,08/04/2011,9336715,115.4,Fountains Infrastructure Ltd,284117
Solihull MBC,http://statistics.data.gov.uk/id/local-authority/00CT,Highways & Transport Services,Lode Lane Ms Car Pk,Cleaning Contracts,B40001,08/04/2011,9336715,57.7,Fountains Infrastructure Ltd,284117
Solihull MBC,http://statistics.data.gov.uk/id/local-authority/00CT,Adult Social Care,Care Trust Facilities,Cleaning Contracts,B40001,12/04/2011,9345800,6808.73,Fountains Infrastructure Ltd,284117
Solihull MBC,http://statistics.data.gov.uk/id/local-authority/00CT,Adult Social Care,Care Trust Facilities,Cleaning Contracts,B40001,12/04/2011,9345800,6803.73,Fountains Infrastructure Ltd,284117
Solihull MBC,http://statistics.data.gov.uk/id/local-authority/00CT,Adult Social Care,Care Trust Facilities,Cleaning Contracts,B40001,12/04/2011,9345800,-6808.73,Fountains Infrastructure Ltd,284117
Solihull MBC,http://statistics.data.gov.uk/id/local-authority/00CT,Environmental and Regulatory Services,Bereavement Services,Cleaning,B40000,19/04/2011,9597751,443.13,Fountains Infrastructure Ltd,284117
Solihull MBC,http://statistics.data.gov.uk/id/local-authority/00CT,Environmental and Regulatory Services,Bereavement Services,Cleaning,B40000,19/04/2011,9597752,443.13,Fountains Infrastructure Ltd,284117
Solihull MBC,http://statistics.data.gov.uk/id/local-authority/00CT,Adult Social Care,Appointee Spend- I-Proc,General Creditors,S00000,18/04/2011,9432716,507.47,Four Seasons Health Care,78137
Solihull MBC,http://statistics.data.gov.uk/id/local-authority/00CT,Children & Education Services,St Peter's,Postage & Courier Services,D43000,08/04/2011,9319715,500,Frama UK Limited,76607
Solihull MBC,http://statistics.data.gov.uk/id/local-authority/00CT,Children & Education Services,Head Teachers Conferences - Fees And Charges,Professional Fees,D51000,05/04/2011,8522775,1198,Friendly Publishing Ltd,281846
Solihull MBC,http://statistics.data.gov.uk/id/local-authority/00CT,Children & Education Services,Special Transport,Transport-Contract Hire,C30000,11/04/2011,9342728,713,Friendly Radio Cars Ltd,224082
Solihull MBC,http://statistics.data.gov.uk/id/local-authority/00CT,Children & Education Services,Special Transport,Transport-Contract Hire,C30000,11/04/2011,9342729,1253.5,Friendly Radio Cars Ltd,224082
Solihull MBC,http://statistics.data.gov.uk/id/local-authority/00CT,Children & Education Services,Special Transport,Transport-Contract Hire,C30000,11/04/2011,9342730,825,Friendly Radio Cars Ltd,224082
Solihull MBC,http://statistics.data.gov.uk/id/local-authority/00CT,Children & Education Services,Special Transport,Transport-Contract Hire,C30000,11/04/2011,9342731,2185,Friendly Radio Cars Ltd,224082
Solihull MBC,http://statistics.data.gov.uk/id/local-authority/00CT,Children & Education Services,Special Transport,Transport-Contract Hire,C30000,11/04/2011,9342732,1242,Friendly Radio Cars Ltd,224082
Solihull MBC,http://statistics.data.gov.uk/id/local-authority/00CT,Children & Education Services,Special Transport,Transport-Contract Hire,C30000,11/04/2011,9342733,1277.65,Friendly Radio Cars Ltd,224082
Solihull MBC,http://statistics.data.gov.uk/id/local-authority/00CT,Children & Education Services,Special Transport,Transport-Contract Hire,C30000,11/04/2011,9342734,2661.1,Friendly Radio Cars Ltd,224082
Solihull MBC,http://statistics.data.gov.uk/id/local-authority/00CT,Children & Education Services,Special Transport,Transport-Contract Hire,C30000,11/04/2011,9342735,2438,Friendly Radio Cars Ltd,224082
Solihull MBC,http://statistics.data.gov.uk/id/local-authority/00CT,Children & Education Services,Special Transport,Transport-Contract Hire,C30000,11/04/2011,9342736,1414.5,Friendly Radio Cars Ltd,224082
Solihull MBC,http://statistics.data.gov.uk/id/local-authority/00CT,Children & Education Services,Special Transport,Transport-Contract Hire,C30000,11/04/2011,9342737,1518,Friendly Radio Cars Ltd,224082
Solihull MBC,http://statistics.data.gov.uk/id/local-authority/00CT,Children & Education Services,Special Transport,Transport-Contract Hire,C30000,11/04/2011,9342738,773.3,Friendly Radio Cars Ltd,224082
Solihull MBC,http://statistics.data.gov.uk/id/local-authority/00CT,Children & Education Services,Special Transport,Extra District Transport,C30002,11/04/2011,9342739,1840,Friendly Radio Cars Ltd,224082
Solihull MBC,http://statistics.data.gov.uk/id/local-authority/00CT,Children & Education Services,Special Transport,Extra District Transport,C30002,11/04/2011,9342740,2208,Friendly Radio Cars Ltd,224082
Solihull MBC,http://statistics.data.gov.uk/id/local-authority/00CT,Children & Education Services,Special Transport,Extra District Transport,C30002,11/04/2011,9342741,1380,Friendly Radio Cars Ltd,224082
Solihull MBC,http://statistics.data.gov.uk/id/local-authority/00CT,Children & Education Services,Special Transport,Transport-Contract Hire,C30000,11/04/2011,9342742,1012,Friendly Radio Cars Ltd,224082
Solihull MBC,http://statistics.data.gov.uk/id/local-authority/00CT,Children & Education Services,Special Transport,Transport-Contract Hire,C30000,11/04/2011,9342743,1887.6,Friendly Radio Cars Ltd,224082
Solihull MBC,http://statistics.data.gov.uk/id/local-authority/00CT,Children & Education Services,Special Transport,Transport-Contract Hire,C30000,11/04/2011,9342744,1540,Friendly Radio Cars Ltd,224082
Solihull MBC,http://statistics.data.gov.uk/id/local-authority/00CT,Children & Education Services,Special Transport,Transport-Contract Hire,C30000,11/04/2011,9342745,1320,Friendly Radio Cars Ltd,224082
Solihull MBC,http://statistics.data.gov.uk/id/local-authority/00CT,Children & Education Services,Special Transport,Transport-Contract Hire,C30000,11/04/2011,9342746,1100,Friendly Radio Cars Ltd,224082
Solihull MBC,http://statistics.data.gov.uk/id/local-authority/00CT,Children & Education Services,Special Transport,Transport-Contract Hire,C30000,11/04/2011,9342747,1380,Friendly Radio Cars Ltd,224082
Solihull MBC,http://statistics.data.gov.uk/id/local-authority/00CT,Children & Education Services,Special Transport,Extra District Transport,C30002,11/04/2011,9342749,800,Friendly Radio Cars Ltd,224082
Solihull MBC,http://statistics.data.gov.uk/id/local-authority/00CT,Children & Education Services,Children In Care Team,Clients Transport Costs,C21000,11/04/2011,9342773,1200,Friendly Radio Cars Ltd,224082
Solihull MBC,http://statistics.data.gov.uk/id/local-authority/00CT,Children & Education Services,Section 17 South/Central,Clients Transport Costs,C21000,11/04/2011,9342774,1040,Friendly Radio Cars Ltd,224082
Solihull MBC,http://statistics.data.gov.uk/id/local-authority/00CT,Children & Education Services,Children In Care Team,Clients Transport Costs,C21000,11/04/2011,9342775,1610,Friendly Radio Cars Ltd,224082
Solihull MBC,http://statistics.data.gov.uk/id/local-authority/00CT,Children & Education Services,Section 17 South/Central,Clients Transport Costs,C21000,11/04/2011,9342776,1095,Friendly Radio Cars Ltd,224082
Solihull MBC,http://statistics.data.gov.uk/id/local-authority/00CT,Adult Social Care,Care Trust Facilities,Community Care,E21000,11/04/2011,9342777,1584,Friendly Radio Cars Ltd,224082
Solihull MBC,http://statistics.data.gov.uk/id/local-authority/00CT,Children & Education Services,Section 17 Chelmsley Wood,Clients Transport Costs,C21000,11/04/2011,9342779,1575,Friendly Radio Cars Ltd,224082
Solihull MBC,http://statistics.data.gov.uk/id/local-authority/00CT,Children & Education Services,Section 17 South/Central,Clients Transport Costs,C21000,11/04/2011,9342782,1472,Friendly Radio Cars Ltd,224082
Solihull MBC,http://statistics.data.gov.uk/id/local-authority/00CT,Children & Education Services,Section 17 Chelmsley Wood,Clients Transport Costs,C21000,11/04/2011,9342783,660,Friendly Radio Cars Ltd,224082
Solihull MBC,http://statistics.data.gov.uk/id/local-authority/00CT,Children & Education Services,Section 17 Chelmsley Wood,Clients Transport Costs,C21000,11/04/2011,9342784,660,Friendly Radio Cars Ltd,224082
Solihull MBC,http://statistics.data.gov.uk/id/local-authority/00CT,Children & Education Services,Section 17 Chelmsley Wood,Clients Transport Costs,C21000,11/04/2011,9342785,660,Friendly Radio Cars Ltd,224082
Solihull MBC,http://statistics.data.gov.uk/id/local-authority/00CT,Children & Education Services,Section 17 South/Central,Clients Transport Costs,C21000,11/04/2011,9342786,982.5,Friendly Radio Cars Ltd,224082
Solihull MBC,http://statistics.data.gov.uk/id/local-authority/00CT,Children & Education Services,Section 17 South/Central,Clients Transport Costs,C21000,11/04/2011,9342787,982.5,Friendly Radio Cars Ltd,224082
Solihull MBC,http://statistics.data.gov.uk/id/local-authority/00CT,Children & Education Services,Children In Care Team,Clients Transport Costs,C21000,11/04/2011,9342794,594,Friendly Radio Cars Ltd,224082
Solihull MBC,http://statistics.data.gov.uk/id/local-authority/00CT,Children & Education Services,Children In Care Team,Clients Transport Costs,C21000,11/04/2011,9342796,2530,Friendly Radio Cars Ltd,224082
Solihull MBC,http://statistics.data.gov.uk/id/local-authority/00CT,Children & Education Services,Section 17 South/Central,Clients Transport Costs,C21000,13/04/2011,9351763,1150,Friendly Radio Cars Ltd,224082
Solihull MBC,http://statistics.data.gov.uk/id/local-authority/00CT,Adult Social Care,SP - Offenders,Other Contracted Services,E29000,27/04/2011,9613717,5167.71,Fry Housing Trust,88325
Solihull MBC,http://statistics.data.gov.uk/id/local-authority/00CT,Adult Social Care,SP - Ment Disordered Offenders,Other Contracted Services,E29000,28/04/2011,9619718,23556.24,Fry Housing Trust,88325
Solihull MBC,http://statistics.data.gov.uk/id/local-authority/00CT,Cultural & Related Services,Events/Marketing Parks,Advertising/Publicity/Promotion,D93000,05/04/2011,8513748,3490,FT Print Ltd,138958
Solihull MBC,http://statistics.data.gov.uk/id/local-authority/00CT,Children & Education Services,Specialist Inclusion Support Service,Materials,D11000,04/04/2011,8512450,680,FT Solutions,268153
Solihull MBC,http://statistics.data.gov.uk/id/local-authority/00CT,Environmental and Regulatory Services,Waste Collection,Advertising/Publicity/Promotion,D93000,21/04/2011,9601947,1712,FT Solutions,268153
Solihull MBC,http://statistics.data.gov.uk/id/local-authority/00CT,Children & Education Services,Langley J&I,Cleaning Contracts,B40001,08/04/2011,9110715,537.15,Fullstaff Ltd,110985
Solihull MBC,http://statistics.data.gov.uk/id/local-authority/00CT,Children & Education Services,UASC 18+,Grants,D92101,13/04/2011,9353783,758.33,Furndex Discount Furniture,109970
Solihull MBC,http://statistics.data.gov.uk/id/local-authority/00CT,Children & Education Services,UASC 18+,Grant & Subscription (SCITT),D92000,27/04/2011,9610802,775,Furndex Discount Furniture,109970
Solihull MBC,http://statistics.data.gov.uk/id/local-authority/00CT,Corporate & Democratic Core,Bank Charges,Other Contracted Services,E29000,13/04/2011,9347755,1980.44,G4S Cash Services (UK) Ltd,7717
Solihull MBC,http://statistics.data.gov.uk/id/local-authority/00CT,Corporate & Democratic Core,Bank Charges,Other Contracted Services,E29000,13/04/2011,9347757,1542.71,G4S Cash Services (UK) Ltd,7717
Solihull MBC,http://statistics.data.gov.uk/id/local-authority/00CT,Corporate & Democratic Core,Bank Charges,Other Contracted Services,E29000,13/04/2011,9347757,1285.59,G4S Cash Services (UK) Ltd,7717
Solihull MBC,http://statistics.data.gov.uk/id/local-authority/00CT,Corporate & Democratic Core,Bank Charges,Other Contracted Services,E29000,13/04/2011,9347757,-1542.71,G4S Cash Services (UK) Ltd,7717
Solihull MBC,http://statistics.data.gov.uk/id/local-authority/00CT,Children & Education Services,Dcatch,Other Contracted Services,E29000,04/04/2011,8512162,7720,Gas Street Works Ltd,269899
Solihull MBC,http://statistics.data.gov.uk/id/local-authority/00CT,Central Services to the Public,I & A Management,Other Contracted Services,E29000,14/04/2011,9358790,2053.14,Gemini Consultants Ltd,99504
Solihull MBC,http://statistics.data.gov.uk/id/local-authority/00CT,Central Services to the Public,I & A Management,Postage & Courier Services,D43000,08/04/2011,9302715,3514.4,GI Solutions,642598
Solihull MBC,http://statistics.data.gov.uk/id/local-authority/00CT,Central Services to the Public,I & A Management,Postage & Courier Services,D43000,08/04/2011,9303715,1039.82,GI Solutions,642598
Solihull MBC,http://statistics.data.gov.uk/id/local-authority/00CT,Cultural & Related Services,Tudor Grange Park Layout,Contractors,Y21000,26/04/2011,9608057,450,Girlings,93700
Solihull MBC,http://statistics.data.gov.uk/id/local-authority/00CT,Highways & Transport Services,Horticultural Maintenance,Maintenance Of Grounds,B30000,18/04/2011,9511716,61425.97,Glendale Countryside,24505
Solihull MBC,http://statistics.data.gov.uk/id/local-authority/00CT,Cultural & Related Services,Parks Other,Maintenance Of Grounds,B30000,18/04/2011,9511716,29950.14,Glendale Countryside,24505
Solihull MBC,http://statistics.data.gov.uk/id/local-authority/00CT,Housing Revenue Account,Community Services,Maintenance Of Grounds,B30000,18/04/2011,9511716,10902.7,Glendale Countryside,24505
Solihull MBC,http://statistics.data.gov.uk/id/local-authority/00CT,Housing Revenue Account,Community Services,Maintenance Of Grounds,B30000,18/04/2011,9511716,6115.82,Glendale Countryside,24505
Solihull MBC,http://statistics.data.gov.uk/id/local-authority/00CT,Highways & Transport Services,Scheme Dev - Walking,Contractors,Y21000,18/04/2011,9511716,250.18,Glendale Countryside,24505
Solihull MBC,http://statistics.data.gov.uk/id/local-authority/00CT,Cultural & Related Services,Allotments,Maintenance Of Grounds,B30000,18/04/2011,9511716,174.89,Glendale Countryside,24505
Solihull MBC,http://statistics.data.gov.uk/id/local-authority/00CT,Central Services to the Public,Shared Services (Schools),Fees & Charges,I20000,06/04/2011,8750715,-1439.86,GMB,5655
Solihull MBC,http://statistics.data.gov.uk/id/local-authority/00CT,Central Services to the Public,Corporate Governance,IT Equipment & Software,D32000,04/04/2011,8511985,1000,Grace Governance Solutions Ltd,107134
Solihull MBC,http://statistics.data.gov.uk/id/local-authority/00CT,Environmental and Regulatory Services,Care For The Environment,IT Equipment & Software,D32000,04/04/2011,8511985,1000,Grace Governance Solutions Ltd,107134
Solihull MBC,http://statistics.data.gov.uk/id/local-authority/00CT,Central Services to the Public,Corporate Governance,IT Equipment & Software,D32000,13/04/2011,9347852,2650,Grace Governance Solutions Ltd,107134
